{"text_format":"1","workbook":"xlsx","n_sheets":4,"sheets":["К.П. МАЙ 2020","К.П. ИЮНЬ 2020 ","К.П. СПИСОК СОТРУДНИКОВ","И.Б. ИЮНЬ 2020 "],"not_rendered":{"charts":0,"images":0,"macros":0,"external_links":4,"defined_names":42,"comments":0,"pivot_tables":0},"unopened":[],"bounds":{"document_bytes":16777216,"sheet_cells":100000,"rows_first":2000,"rows_last":500,"rows_between":2000,"halvings":0,"cell_chars":16384,"cell_head_chars":4096},"cells_cut":0,"cells_raw":0,"read":"whole","date_system":"1900"}

{"sheet":"К.П. МАЙ 2020","index":0,"n_rows":95,"n_cols":257,"rows_kept":95,"cut":false,"hidden":false,"merged":[[85,190,85,195],[85,196,85,201],[85,202,85,207],[75,202,75,207],[52,221,53,228],[56,190,56,195],[46,214,47,220],[51,184,51,189],[51,190,51,195],[51,196,51,201],[84,221,85,228],[84,142,84,147],[84,148,84,153],[84,154,84,159],[76,196,76,201],[76,202,76,207],[75,184,75,189],[70,184,70,189],[70,190,70,195],[70,196,70,201],[70,202,70,207],[70,208,70,213],[70,214,71,220],[70,221,71,228],[71,196,71,201],[71,202,71,207],[69,202,69,207],[69,208,69,213],[79,58,79,63],[79,64,79,69],[79,70,79,75],[79,76,79,81],[79,82,79,87],[79,88,79,93],[79,94,79,99],[79,100,79,105],[79,106,79,111],[79,112,79,117],[79,118,79,123],[84,118,84,123],[82,118,82,123],[85,166,85,171],[85,172,85,177],[85,178,85,183],[85,184,85,189],[82,124,82,129],[79,184,79,189],[85,160,85,165],[79,136,79,141],[79,142,79,147],[79,148,79,153],[86,124,86,129],[84,124,84,129],[84,130,84,135],[84,136,84,141],[78,136,78,141],[78,142,78,147],[78,190,78,195],[78,196,78,201],[78,202,78,207],[78,208,78,213],[18,233,19,233],[78,214,79,220],[78,221,79,228],[78,148,78,153],[78,154,78,159],[78,160,78,165],[78,166,78,171],[78,172,78,177],[78,178,78,183],[78,184,78,189],[79,190,79,195],[79,196,79,201],[79,202,79,207],[79,208,79,213],[76,184,76,189],[76,190,76,195],[93,190,93,195],[93,196,93,201],[93,202,93,207],[92,202,92,207],[89,166,89,171],[89,172,89,177],[89,178,89,183],[89,184,89,189],[89,190,89,195],[89,196,89,201],[89,202,89,207],[88,190,88,195],[88,196,88,201],[87,202,87,207],[86,202,86,207],[93,130,93,135],[93,136,93,141],[93,142,93,147],[93,148,93,153],[93,154,93,159],[93,160,93,165],[93,166,93,171],[93,172,93,177],[92,184,92,189],[92,190,92,195],[92,196,92,201],[86,142,86,147],[86,148,86,153],[86,130,86,135],[86,136,86,141],[92,208,92,213],[92,214,93,220],[91,208,91,213],[91,202,91,207],[91,196,91,201],[91,190,91,195],[91,184,91,189],[84,178,84,183],[84,184,84,189],[84,190,84,195],[84,196,84,201],[84,202,84,207],[84,208,84,213],[84,214,85,220],[93,208,93,213],[79,154,79,159],[79,160,79,165],[79,166,79,171],[79,172,79,177],[79,178,79,183],[84,160,84,165],[84,166,84,171],[90,172,90,177],[90,178,90,183],[90,184,90,189],[90,190,90,195],[90,196,90,201],[90,202,90,207],[90,208,90,213],[90,214,91,220],[89,208,89,213],[88,202,88,207],[92,221,93,228],[93,28,93,33],[93,34,93,39],[93,40,93,45],[93,46,93,51],[93,52,93,57],[93,58,93,63],[93,64,93,69],[93,70,93,75],[93,76,93,81],[93,82,93,87],[93,88,93,93],[93,94,93,99],[93,100,93,105],[93,106,93,111],[93,112,93,117],[93,118,93,123],[93,124,93,129],[92,130,92,135],[92,136,92,141],[92,142,92,147],[92,148,92,153],[92,154,92,159],[92,160,92,165],[92,166,92,171],[93,184,93,189],[92,178,92,183],[92,76,92,81],[92,82,92,87],[92,88,92,93],[92,94,92,99],[92,100,92,105],[92,106,92,111],[92,112,92,117],[92,118,92,123],[92,124,92,129],[92,23,93,27],[92,28,92,33],[92,34,92,39],[92,40,92,45],[92,46,92,51],[92,52,92,57],[92,58,92,63],[92,64,92,69],[92,70,92,75],[93,178,93,183],[90,118,90,123],[90,124,90,129],[90,130,90,135],[90,136,90,141],[90,142,90,147],[90,148,90,153],[90,154,90,159],[90,160,90,165],[90,166,90,171],[91,166,91,171],[91,172,91,177],[91,178,91,183],[91,64,91,69],[91,70,91,75],[92,172,92,177],[90,82,90,87],[90,76,90,81],[90,70,90,75],[90,221,91,228],[84,172,84,177],[89,160,89,165],[76,208,76,213],[76,214,77,220],[76,221,77,228],[84,23,85,27],[84,28,84,33],[84,34,84,39],[84,40,84,45],[84,46,84,51],[84,52,84,57],[84,58,84,63],[84,64,84,69],[84,70,84,75],[84,76,84,81],[84,82,84,87],[84,88,84,93],[84,94,84,99],[84,100,84,105],[84,106,84,111],[84,112,84,117],[76,130,76,135],[76,136,76,141],[76,142,76,147],[76,148,76,153],[76,154,76,159],[76,160,76,165],[76,166,76,171],[76,172,76,177],[79,124,79,129],[79,130,79,135],[76,52,76,57],[76,58,76,63],[76,64,76,69],[76,70,76,75],[77,136,77,141],[77,142,77,147],[77,148,77,153],[77,154,77,159],[78,118,78,123],[78,124,78,129],[78,130,78,135],[78,23,79,27],[78,28,78,33],[78,34,78,39],[78,40,78,45],[78,46,78,51],[78,52,78,57],[78,58,78,63],[78,64,78,69],[78,70,78,75],[78,76,78,81],[78,82,78,87],[78,88,78,93],[78,94,78,99],[78,100,78,105],[78,106,78,111],[78,112,78,117],[79,28,79,33],[79,34,79,39],[79,40,79,45],[79,46,79,51],[79,52,79,57],[70,124,70,129],[70,130,70,135],[70,136,70,141],[70,142,70,147],[70,148,70,153],[70,154,70,159],[70,160,70,165],[70,166,70,171],[71,142,71,147],[71,148,71,153],[76,178,76,183],[76,76,76,81],[76,82,76,87],[76,88,76,93],[76,94,76,99],[76,100,76,105],[76,106,76,111],[76,112,76,117],[76,118,76,123],[76,124,76,129],[75,166,75,171],[75,172,75,177],[75,178,75,183],[70,172,70,177],[70,178,70,183],[71,130,71,135],[71,136,71,141],[71,118,71,123],[71,124,71,129],[69,154,69,159],[69,160,69,165],[69,166,69,171],[69,172,69,177],[69,178,69,183],[69,184,69,189],[69,190,69,195],[69,196,69,201],[64,178,64,183],[64,184,64,189],[64,190,64,195],[64,196,64,201],[64,202,64,207],[64,208,64,213],[64,214,65,220],[64,221,65,228],[68,190,68,195],[68,196,68,201],[68,202,68,207],[68,208,68,213],[66,221,67,228],[65,202,65,207],[65,208,65,213],[65,154,65,159],[65,160,65,165],[65,166,65,171],[65,172,65,177],[65,178,65,183],[65,184,65,189],[65,190,65,195],[70,28,70,33],[70,34,70,39],[70,40,70,45],[70,46,70,51],[70,52,70,57],[70,58,70,63],[70,64,70,69],[70,70,70,75],[70,76,70,81],[70,82,70,87],[70,88,70,93],[70,94,70,99],[70,100,70,105],[70,106,70,111],[70,112,70,117],[64,124,64,129],[71,28,71,33],[71,34,71,39],[71,40,71,45],[71,46,71,51],[71,52,71,57],[71,58,71,63],[71,64,71,69],[71,70,71,75],[71,76,71,81],[71,82,71,87],[71,88,71,93],[71,94,71,99],[71,100,71,105],[71,106,71,111],[71,112,71,117],[70,118,70,123],[58,208,58,213],[58,214,59,220],[58,221,59,228],[64,23,65,27],[64,28,64,33],[64,34,64,39],[64,40,64,45],[64,46,64,51],[64,52,64,57],[64,58,64,63],[64,64,64,69],[64,70,64,75],[64,76,64,81],[64,82,64,87],[64,88,64,93],[64,94,64,99],[64,100,64,105],[64,106,64,111],[64,112,64,117],[64,118,64,123],[65,148,65,153],[52,118,52,123],[52,124,52,129],[52,130,52,135],[52,136,52,141],[52,142,52,147],[52,148,52,153],[52,154,52,159],[52,160,52,165],[52,166,52,171],[53,178,53,183],[55,166,55,171],[55,172,55,177],[64,130,64,135],[64,136,64,141],[64,142,64,147],[64,148,64,153],[64,154,64,159],[64,160,64,165],[64,166,64,171],[64,172,64,177],[58,76,58,81],[58,82,58,87],[58,88,58,93],[58,94,58,99],[58,100,58,105],[58,106,58,111],[58,112,58,117],[58,118,58,123],[58,124,58,129],[57,160,57,165],[57,166,57,171],[57,172,57,177],[57,178,57,183],[57,184,57,189],[56,178,56,183],[56,184,56,189],[55,178,55,183],[57,136,57,141],[57,142,57,147],[57,148,57,153],[57,154,57,159],[55,130,55,135],[55,136,55,141],[55,142,55,147],[55,148,55,153],[55,154,55,159],[55,160,55,165],[58,130,58,135],[58,136,58,141],[58,142,58,147],[58,148,58,153],[58,154,58,159],[51,202,51,207],[51,208,51,213],[51,130,51,135],[51,136,51,141],[51,142,51,147],[51,148,51,153],[51,154,51,159],[51,160,51,165],[51,166,51,171],[51,172,51,177],[51,178,51,183],[50,172,50,177],[52,172,52,177],[52,178,52,183],[52,184,52,189],[52,190,52,195],[52,196,52,201],[52,202,52,207],[52,208,52,213],[50,184,50,189],[50,190,50,195],[50,196,50,201],[50,202,50,207],[50,208,50,213],[52,214,53,220],[50,142,50,147],[50,148,50,153],[50,154,50,159],[50,160,50,165],[50,166,50,171],[48,196,48,201],[48,202,48,207],[48,208,48,213],[43,208,43,213],[41,190,41,195],[41,196,41,201],[41,202,41,207],[43,166,43,171],[43,172,43,177],[52,64,52,69],[52,70,52,75],[52,76,52,81],[52,82,52,87],[52,88,52,93],[52,94,52,99],[52,100,52,105],[52,106,52,111],[52,112,52,117],[46,172,46,177],[46,178,46,183],[46,184,46,189],[46,190,46,195],[46,196,46,201],[46,202,46,207],[46,208,46,213],[50,178,50,183],[50,118,50,123],[50,124,50,129],[50,130,50,135],[50,136,50,141],[46,221,47,228],[46,118,46,123],[46,124,46,129],[46,130,46,135],[46,136,46,141],[46,142,46,147],[46,148,46,153],[46,154,46,159],[46,160,46,165],[46,166,46,171],[40,178,40,183],[40,184,40,189],[40,190,40,195],[40,196,40,201],[40,202,40,207],[40,208,40,213],[40,214,41,220],[40,221,41,228],[40,130,40,135],[40,136,40,141],[40,142,40,147],[40,148,40,153],[40,154,40,159],[40,160,40,165],[40,166,40,171],[40,172,40,177],[45,142,45,147],[45,148,45,153],[45,154,45,159],[45,160,45,165],[45,166,45,171],[45,172,45,177],[34,214,35,220],[34,221,35,228],[40,23,41,27],[40,28,40,33],[40,34,40,39],[40,40,40,45],[40,46,40,51],[40,52,40,57],[40,58,40,63],[40,64,40,69],[40,70,40,75],[40,76,40,81],[40,82,40,87],[40,88,40,93],[40,94,40,99],[40,100,40,105],[40,106,40,111],[40,112,40,117],[34,124,34,129],[34,130,34,135],[34,136,34,141],[34,142,34,147],[34,148,34,153],[34,154,34,159],[34,160,34,165],[34,166,34,171],[37,202,37,207],[37,208,37,213],[40,118,40,123],[36,214,37,220],[36,221,37,228],[37,28,37,33],[28,184,28,189],[28,190,28,195],[28,196,28,201],[28,202,28,207],[28,208,28,213],[28,214,29,220],[28,221,29,228],[34,23,35,27],[34,28,34,33],[34,34,34,39],[34,40,34,45],[34,46,34,51],[34,52,34,57],[34,58,34,63],[34,64,34,69],[34,70,34,75],[34,76,34,81],[34,82,34,87],[34,88,34,93],[34,94,34,99],[34,100,34,105],[34,106,34,111],[34,112,34,117],[34,118,34,123],[28,130,28,135],[28,136,28,141],[28,142,28,147],[28,148,28,153],[28,154,28,159],[28,160,28,165],[28,166,28,171],[34,178,34,183],[28,172,28,177],[28,178,28,183],[95,178,95,183],[95,184,95,189],[95,190,95,195],[95,196,95,201],[95,202,95,207],[95,208,95,213],[28,23,29,27],[28,28,28,33],[28,34,28,39],[28,40,28,45],[28,46,28,51],[28,52,28,57],[28,58,28,63],[28,64,28,69],[28,70,28,75],[28,76,28,81],[28,82,28,87],[28,88,28,93],[28,94,28,99],[28,100,28,105],[28,106,28,111],[28,112,28,117],[28,118,28,123],[28,124,28,129],[95,124,95,129],[95,130,95,135],[94,178,94,183],[94,184,94,189],[94,190,94,195],[94,196,94,201],[94,202,94,207],[94,208,94,213],[94,214,95,220],[94,221,95,228],[95,28,95,33],[95,34,95,39],[95,40,95,45],[95,46,95,51],[95,52,95,57],[95,58,95,63],[95,64,95,69],[95,70,95,75],[95,76,95,81],[95,82,95,87],[95,88,95,93],[95,94,95,99],[95,100,95,105],[95,106,95,111],[95,112,95,117],[95,118,95,123],[94,124,94,129],[94,130,94,135],[94,136,94,141],[94,142,94,147],[94,148,94,153],[94,154,94,159],[94,160,94,165],[94,166,94,171],[94,172,94,177],[94,23,95,27],[94,28,94,33],[94,34,94,39],[94,40,94,45],[94,46,94,51],[94,52,94,57],[94,58,94,63],[94,64,94,69],[94,70,94,75],[94,76,94,81],[94,82,94,87],[94,88,94,93],[94,94,94,99],[94,100,94,105],[94,106,94,111],[94,112,94,117],[94,118,94,123],[95,160,95,165],[95,166,95,171],[95,172,95,177],[95,136,95,141],[95,142,95,147],[95,148,95,153],[95,154,95,159],[88,208,88,213],[89,28,89,33],[89,34,89,39],[89,40,89,45],[89,46,89,51],[89,52,89,57],[89,58,89,63],[89,64,89,69],[89,70,89,75],[89,76,89,81],[89,82,89,87],[89,88,89,93],[89,94,89,99],[89,100,89,105],[89,106,89,111],[89,112,89,117],[89,118,89,123],[89,124,89,129],[89,130,89,135],[89,136,89,141],[89,142,89,147],[89,148,89,153],[89,154,89,159],[88,148,88,153],[88,154,88,159],[88,160,88,165],[88,166,88,171],[88,172,88,177],[88,178,88,183],[88,184,88,189],[87,208,87,213],[88,0,95,4],[88,5,95,22],[88,23,89,27],[88,28,88,33],[88,34,88,39],[88,40,88,45],[88,46,88,51],[88,52,88,57],[88,58,88,63],[88,64,88,69],[88,70,88,75],[88,76,88,81],[88,82,88,87],[88,88,88,93],[88,94,88,99],[88,100,88,105],[88,106,88,111],[88,112,88,117],[88,118,88,123],[88,124,88,129],[88,130,88,135],[88,136,88,141],[88,142,88,147],[87,154,87,159],[87,160,87,165],[87,166,87,171],[87,172,87,177],[87,178,87,183],[87,184,87,189],[87,190,87,195],[87,196,87,201],[86,208,86,213],[86,214,87,220],[86,221,87,228],[87,28,87,33],[87,34,87,39],[87,40,87,45],[87,46,87,51],[87,52,87,57],[87,58,87,63],[87,64,87,69],[87,70,87,75],[87,76,87,81],[87,82,87,87],[87,88,87,93],[87,94,87,99],[87,100,87,105],[87,106,87,111],[87,112,87,117],[87,118,87,123],[87,124,87,129],[87,130,87,135],[87,136,87,141],[87,142,87,147],[87,148,87,153],[86,154,86,159],[86,160,86,165],[86,166,86,171],[86,172,86,177],[86,178,86,183],[86,184,86,189],[86,190,86,195],[86,196,86,201],[86,23,87,27],[86,28,86,33],[86,34,86,39],[86,40,86,45],[86,46,86,51],[86,52,86,57],[86,58,86,63],[86,64,86,69],[86,70,86,75],[86,76,86,81],[86,82,86,87],[86,88,86,93],[86,94,86,99],[86,100,86,105],[86,106,86,111],[86,112,86,117],[86,118,86,123],[85,208,85,213],[83,208,83,213],[85,28,85,33],[85,34,85,39],[85,40,85,45],[85,46,85,51],[85,52,85,57],[85,58,85,63],[85,64,85,69],[85,70,85,75],[85,76,85,81],[85,82,85,87],[85,88,85,93],[85,94,85,99],[85,100,85,105],[85,106,85,111],[85,112,85,117],[85,118,85,123],[85,124,85,129],[85,130,85,135],[85,136,85,141],[85,142,85,147],[85,148,85,153],[85,154,85,159],[83,154,83,159],[83,160,83,165],[83,166,83,171],[83,172,83,177],[83,178,83,183],[83,184,83,189],[83,190,83,195],[83,196,83,201],[83,202,83,207],[82,196,82,201],[82,202,82,207],[82,208,82,213],[83,28,83,33],[83,34,83,39],[83,40,83,45],[83,46,83,51],[83,52,83,57],[83,58,83,63],[83,64,83,69],[83,70,83,75],[83,76,83,81],[83,82,83,87],[83,88,83,93],[83,94,83,99],[83,100,83,105],[83,106,83,111],[83,112,83,117],[83,118,83,123],[83,124,83,129],[83,130,83,135],[83,136,83,141],[83,142,83,147],[83,148,83,153],[82,142,82,147],[82,148,82,153],[82,154,82,159],[82,160,82,165],[82,166,82,171],[82,172,82,177],[82,178,82,183],[82,184,82,189],[82,190,82,195],[81,208,81,213],[24,250,24,254],[82,0,87,4],[82,5,87,22],[82,23,83,27],[82,28,82,33],[82,34,82,39],[82,40,82,45],[82,46,82,51],[82,52,82,57],[82,58,82,63],[82,64,82,69],[82,70,82,75],[82,76,82,81],[82,82,82,87],[82,88,82,93],[82,94,82,99],[82,100,82,105],[82,106,82,111],[82,112,82,117],[82,130,82,135],[82,136,82,141],[81,154,81,159],[81,160,81,165],[81,166,81,171],[81,172,81,177],[81,178,81,183],[81,184,81,189],[81,190,81,195],[81,196,81,201],[80,208,80,213],[80,214,81,220],[80,221,81,228],[81,28,81,33],[81,34,81,39],[81,40,81,45],[81,46,81,51],[81,52,81,57],[81,58,81,63],[81,64,81,69],[81,70,81,75],[81,76,81,81],[81,82,81,87],[81,88,81,93],[81,94,81,99],[81,100,81,105],[81,106,81,111],[81,112,81,117],[81,118,81,123],[81,124,81,129],[81,130,81,135],[81,136,81,141],[81,142,81,147],[81,148,81,153],[80,154,80,159],[80,160,80,165],[80,166,80,171],[80,172,80,177],[80,178,80,183],[80,184,80,189],[80,190,80,195],[80,196,80,201],[75,160,75,165],[75,190,75,195],[75,196,75,201],[80,202,80,207],[80,23,81,27],[80,28,80,33],[80,34,80,39],[80,40,80,45],[80,46,80,51],[80,52,80,57],[80,58,80,63],[80,64,80,69],[80,70,80,75],[80,76,80,81],[80,82,80,87],[80,88,80,93],[80,94,80,99],[80,100,80,105],[80,106,80,111],[80,112,80,117],[80,118,80,123],[80,124,80,129],[80,130,80,135],[80,136,80,141],[80,142,80,147],[80,148,80,153],[81,202,81,207],[76,23,77,27],[76,28,76,33],[76,34,76,39],[76,40,76,45],[76,46,76,51],[74,172,74,177],[74,178,74,183],[74,184,74,189],[77,160,77,165],[77,166,77,171],[77,172,77,177],[77,178,77,183],[77,184,77,189],[77,190,77,195],[77,196,77,201],[77,202,77,207],[77,208,77,213],[75,208,75,213],[77,28,77,33],[77,34,77,39],[77,40,77,45],[77,46,77,51],[77,52,77,57],[77,58,77,63],[77,64,77,69],[77,70,77,75],[77,76,77,81],[77,82,77,87],[77,88,77,93],[77,94,77,99],[77,100,77,105],[77,106,77,111],[77,112,77,117],[77,118,77,123],[77,124,77,129],[77,130,77,135],[75,154,75,159],[73,172,73,177],[73,178,73,183],[73,184,73,189],[74,196,74,201],[74,202,74,207],[74,208,74,213],[75,28,75,33],[75,34,75,39],[75,40,75,45],[75,46,75,51],[75,52,75,57],[75,58,75,63],[75,64,75,69],[75,70,75,75],[75,76,75,81],[75,82,75,87],[75,88,75,93],[75,94,75,99],[75,100,75,105],[75,106,75,111],[75,112,75,117],[75,118,75,123],[75,124,75,129],[75,130,75,135],[75,136,75,141]],"merged_total":2548,"flags":["merged_cut"]}
[null,null,null,null,null,null,null,null,null,null,null,null,null,null,null,null,null,null,null,null,null,null,null,null,null,null,null,null,null,null,null,null,null,null,null,null,null,null,null,null,null,null,null,null,null,null,null,null,null,null,null,null,null,null,null,null,null,null,null,null,null,null,null,null,null,null,null,null,null,null,null,null,null,null,null,null,null,null,null,null,null,null,null,null,null,null,null,null,null,null,null,null,null,null,null,null,null,null,null,null,null,null,null,null,null,null,null,null,null,null,null,null,null,null,null,null,null,null,null,null,null,null,null,null,null,null,null,null,null,null,null,null,null,null,null,null,null,null,null,null,null,null,null,null,null,null,null,null,null,null,null,null,null,null,null,null,null,null,null,null,null,null,null,null,null,null,null,null,null,null,null,null,null,null,null,null,null,null,null,null,null,null,null,null,null,null,null,null,null,null,null,null,null,null,null,null,null,null,null,null,null,null,null,null,null,null,null,null,null,null,null,null,null,null,null,null,null,null,null,null,null,null,null,null,null,null,null,null,null,null,null,null,null,null,null,null,null,null,null,null,null,"СЕГОДНЯ",null,null,null,null,null,null,null,null,"на январь 2020 года",null,1]
[null,null,null,null,null,null,null,null,null,null,null,null,null,null,null,null,null,null,null,null,null,null,null,null,null,null,null,null,null,null,null,null,null,null,null,null,null,null,null,null,null,null,null,null,null,null,null,null,null,null,null,null,null,null,null,null,null,null,null,null,null,null,null,null,null,null,null,null,null,null,null,null,null,null,null,null,null,null,null,null,null,null,null,null,null,null,null,null,null,null,null,null,null,null,null,null,null,null,null,null,null,null,null,null,null,null,null,null,null,null,null,null,null,null,null,null,null,null,null,null,null,null,null,null,null,null,null,null,null,null,null,null,null,null,null,null,null,null,null,null,null,null,null,null,null,null,null,null,null,null,null,null,null,null,null,null,null,null,null,null,null,null,null,null,null,null,null,null,null,null,null,null,null,null,null,null,null,null,null,null,null,null,null,null,null,null,null,null,null,null,null,null,null,null,null,null,null,null,null,null,null,null,null,null,null,null,null,null,null,null,null,null,null,null,null,null,null,null,null,null,null,null,null,null,null,null,null,null,null,null,null,null,null,null,null,null,null,null,null,null,null,{"$f":"TODAY()","v":"2020-05-05"},null,null,null,null,null,null,null,null,"на февраль 2020 года",null,2]
[null,null,null,null,null,null,null,null,null,null,null,null,null,null,null,null,null,null,null,null,null,null,null,null,null,null,null,null,null,null,null,null,null,null,null,null,null,null,null,null,null,null,null,null,null,null,null,null,null,null,null,null,null,null,null,null,null,null,null,null,null,null,null,null,null,null,null,null,null,null,null,null,null,null,null,null,null,null,null,null,null,null,null,null,null,null,null,null,null,null,null,null,null,null,null,null,null,null,null,null,null,null,null,null,null,null,null,null,null,null,null,null,null,null,null,null,null,null,null,null,null,null,null,null,null,null,null,null,null,null,null,null,null,null,null,null,null,null,null,null,null,null,null,null,null,null,null,null,null,null,null,null,null,null,null,null,null,null,null,null,null,null,null,null,null,null,null,null,null,null,null,null,null,null,null,null,null,null,null,null,null,null,null,null,null,null,null,null,null,null,null,null,null,null,null,null,null,null,null,null,null,null,null,null,null,null,null,null,null,null,null,null,null,null,null,null,null,null,null,null,null,null,null,null,null,null,null,null,null,null,null,null,null,null,null,null,null,null,null,null,null,{"$f":"TEXT(HZ2,\"дддд\")","v":"суббота"},null,null,null,null,null,null,null,null,"на март 2020 года",null,3]
[null,null,null,null,null,null,null,null,null,null,null,null,null,null,null,null,null,null,null,null,null,null,null,null,null,null,null,null,null,null,null,null,null,null,null,null,null,null,null,null,null,null,null,null,null,null,null,null,null,null,null,null,null,null,null,null,null,null,null,null,null,null,null,null,null,null,null,null,null,null,null,null,null,null,null,null,null,null,null,null,null,null,null,null,null,null,null,null,null,null,null,null,null,null,null,null,null,null,null,null,null,null,null,null,null,null,null,null,null,null,null,null,null,null,null,null,null,null,null,null,null,null,null,null,null,null,null,null,null,null,null,null,null,null,null,null,null,null,null,null,null,null,null,null,null,null,null,null,null,null,null,null,null,null,null,null,null,null,null,null,null,null,null,null,null,null,null,null,null,null,null,null,null,null,null,null,null,null,null,null,null,null,null,null,null,null,null,null,null,null,null,null,null,null,null,null,null,null,null,null,null,null,null,null,null,null,null,null,null,null,null,null,null,null,null,null,null,null,null,null,null,null,null,null,null,null,null,null,null,null,null,null,null,null,null,null,null,null,null,null,null,{"$f":"WEEKNUM(IH2,2)&\"-ая неделя\"","v":"19-ая неделя"},null,null,null,null,null,null,null,null,"на апрель 2020 года",null,4]
[null,null,null,null,null,null,null,null,{"$f":"IF(OR(#REF!<D3,AND(#REF!<D2,#REF!=D3)),$CN$19,IF(OR(#REF!>D3,AND(#REF!>D2,#REF!=D3)),0,DAY(A2)))","v":{"$error":"#REF!"}},null,null,null,null,null,null,null,null,null,null,null,null,null,null,null,null,null,null,null,null,null,null,null,null,null,null,null,null,null,null,null,null,null,null,null,null,null,null,null,null,null,null,null,null,null,null,null,null,null,null,null,null,null,null,null,null,null,null,null,null,null,null,null,null,null,null,null,null,null,null,null,null,null,null,null,null,null,null,null,null,null,null,null,null,null,null,null,null,null,null,null,null,null,null,null,null,null,null,null,null,null,null,null,null,null,null,null,null,null,null,null,null,null,null,null,null,null,null,null,null,null,null,null,null,null,null,null,null,null,null,null,null,null,null,null,null,null,null,null,null,null,null,null,null,null,null,null,null,null,null,null,null,null,null,null,null,null,null,null,null,null,null,null,null,null,null,null,null,null,null,null,null,null,null,null,null,null,null,null,null,null,null,null,null,null,null,null,null,null,null,null,null,null,null,null,null,null,null,null,null,null,null,null,null,null,null,null,null,null,null,null,null,null,null,null,null,null,null,null,null,null,null,null,null,null,null,null,null,null,null,null,null,{"$f":"IF(OR(#REF!<IC3,AND(#REF!<IC2,#REF!=IC3)),$CN$19,IF(OR(#REF!>IC3,AND(#REF!>IC2,#REF!=IC3)),0,DAY(HZ2)))","v":{"$error":"#REF!"}},null,null,null,null,null,null,null,null,"на май 2020 года",null,5]
[null,null,null,null,null,null,null,null,null,null,null,null,null,null,null,null,null,null,null,null,null,null,null,null,null,null,null,null,null,null,null,null,null,null,null,null,null,null,null,null,null,null,null,null,null,null,null,null,null,null,null,null,null,null,null,null,null,null,null,null,null,null,null,null,null,null,null,null,null,null,null,null,null,null,null,null,null,null,null,null,null,null,null,null,null,null,null,null,null,null,null,null,null,null,null,null,null,null,null,null,null,null,null,null,null,null,null,null,null,null,null,null,null,null,null,null,null,null,null,null,null,null,null,null,null,null,null,null,null,null,null,null,null,null,null,null,null,null,null,null,null,null,null,null,null,null,null,null,null,null,null,null,null,null,null,null,null,null,null,null,null,null,null,null,null,null,null,null,null,null,null,null,null,null,null,null,null,null,null,null,null,null,null,null,null,null,null,null,null,null,null,null,null,null,null,null,null,null,null,null,null,null,null,null,null,null,null,null,null,null,null,null,null,null,null,null,null,null,null,null,null,null,null,null,null,null,null,null,null,null,null,null,null,null,null,null,null,null,null,null,"время",null,null,null,null,null,null,null,null,null,"на июнь 2020 года",null,6]
[null,null,null,null,null,null,null,null,null,null,null,null,null,null,null,null,null,null,null,null,null,null,null,null,null,null,null,null,null,null,null,null,null,null,null,null,null,null,null,null,null,null,null,null,null,null,null,null,null,null,null,null,null,null,null,null,null,null,null,null,null,null,null,null,null,null,null,null,null,null,null,null,null,null,null,null,null,null,null,null,null,null,null,null,null,null,null,null,null,null,null,null,null,null,null,null,null,null,null,null,null,null,null,null,null,null,null,null,null,null,null,null,null,null,null,null,null,null,null,null,null,null,null,null,null,null,null,null,null,null,null,null,null,null,null,null,null,null,null,null,null,null,null,null,null,null,null,null,null,null,null,null,null,null,null,null,null,null,null,null,null,null,null,null,null,null,null,null,null,null,null,null,null,null,null,null,null,null,null,null,null,null,null,null,null,null,null,null,null,null,null,null,null,null,null,null,null,null,null,null,null,null,null,null,null,null,null,null,1,null,null,null,null,null,null,null,null,null,null,null,null,null,null,null,null,null,null,null,null,null,null,null,null,null,null,"количество дней месяца",null,null,{"$f":"DAY(EOMONTH(A17,0))","v":31},null,null,null,null,null,null,null,null,null,null,null,"на июль 2020 года",null,7]
[null,null,null,null,null,null,null,null,null,null,null,null,null,null,null,null,null,null,null,null,null,null,null,null,null,null,null,null,null,null,null,null,null,null,null,null,null,null,null,null,null,null,null,null,null,null,null,null,null,null,null,null,null,null,null,null,null,null,null,null,null,null,null,null,null,null,null,null,null,null,null,null,null,null,null,null,null,null,null,null,null,null,null,null,null,null,null,null,null,null,null,null,null,null,null,null,null,null,null,null,null,null,null,null,null,null,null,null,null,null,null,null,null,null,null,null,null,null,null,null,null,null,null,null,null,null,null,null,null,null,null,null,null,null,null,null,null,null,null,null,null,null,null,null,null,null,null,null,null,null,null,null,null,null,null,null,null,null,null,null,null,null,null,null,null,null,null,null,null,null,null,null,null,null,null,null,null,null,null,null,null,null,null,null,null,null,null,null,null,null,null,null,null,null,null,null,null,null,null,null,null,null,null,null,null,null,null,null,2,null,null,null,null,null,null,null,null,null,null,null,null,null,null,null,null,null,null,null,null,null,null,null,null,null,null,"месяц",null,null,{"$f":"MONTH(A17)","v":5},null,0,null,null,null,null,null,null,null,null,null,"на август 2020 года",null,8]
[null,null,null,null,null,null,null,null,null,null,null,null,null,null,null,null,null,null,null,null,null,null,null,null,null,null,null,null,null,null,null,null,null,null,null,null,null,null,null,null,null,null,null,null,null,null,null,null,null,null,null,null,null,null,null,null,null,null,null,null,null,null,null,null,null,null,null,null,null,null,null,null,null,null,null,null,null,null,null,null,null,null,null,null,null,null,null,null,null,null,null,null,null,null,null,null,null,null,null,null,null,null,null,null,null,null,null,null,null,null,null,null,null,null,null,null,null,null,null,null,null,null,null,null,null,null,null,null,null,null,null,null,null,null,null,null,null,null,null,null,null,null,null,null,null,null,null,null,null,null,null,null,null,null,null,null,null,null,null,null,null,null,null,null,null,null,null,null,null,null,null,null,null,null,null,null,null,null,null,null,null,null,null,null,null,null,null,null,null,null,null,null,null,null,null,null,null,null,null,null,null,null,null,null,null,null,null,null,null,null,null,null,null,null,null,null,null,null,null,null,null,null,null,null,null,null,null,null,null,null,null,null,null,null,null,"год",null,null,{"$f":"YEAR(A17)","v":2020},null,2.0833333333333332E-2,null,null,null,null,null,null,null,null,null,"на сентябрь 2020 года",null,9]
[null,null,null,null,null,null,null,null,null,null,null,null,null,null,null,null,null,null,null,null,null,null,null,null,null,null,null,null,null,null,null,null,null,null,null,null,null,null,null,null,null,null,null,null,null,null,null,null,null,null,null,null,null,null,null,null,null,null,null,null,null,null,null,null,null,null,null,null,null,null,null,null,null,null,null,null,null,null,null,null,null,null,null,null,null,null,null,null,null,null,null,null,null,null,null,null,null,null,null,null,null,null,null,null,null,null,null,null,null,null,null,null,null,null,null,null,null,null,null,null,null,null,null,null,null,null,null,null,null,null,null,null,null,null,null,null,null,null,null,null,null,null,null,null,null,null,null,null,null,null,null,null,null,null,null,null,null,null,null,null,null,null,null,null,null,null,null,null,null,null,null,null,null,null,null,null,null,null,null,null,null,null,null,null,null,null,null,null,null,null,"УТВЕРЖДАЮ",null,null,null,null,null,null,null,null,null,null,null,null,null,null,null,null,null,null,null,null,null,null,null,null,null,null,null,null,null,null,null,null,null,null,null,null,null,null,null,null,null,null,null,null,null,null,null,null,null,6.25E-2,null,null,null,null,null,null,null,null,null,"на октябрь 2020 года",null,10]
[null,null,null,null,null,null,null,null,null,null,null,null,null,null,null,null,null,null,null,null,null,null,null,null,null,null,null,null,null,null,null,null,null,null,null,null,null,null,null,null,null,null,null,null,null,null,null,null,null,null,null,null,null,null,null,null,null,null,null,null,null,null,null,null,null,null,null,null,null,null,null,null,null,null,null,null,null,null,null,null,null,null,null,null,null,null,null,null,null,null,null,null,null,null,null,null,null,null,null,null,null,null,null,null,null,null,null,null,null,null,null,null,null,null,null,null,null,null,null,null,null,null,null,null,null,null,null,null,null,null,null,null,null,null,null,null,null,null,null,null,null,null,null,null,null,null,null,null,null,null,null,null,null,null,null,null,null,null,null,null,null,null,null,null,null,null,null,null,null,null,null,null,null,null,null,null,null,null,null,null,null,null,null,null,null,null,null,null,null,null," ",null,null,null,null,null,null,null,null,null,null,null,null,null,null,null,null,null,null,null,null,null,null,null,null,null,null,null,null,null,null,null,null,null,null,null,null,null,null,null,null,null,null,null,null,"0бед",null,null,4.1666666666666664E-2,null,0.41666666666666669,null,null,null,null,null,null,null,null,null,"на ноябрь 2020 года",null,11]
[null,null,null,null,null,null,null,null,null,null,null,null,null,null,null,null,null,null,null,null,null,null,null,null,null,null,null,null,null,null,null,null,null,null,null,null,null,null,null,null,null,null,null,null,null,null,null,null,null,null,null,null,null,null,null,null,null,null,null,null,null,null,null,null,null,null,null,null,null,null,null,null,null,null,null,null,null,null,null,null,null,null,null,null,null,null,null,null,null,null,null,null,null,null,null,null,null,null,null,null,null,null,null,null,null,null,null,null,null,null,null,null,null,null,null,null,null,null,null,null,null,null,null,null,null,null,null,null,null,null,null,null,null,null,null,null,null,null,null,null,null,null,null,null,null,null,null,null,null,null,null,null,null,null,null,null,null,null,null,null,null,null,null,null,null,null,null,null,null,null,null,null,null,null,null,null,null,null,null,null,null,null,null,null,null,null,null,null,null,null,"_______________С. А. Сорокина",null,null,null,null,null,null,null,null,null,null,null,null,null,null,null,null,null,null,null,null,null,null,null,null,null,null,null,null,null,null,null,null,null,null,null,null,null,null,null,null,null,null,null,null,null,null,null,null,null,0.45833333333333331,null,null,null,null,null,null,null,null,null,"на декабрь 2020 года",null,12]
[null,null,null,null,null,null,null,null,null,null,null,null,null,null,null,null,null,null,null,null,null,null,null,null,null,null,null,null,null,null,null,null,null,null,null,null,null,null,null,null,null,null,null,null,null,null,null,null,null,null,null,null,null,null,null,null,null,null,null,null,null,null,null,null,null,null,null,null,null,null,null,null,null,null,null,null,null,null,null,null,null,null,null,null,null,null,null,null,null,null,null,null,null,null,null,null,null,null,null,null,null,null,null,null,null,null,null,null,null,null,null,null,null,null,null,null,null,null,null,null,null,null,null,null,null,null,null,null,null,null,null,null,null,null,null,null,null,null,null,null,null,null,null,null,null,null,null,null,null,null,null,null,null,null,null,null,null,null,null,null,null,null,null,null,null,null,null,null,null,null,null,null,null,null,null,null,null,null,null,null,null,null,null,null,null,null,null,null,null,null,"« 10 »     февраля    2020г.",null,null,null,null,null,null,null,null,null,null,"апреля",null,null,null,null,null,null,null,null,null,null,null,null,null,null,null,null,null,null,null,null,null,null,null,null,null,null,null,null,null,null,null,null,null,null,null,null,null,null,0.125]
[null,null,null,null,null,null,null,null,null,null,null,null,null,null,null,null,null,null,null,null,null,null,null,null,null,null,null,null,null,null,null,null,null,null,null,null,null,null,null,null,null,null,null,null,null,null,null,null,null,null,null,null,null,null,null,null,null,null,null,null,null,null,null,null,null,null,null,null,null,null,null,null,null,null,null,null,null,null,null,null,null,null,null,null,null,null,null,null,null,null,null,null,null,null,null,null,null,null,null,null,null,null,null,null,null,null,null,null,null,null,null,null,null,null,null,null,null,null,null,null,null,null,null,null,null,null,null,null,null,null,null,null,null,null,null,null,null,null,null,null,null,null,null,null,null,null,null,null,null,null,null,null,null,null,null,null,null,null,null,null,null,null,null,null,null,null,null,null,null,null,null,null,null,null,null,null,null,null,null,null,null,null,null,null,null,null,null,null,null,null,null,null,null,null,null,null,null,null,null,null,null,null,null,null,null,null,null,null,null,null,null,null,null,null,null,null,null,null,null,null,null,null,null,null,null,null,null,null,null,null,null,null,null,null,null,null,null,null,null,null,0.14583333333333334,null,null,null,null,null,null,null,null,null,"Слезинский В.Е.,  управляющий участка",null,null,null,null,null,1]
["ГРАФИК",null,null,null,null,null,null,null,null,null,null,null,null,null,null,null,null,null,null,null,null,null,null,null,null,null,null,null,null,null,null,null,null,null,null,null,null,null,null,null,null,null,null,null,null,null,null,null,null,null,null,null,null,null,null,null,null,null,null,null,null,null,null,null,null,null,null,null,null,null,null,null,null,null,null,null,null,null,null,null,null,null,null,null,null,null,null,null,null,null,null,null,null,null,null,null,null,null,null,null,null,null,null,null,null,null,null,null,null,null,null,null,null,null,null,null,null,null,null,null,null,null,null,null,null,null,null,null,null,null,null,null,null,null,null,null,null,null,null,null,null,null,null,null,null,null,null,null,null,null,null,null,null,null,null,null,null,null,null,null,null,null,null,null,null,null,null,null,null,null,null,null,null,null,null,null,null,null,null,null,null,null,null,null,null,null,null,null,null,null,null,null,null,null,null,null,null,null,null,null,null,null,null,null,null,null,null,null,null,null,null,null,null,null,null,null,null,null,null,null,null,null,null,null,null,null,null,null,null,null,null,null,null,null,null,null,null,null,null,null,0.16666666666666666,null,null,null,null,null,null,null,null,null,"Медведев А.П., слесарь-ремонтник",null,null,null,null,null,0.5]
["УЧЕТА ИСПОЛЬЗОВАНИЯ РАБОЧЕГО ВРЕМЕНИ ОБСЛУЖИВАЮЩЕГО ПЕРСОНАЛА",null,null,null,null,null,null,null,null,null,null,null,null,null,null,null,null,null,null,null,null,null,null,null,null,null,null,null,null,null,null,null,null,null,null,null,null,null,null,null,null,null,null,null,null,null,null,null,null,null,null,null,null,null,null,null,null,null,null,null,null,null,null,null,null,null,null,null,null,null,null,null,null,null,null,null,null,null,null,null,null,null,null,null,null,null,null,null,null,null,null,null,null,null,null,null,null,null,null,null,null,null,null,null,null,null,null,null,null,null,null,null,null,null,null,null,null,null,null,null,null,null,null,null,null,null,null,null,null,null,null,null,null,null,null,null,null,null,null,null,null,null,null,null,null,null,null,null,null,null,null,null,null,null,null,null,null,null,null,null,null,null,null,null,null,null,null,null,null,null,null,null,null,null,null,null,null,null,null,null,null,null,null,null,null,null,null,null,null,null,null,null,null,null,null,null,null,null,null,null,null,null,null,null,null,null,null,null,null,null,null,null,null,null,null,null,null,null,null,null,null,null,null,null,null,null,null,null,null,null,null,null,null,null,null,null,null,null,null,null,0.1875,null,null,null,null,null,null,null,null,null,"Береговой Г.П., электрик",null,null,null,null,null,0.25]
["2020-05-01",null,null,null,null,null,null,null,null,null,null,null,null,null,null,null,null,null,null,null,null,null,null,null,null,null,null,null,null,null,null,null,null,null,null,null,null,null,null,null,null,null,null,null,null,null,null,null,null,null,null,null,null,null,null,null,null,null,null,null,null,null,null,null,null,null,null,null,null,null,null,null,null,null,null,null,null,null,null,null,null,null,null,null,null,null,null,null,null,null,null,null,null,null,null,null,null,null,null,null,null,null,null,null,null,null,null,null,null,null,null,null,null,null,null,null,null,null,null,null,null,null,null,null,null,null,null,null,null,null,null,null,null,null,null,null,null,null,null,null,null,null,null,null,null,null,null,null,null,null,null,null,null,null,null,null,null,null,null,null,null,null,null,null,null,null,null,null,null,null,null,null,null,null,null,null,null,null,null,null,null,null,null,null,null,null,null,null,null,null,null,null,null,null,null,null,null,null,null,null,null,null,null,null,null,null,null,null,null,null,null,null,null,null,null,null,null,null,null,null,null,null,null,null,null,null,null,null,null,null,null,null,null,null,null,null,null,null,null,null,0.20833333333333334,null,null,null,null,null,null,null,null,null,"Воротынцева В.Н., кассир билетный"]
[null,null,null,null,null,null,null,null,null,null,null,null,null,null,null,null,null,null,null,null,null,null,null,null,null,null,null,null,null,null,null,null,null,null,null,null,null,null,null,null,null,null,null,null,null,null,null,null,null,null,null,null,null,null,null,null,null,null,null,null,null,null,null,null,null,null,null,null,null,null,null,null,null,null,null,null,null,null,null,null,null,null,null,null,null,null,null,null,null,null,null,null,null,null,null,null,null,null,null,null,null,null,null,null,null,null,null,null,null,null,null,null,null,null,null,null,null,null,null,null,null,null,null,null,null,null,null,null,null,null,null,null,null,null,null,null,null,null,null,null,null,null,null,null,null,null,null,null,null,null,null,null,null,null,null,null,null,null,null,null,null,null,null,null,null,null,null,null,null,null,null,null,null,null,null,null,null,null,null,null,null,null,null,null,null,null,null,null,null,null,null,null,null,null,null,null,null,null,null,null,null,null,null,null,null,null,null,null,null,null,null,null,null,null,null,null,null,null,null,null,null,null,null,null,null,null,null,null,null,null,null,null,null,null,null,null,null,null,null,null,0.22916666666666666,null,null,null,null,null,null,null,null,null,"Окорочкова О.Т., кассир билетный"]
["№ п/п",null,null,null,null,"Фамилия Инициалы",null,null,null,null,null,null,null,null,null,null,null,null,null,null,null,null,null,"Ставка",null,null,null,null,1,null,null,null,null,null,2,null,null,null,null,null,3,null,null,null,null,null,4,null,null,null,null,null,5,null,null,null,null,null,6,null,null,null,null,null,7,null,null,null,null,null,8,null,null,null,null,null,9,null,null,null,null,null,10,null,null,null,null,null,11,null,null,null,null,null,12,null,null,null,null,null,13,null,null,null,null,null,14,null,null,null,null,null,15,null,null,null,null,null,16,null,null,null,null,null,17,null,null,null,null,null,18,null,null,null,null,null,19,null,null,null,null,null,20,null,null,null,null,null,21,null,null,null,null,null,22,null,null,null,null,null,23,null,null,null,null,null,24,null,null,null,null,null,25,null,null,null,null,null,26,null,null,null,null,null,27,null,null,null,null,null,28,null,null,null,null,null,{"$f":"IF(29<=$IE$7,29,\"-\")","v":29},null,null,null,null,null,{"$f":"IF(30<=$IE$7,30,\"-\")","v":30},null,null,null,null,null,{"$f":"IF(31<=$IE$7,31,\"-\")","v":31},null,null,null,null,null,"ВСЕГО",null,null,null,null,null,null,null,null,null,null,null,null,null,null,null,null,null,null,null,null,null,null,null,null,null,0.25,null,null,null,null,null,null,null,null,null,"Пермякова Т.М., контролёр-посадчик аттракциона"]
[null,null,null,null,null,null,null,null,null,null,null,null,null,null,null,null,null,null,null,null,null,null,null,null,null,null,null,null,null,null,null,null,null,null,null,null,null,null,null,null,null,null,null,null,null,null,null,null,null,null,null,null,null,null,null,null,null,null,null,null,null,null,null,null,null,null,null,null,null,null,null,null,null,null,null,null,null,null,null,null,null,null,null,null,null,null,null,null,null,null,null,null,null,null,null,null,null,null,null,null,null,null,null,null,null,null,null,null,null,null,null,null,null,null,null,null,null,null,null,null,null,null,null,null,null,null,null,null,null,null,null,null,null,null,null,null,null,null,null,null,null,null,null,null,null,null,null,null,null,null,null,null,null,null,null,null,null,null,null,null,null,null,null,null,null,null,null,null,null,null,null,null,null,null,null,null,null,null,null,null,null,null,null,null,null,null,null,null,null,null,null,null,null,null,null,null,null,null,null,null,null,null,null,null,null,null,null,null,null,null,null,null,null,null,"дней",null,null,null,null,null,null,null,null,null,null,null,null,null,null,null,null,null,"часов",null,null,null,null,null,null,null,0.27083333333333331,null,null,null,null,null,null,null,null,null,"Алексеева Р.И., котролёр-посадчик аттракциона"]
[1,null,null,null,null,"Слезинский В.Е  управляющий участка",null,null,null,null,null,null,null,null,null,null,null,null,null,null,null,null,null,1,null,null,null,null,"В",null,null,null,null,null,0.375,null,null,null,null,null,0.375,null,null,null,null,null,0.375,null,null,null,null,null,0.41666666666666669,null,null,null,null,null,"В",null,null,null,null,null,0.375,null,null,null,null,null,0.375,null,null,null,null,null,"В",null,null,null,null,null,0.375,null,null,null,null,null,0.375,null,null,null,null,null,0.41666666666666669,null,null,null,null,null,"В",null,null,null,null,null,0.375,null,null,null,null,null,0.375,null,null,null,null,null,0.375,null,null,null,null,null,0.375,null,null,null,null,null,0.375,null,null,null,null,null,0.41666666666666669,null,null,null,null,null,"В",null,null,null,null,null,0.375,null,null,null,null,null,0.375,null,null,null,null,null,0.375,null,null,null,null,null,0.375,null,null,null,null,null,0.375,null,null,null,null,null,0.41666666666666669,null,null,null,null,null,"В",null,null,null,null,null,0.375,null,null,null,null,null,0.375,null,null,null,null,null,0.375,null,null,null,null,null,0.375,null,null,null,null,null,{"$f":"COUNT(AC21:HF21)","v":25},null,null,null,null,null,null,null,null,null,null,null,null,null,null,null,null,null,{"$f":"SUM(IFERROR(AC22:HF22-AC21:HF21-AC23:HF23,0))","v":5.6250000000000009},null,null,null,null,null,null,null,4.1666666666666664E-2,null,null,null,null,null,null,null,null,null,"Перминов К.И., дежурный зала"]
[null,null,null,null,null,null,null,null,null,null,null,null,null,null,null,null,null,null,null,null,null,null,null,null,null,null,null,null,"В",null,null,null,null,null,0.83333333333333337,null,null,null,null,null,0.83333333333333337,null,null,null,null,null,0.83333333333333337,null,null,null,null,null,0.625,null,null,null,null,null,"В",null,null,null,null,null,0.83333333333333337,null,null,null,null,null,0.83333333333333337,null,null,null,null,null,"В",null,null,null,null,null,0.83333333333333337,null,null,null,null,null,0.83333333333333337,null,null,null,null,null,0.625,null,null,null,null,null,"В",null,null,null,null,null,0.83333333333333337,null,null,null,null,null,0.83333333333333337,null,null,null,null,null,0.83333333333333337,null,null,null,null,null,0.83333333333333337,null,null,null,null,null,0.83333333333333337,null,null,null,null,null,0.625,null,null,null,null,null,"В",null,null,null,null,null,0.83333333333333337,null,null,null,null,null,0.83333333333333337,null,null,null,null,null,0.83333333333333337,null,null,null,null,null,0.83333333333333337,null,null,null,null,null,0.83333333333333337,null,null,null,null,null,0.625,null,null,null,null,null,"В",null,null,null,null,null,0.83333333333333337,null,null,null,null,null,0.83333333333333337,null,null,null,null,null,0.83333333333333337,null,null,null,null,null,0.83333333333333337,null,null,null,null,null,null,null,null,null,null,null,null,null,null,null,null,null,null,null,null,null,null,null,null,null,null,null,null,null,null,null,null,null,null,null,null,null,null,null,null,null,"Перминов К.И., кассир"]
[null,null,null,null,null,null,null,null,null,null,null,null,null,null,null,null,null,null,null,null,null,null,null,"обед",null,null,null,null,null,null,null,null,null,null,"06:00:00",null,null,null,null,null,"06:00:00",null,null,null,null,null,"06:00:00",null,null,null,null,null,"01:00:00",null,null,null,null,null," ",null,null,null,null,null,"06:00:00",null,null,null,null,null,"06:00:00",null,null,null,null,null," ",null,null,null,null,null,"06:00:00",null,null,null,null,null,"06:00:00",null,null,null,null,null,"01:00:00",null,null,null,null,null," ",null,null,null,null,null,"05:00:00",null,null,null,null,null,"05:00:00",null,null,null,null,null,"05:00:00",null,null,null,null,null,"05:00:00",null,null,null,null,null,"05:00:00",null,null,null,null,null,"01:00:00",null,null,null,null,null," ",null,null,null,null,null,"05:00:00",null,null,null,null,null,"05:00:00",null,null,null,null,null,"05:00:00",null,null,null,null,null,"05:00:00",null,null,null,null,null,"05:00:00",null,null,null,null,null,"01:00:00",null,null,null,null,null," ",null,null,null,null,null,"05:00:00",null,null,null,null,null,"05:00:00",null,null,null,null,null,"05:00:00",null,null,null,null,null,"05:00:00",null,null,null,null,null,null,null,null,null,null,null,null,null,null,null,null,null,null,null,null,null,null,null,null,null,null,null,null,null,null,null,null,null,null,null,null,null,null,null,null,null,"Бутелин Ю.Н., сторож"]
[null,null,null,null,null,null,null,null,null,null,null,null,null,null,null,null,null,null,null,null,null,null,null,null,null,null,null,null,null,null,null,null,null,null,null,null,null,null,null,null,null,null,null,null,null,null,null,null,null,null,null,null,null,null,null,null,null,null,null,null,null,null,null,null,null,null,null,null,null,null,null,null,null,null,null,null,null,null,null,null,null,null,null,null,null,null,null,null,null,null,null,null,null,null,null,null,null,null,null,null,null,null,null,null,null,null,null,null,null,null,null,null,null,null,null,null,null,null,null,null,null,null,null,null,null,null,null,null,null,null,null,null,null,null,null,null,null,null,null,null,null,null,null,null,null,null,null,null,null,null,null,null,null,null,null,null,null,null,null,null,null,null,null,null,null,null,null,null,null,null,null,null,null,null,null,null,null,null,null,null,null,null,null,null,null,null,null,null,null,null,null,null,null,null,null,null,null,null,null,null,null,null,null,null,null,null,null,null,null,null,null,null,null,null,null,null,null,null,null,null,null,null,null,null,null,null,null,null,null,null,null,null,null,null,null,null,null,null,null,null,null,null,null,null,null,null,null,null,null,null,"Бутелин Ю.Н., контролёр-посадчик"]
[null,null,null,null,null,null,null,null,null,null,null,null,null,null,null,null,null,null,null,null,null,null,null,"пр",null,null,null,null,null,null,null,null,null,null,null,null,null,null,null,null,null,null,null,null,null,null,null,null,null,null,null,null,null,null,null,null,null,null,null,null,null,null,null,null,null,null,null,null,null,null,null,null,null,null,null,null,null,null,null,null,null,null,null,null,null,null,null,null,null,null,null,null,null,null,null,null,null,null,null,null,null,null,null,null,null,null,null,null,null,null,null,null,null,null,null,null,null,null,null,null,null,null,null,null,null,null,null,null,null,null,null,null,null,null,null,null,null,null,null,null,null,null,null,null,null,null,null,null,null,null,null,null,null,null,null,null,null,null,null,null,null,null,null,null,null,null,null,null,null,null,null,null,null,null,null,null,null,null,null,null,null,null,null,null,null,null,null,null,null,null,null,null,null,null,null,null,null,null,null,null,null,null,null,null,null,null,null,null,null,null,null,null,null,null,null,null,null,null,null,null,null,null,null,null,null,null,null,null,null,null,null,null,null,null,null,null,null,null,null,null,null,null,null,null,null,null,null,null,null,null,"Медведев А.П., сторож"]
[]
[2,null,null,null,null,"Медведев А.П., слесарь-ремонтник",null,null,null,null,null,null,null,null,null,null,null,null,null,null,null,null,null,1,null,null,null,null,"В",null,null,null,null,null,0.375,null,null,null,null,null,0.375,null,null,null,null,null,"В",null,null,null,null,null,"В",null,null,null,null,null,0.375,null,null,null,null,null,0.375,null,null,null,null,null,0.375,null,null,null,null,null,"В",null,null,null,null,null,0.375,null,null,null,null,null,"В",null,null,null,null,null,"В",null,null,null,null,null,"В",null,null,null,null,null,0.375,null,null,null,null,null,0.375,null,null,null,null,null,0.375,null,null,null,null,null,0.375,null,null,null,null,null,"В",null,null,null,null,null,"В",null,null,null,null,null,0.375,null,null,null,null,null,0.375,null,null,null,null,null,0.375,null,null,null,null,null,0.375,null,null,null,null,null,0.375,null,null,null,null,null,"В",null,null,null,null,null,"В",null,null,null,null,null,0.375,null,null,null,null,null,0.375,null,null,null,null,null,0.375,null,null,null,null,null,0.375,null,null,null,null,null,0.375,null,null,null,null,null,{"$f":"COUNT(AC27:HF27)","v":20},null,null,null,null,null,null,null,null,null,null,null,null,null,null,null,null,null,{"$f":"SUM(IFERROR(AC28:HF28-AC27:HF27-AC29:HF29,0))","v":5.6250000000000009}]
[null,null,null,null,null,null,null,null,null,null,null,null,null,null,null,null,null,null,null,null,null,null,null,null,null,null,null,null,"В",null,null,null,null,null,0.79166666666666663,null,null,null,null,null,0.79166666666666663,null,null,null,null,null,"В",null,null,null,null,null,"В",null,null,null,null,null,0.79166666666666663,null,null,null,null,null,0.79166666666666663,null,null,null,null,null,0.79166666666666663,null,null,null,null,null,"В",null,null,null,null,null,0.79166666666666663,null,null,null,null,null,"В",null,null,null,null,null,"В",null,null,null,null,null,"В",null,null,null,null,null,0.79166666666666663,null,null,null,null,null,0.79166666666666663,null,null,null,null,null,0.79166666666666663,null,null,null,null,null,0.79166666666666663,null,null,null,null,null,"В",null,null,null,null,null,"В",null,null,null,null,null,0.79166666666666663,null,null,null,null,null,0.79166666666666663,null,null,null,null,null,0.79166666666666663,null,null,null,null,null,0.79166666666666663,null,null,null,null,null,0.79166666666666663,null,null,null,null,null,"В",null,null,null,null,null,"В",null,null,null,null,null,0.79166666666666663,null,null,null,null,null,0.79166666666666663,null,null,null,null,null,0.79166666666666663,null,null,null,null,null,0.79166666666666663,null,null,null,null,null,0.79166666666666663]
[null,null,null,null,null,null,null,null,null,null,null,null,null,null,null,null,null,null,null,null,null,null,null,"обед",null,null,null,null,null,null,null,null,null,null,"03:00:00",null,null,null,null,null,"03:00:00",null,null,null,null,null," ",null,null,null,null,null," ",null,null,null,null,null,"04:00:00",null,null,null,null,null,"04:00:00",null,null,null,null,null,"04:00:00",null,null,null,null,null," ",null,null,null,null,null,"03:00:00",null,null,null,null,null," ",null,null,null,null,null," ",null,null,null,null,null,"04:00:00",null,null,null,null,null,"04:00:00",null,null,null,null,null,"04:00:00",null,null,null,null,null,"03:00:00",null,null,null,null,null,"03:00:00",null,null,null,null,null," ",null,null,null,null,null," ",null,null,null,null,null,"03:00:00",null,null,null,null,null,"03:00:00",null,null,null,null,null,"03:00:00",null,null,null,null,null,"03:00:00",null,null,null,null,null,"03:00:00",null,null,null,null,null,null,null,null,null,null,null,null,null,null,null,null,null,"03:00:00",null,null,null,null,null,"03:00:00",null,null,null,null,null,"03:00:00",null,null,null,null,null,"03:00:00",null,null,null,null,null,"03:00:00"]
[null,null,null,null,null,null,null,null,null,null,null,null,null,null,null,null,null,null,null,null,null,null,null,null,null,null,null,null,null,null,null,null,null,null,null,null,null,null,null,null,null,null,null,null,null,null,null,null,null,null,null,null,null,null,null,null,null,null,null,null,null,null,null,null,null,null,null,null,null,null,null,null,null,null,null,null,null,null,null,null,null,null,null,null,null,null,null,null,null,null,null,null,null,null,null,null,null,null,null,null,null,null,null,null,null,null,null,null,null,null,null,null,null,null,null,null,null,null,null,null,null,null,null,null,null,null,null,null,null,null,null,null,null,null,null,null," "]
[null,null,null,null,null,null,null,null,null,null,null,null,null,null,null,null,null,null,null,null,null,null,null,"пр"]
[]
[3,null,null,null,null,"Береговой Г.П., электрик",null,null,null,null,null,null,null,null,null,null,null,null,null,null,null,null,null,1,null,null,null,null,"В",null,null,null,null,null,"В",null,null,null,null,null,"В",null,null,null,null,null,"В",null,null,null,null,null,"В",null,null,null,null,null,0.375,null,null,null,null,null,0.375,null,null,null,null,null,0.375,null,null,null,null,null,"В",null,null,null,null,null,"В",null,null,null,null,null,"В",null,null,null,null,null,0.375,null,null,null,null,null,0.375,null,null,null,null,null,0.375,null,null,null,null,null,0.375,null,null,null,null,null,"В",null,null,null,null,null,"В",null,null,null,null,null,0.375,null,null,null,null,null,0.375,null,null,null,null,null,0.375,null,null,null,null,null,0.375,null,null,null,null,null,0.375,null,null,null,null,null,"В",null,null,null,null,null,"В",null,null,null,null,null,0.375,null,null,null,null,null,0.375,null,null,null,null,null,0.375,null,null,null,null,null,0.375,null,null,null,null,null,0.375,null,null,null,null,null,"В",null,null,null,null,null,"В",null,null,null,null,null,{"$f":"COUNT(AC33:HF33)","v":17},null,null,null,null,null,null,null,null,null,null,null,null,null,null,null,null,null,{"$f":"SUM(IFERROR(AC34:HF34-AC33:HF33-AC35:HF35,0))","v":5.6249999999999991}]
[null,null,null,null,null,null,null,null,null,null,null,null,null,null,null,null,null,null,null,null,null,null,null,null,null,null,null,null,"В",null,null,null,null,null,"В",null,null,null,null,null,"В",null,null,null,null,null,"В",null,null,null,null,null,"В",null,null,null,null,null,0.75,null,null,null,null,null,0.75,null,null,null,null,null,0.70833333333333337,null,null,null,null,null,"В",null,null,null,null,null,"В",null,null,null,null,null,"В",null,null,null,null,null,0.75,null,null,null,null,null,0.75,null,null,null,null,null,0.75,null,null,null,null,null,0.75,null,null,null,null,null,"В",null,null,null,null,null,"В",null,null,null,null,null,0.75,null,null,null,null,null,0.75,null,null,null,null,null,0.75,null,null,null,null,null,0.75,null,null,null,null,null,0.75,null,null,null,null,null,"В",null,null,null,null,null,"В",null,null,null,null,null,0.75,null,null,null,null,null,0.75,null,null,null,null,null,0.75,null,null,null,null,null,0.75,null,null,null,null,null,0.75,null,null,null,null,null,"В",null,null,null,null,null,"В"]
[null,null,null,null,null,null,null,null,null,null,null,null,null,null,null,null,null,null,null,null,null,null,null,"обед",null,null,null,null,null,null,null,null,null,null,null,null,null,null,null,null,null,null,null,null,null,null,null,null,null,null,null,null,null,null,null,null,null,null,"01:00:00",null,null,null,null,null,"01:00:00",null,null,null,null,null,"01:00:00",null,null,null,null,null,null,null,null,null,null,null,null,null,null,null,null,null,null,null,null,null,null,null,"01:00:00",null,null,null,null,null,"01:00:00",null,null,null,null,null,"01:00:00",null,null,null,null,null,"01:00:00",null,null,null,null,null,null,null,null,null,null,null,null,null,null,null,null,null,"01:00:00",null,null,null,null,null,"01:00:00",null,null,null,null,null,"01:00:00",null,null,null,null,null,"01:00:00",null,null,null,null,null,"01:00:00",null,null,null,null,null,null,null,null,null,null,null,null,null,null,null,null,null,"01:00:00",null,null,null,null,null,"01:00:00",null,null,null,null,null,"01:00:00",null,null,null,null,null,"01:00:00",null,null,null,null,null,"01:00:00",null,null,null,null,null,null,null,null,null,null,null,null,null,null,null,null,null,null,null,null,null,null,null,null,null,null,null,null,null,null,null,null,null,null,null,null,null,null,null,null,null,null,null,0.3125]
[null,null,null,null,null,null,null,null,null,null,null,null,null,null,null,null,null,null,null,null,null,null,null,null,null,null,null,null,null,null,null,null,null,null,null,null,null,null,null,null,null,null,null,null,null,null,null,null,null,null,null,null,null,null,null,null,null,null,null,null,null,null,null,null,null,null,null,null,null,null,null,null,null,null,null,null,null,null,null,null,null,null,null,null,null,null,null,null,null,null,null,null,null,null,null,null,null,null,null,null,null,null,null,null,null,null,null,null,null,null,null,null,null,null,null,null,null,null,null,null,null,null,null,null,null,null,null,null,null,null,null,null,null,null,null,null,null,null,null,null,null,null,null,null,null,null,null,null,null,null,null,null,null,null,null,null,null,null,null,null,null,null,null,null,null,null,null,null,null,null,null,null,null,null,null,null,null,null,null,null,null,null,null,null,null,null,null,null,null,null,null,null,null,null,null,null,null,null,null,null,null,null,null,null,null,null,null,null,null,null,null,null,null,null,null,null,null,null,null,null,null,null,null,null,null,null,null,null,null,null,null,null,null,null,null,null,null,null,null,null,0.375]
[null,null,null,null,null,null,null,null,null,null,null,null,null,null,null,null,null,null,null,null,null,null,null,"пр",null,null,null,null,null,null,null,null,null,null,null,null,null,null,null,null,null,null,null,null,null,null,null,null,null,null,null,null,null,null,null,null,null,null,null,null,null,null,null,null,null,null,null,null,null,null,null,null,null,null,null,null,null,null,null,null,null,null,null,null,null,null,null,null,null,null,null,null,null,null,null,null,null,null,null,null,null,null,null,null,null,null,null,null,null,null,null,null,null,null,null,null,null,null,null,null,null,null,null,null,null,null,null,null,null,null,null,null,null,null,null,null,null,null,null,null,null,null,null,null,null,null,null,null,null,null,null,null,null,null,null,null,null,null,null,null,null,null,null,null,null,null,null,null,null,null,null,null,null,null,null,null,null,null,null,null,null,null,null,null,null,null,null,null,null,null,null,null,null,null,null,null,null,null,null,null,null,null,null,null,null,null,null,null,null,null,null,null,null,null,null,null,null,null,null,null,null,null,null,null,null,null,null,null,null,null,null,null,null,null,null,null,null,null,null,null,0.48958333333333331]
[null,null,null,null,null,null,null,null,null,null,null,null,null,null,null,null,null,null,null,null,null,null,null,null,null,null,null,null,null,null,null,null,null,null,null,null,null,null,null,null,null,null,null,null,null,null,null,null,null,null,null,null,null,null,null,null,null,null,null,null,null,null,null,null,null,null,null,null,null,null,null,null,null,null,null,null,null,null,null,null,null,null,null,null,null,null,null,null,null,null,null,null,null,null,null,null,null,null,null,null,null,null,null,null,null,null,null,null,null,null,null,null,null,null,null,null,null,null,null,null,null,null,null,null,null,null,null,null,null,null,null,null,null,null,null,null,null,null,null,null,null,null,null,null,null,null,null,null,null,null,null,null,null,null,null,null,null,null,null,null,null,null,null,null,null,null,null,null,null,null,null,null,null,null,null,null,null,null,null,null,null,null,null,null,null,null,null,null,null,null,null,null,null,null,null,null,null,null,null,null,null,null,null,null,null,null,null,null,null,null,null,null,null,null,null,null,null,null,null,null,null,null,null,null,null,null,null,null,null,null,null,null,null,null,null,null,null,null,null,null,0.54166666666666663]
[4,null,null,null,null,"Воротынцева В.Н., кассир билетный",null,null,null,null,null,null,null,null,null,null,null,null,null,null,null,null,null,1,null,null,null,null,null,null,null,null,null,null,null,null,null,null,null,null,0.375,null,null,null,null,null,null,null,null,null,null,null,0.375,null,null,null,null,null,null,null,null,null,null,null,0.375,null,null,null,null,null,null,null,null,null,null,null,null,null,null,null,null,null,null,null,null,null,null,null,0.375,null,null,null,null,null,null,null,null,null,null,null,0.375,null,null,null,null,null,null,null,null,null,null,null,0.375,null,null,null,null,null,null,null,null,null,null,null,0.375,null,null,null,null,null,null,null,null,null,null,null,0.375,null,null,null,null,null,null,null,null,null,null,null,0.375,null,null,null,null,null,null,null,null,null,null,null,0.375,null,null,null,null,null,null,null,null,null,null,null,0.375,null,null,null,null,null,null,null,null,null,null,null,0.375,null,null,null,null,null,null,null,null,null,null,null,0.375,null,null,null,null,null,null,null,null,null,null,null,0.375,null,null,null,null,null,{"$f":"COUNT(AC39:HF39)","v":14},null,null,null,null,null,null,null,null,null,null,null,null,null,null,null,null,null,{"$f":"SUM(IFERROR(AC40:HF40-AC39:HF39-AC41:HF41,0))","v":5.6249999999999991},null,null,null,null,null,null,null,0.70833333333333337]
[null,null,null,null,null,null,null,null,null,null,null,null,null,null,null,null,null,null,null,null,null,null,null,null,null,null,null,null,null,null,null,null,null,null,null,null,null,null,null,null,0.79166666666666663,null,null,null,null,null,null,null,null,null,null,null,0.79166666666666663,null,null,null,null,null,null,null,null,null,null,null,0.79166666666666663,null,null,null,null,null,null,null,null,null,null,null,null,null,null,null,null,null,null,null,null,null,null,null,0.79166666666666663,null,null,null,null,null,null,null,null,null,null,null,0.83333333333333337,null,null,null,null,null,null,null,null,null,null,null,0.83333333333333337,null,null,null,null,null,null,null,null,null,null,null,0.83333333333333337,null,null,null,null,null,null,null,null,null,null,null,0.83333333333333337,null,null,null,null,null,null,null,null,null,null,null,0.83333333333333337,null,null,null,null,null,null,null,null,null,null,null,0.83333333333333337,null,null,null,null,null,null,null,null,null,null,null,0.83333333333333337,null,null,null,null,null,null,null,null,null,null,null,0.83333333333333337,null,null,null,null,null,null,null,null,null,null,null,0.83333333333333337,null,null,null,null,null,null,null,null,null,null,null,0.83333333333333337,null,null,null,null,null,null,null,null,null,null,null,null,null,null,null,null,null,null,null,null,null,null,null,null,null,null,null,null,null,null,null,0.72916666666666663]
[null,null,null,null,null,null,null,null,null,null,null,null,null,null,null,null,null,null,null,null,null,null,null,"обед",null,null,null,null,null,null,null,null,null,null,null,null,null,null,null,null,"01:00:00",null,null,null,null,null,null,null,null,null,null,null,"01:00:00",null,null,null,null,null,null,null,null,null,null,null,"01:00:00",null,null,null,null,null,null,null,null,null,null,null,null,null,null,null,null,null,null,null,null,null,null,null,"01:00:00",null,null,null,null,null,null,null,null,null,null,null,"01:00:00",null,null,null,null,null,null,null,null,null,null,null,"01:00:00",null,null,null,null,null,null,null,null,null,null,null,"01:00:00",null,null,null,null,null,null,null,null,null,null,null,"01:00:00",null,null,null,null,null,null,null,null,null,null,null,"01:00:00",null,null,null,null,null,null,null,null,null,null,null,"01:00:00",null,null,null,null,null,null,null,null,null,null,null,"01:00:00",null,null,null,null,null,null,null,null,null,null,null,"01:00:00",null,null,null,null,null,null,null,null,null,null,null,"01:30:00",null,null,null,null,null,null,null,null,null,null,null,"01:30:00",null,null,null,null,null,null,null,null,null,null,null,null,null,null,null,null,null,null,null,null,null,null,null,null,null,null,null,null,null,null,null,0.79166666666666663]
[null,null,null,null,null,null,null,null,null,null,null,null,null,null,null,null,null,null,null,null,null,null,null,null,null,null,null,null,null,null,null,null,null,null,null,null,null,null,null,null,null,null,null,null,null,null,null,null,null,null,null,null,null,null,null,null,null,null,null,null,null,null,null,null,null,null,null,null,null,null,null,null,null,null,null,null,null,null,null,null,null,null,null,null,null,null,null,null,null,null,null,null,null,null,null,null,null,null,null,null,null,null,null,null,null,null,null,null,null,null,null,null,null,null,null,null,null,null,null,null,null,null,null,null,null,null,null,null,null,null,null,null,null,null,null,null,null,null,null,null,null,null,null,null,null,null,null,null,null,null,null,null,null,null,null,null,null,null,null,null,null,null,null,null,null,null,null,null,null,null,null,null,null,null,null,null,null,null,null,null,null,null,null,null,null,null,null,null,null,null,null,null,null,null,null,null,null,null,null,null,null,null,null,null,null,null,null,null,null,null,null,null,null,null,null,null,null,null,null,null,null,null,null,null,null,null,null,null,null,null,null,null,null,null,null,null,null,null,null,null,0.75]
[null,null,null,null,null,null,null,null,null,null,null,null,null,null,null,null,null,null,null,null,null,null,null,"пр",null,null,null,null,null,null,null,null,null,null,null,null,null,null,null,null,null,null,null,null,null,null,null,null,null,null,null,null,null,null,null,null,null,null,null,null,null,null,null,null,null,null,null,null,null,null,null,null,null,null,null,null,null,null,null,null,null,null,null,null,null,null,null,null,null,null,null,null,null,null,null,null,null,null,null,null,null,null,null,null,null,null,null,null,null,null,null,null,null,null,null,null,null,null,null,null,null,null,null,null,null,null,null,null,null,null,null,null,null,null,null,null,null,null,null,null,null,null,null,null,null,null,null,null,null,null,null,null,null,null,null,null,null,null,null,null,null,null,null,null,null,null,null,null,null,null,null,null,null,null,null,null,null,null,null,null,null,null,null,null,null,null,null,null,null,null,null,null,null,null,null,null,null,null,null,null,null,null,null,null,null,null,null,null,null,null,null,null,null,null,null,null,null,null,null,null,null,null,null,null,null,null,null,null,null,null,null,null,null,null,null,null,null,null,null,null,0.77083333333333337]
[null,null,null,null,null,null,null,null,null,null,null,null,null,null,null,null,null,null,null,null,null,null,null,null,null,null,null,null,null,null,null,null,null,null,null,null,null,null,null,null,null,null,null,null,null,null,null,null,null,null,null,null,null,null,null,null,null,null,null,null,null,null,null,null,null,null,null,null,null,null,null,null,null,null,null,null,null,null,null,null,null,null,null,null,null,null,null,null,null,null,null,null,null,null,null,null,null,null,null,null,null,null,null,null,null,null,null,null,null,null,null,null,null,null,null,null,null,null,null,null,null,null,null,null,null,null,null,null,null,null,null,null,null,null,null,null,null,null,null,null,null,null,null,null,null,null,null,null,null,null,null,null,null,null,null,null,null,null,null,null,null,null,null,null,null,null,null,null,null,null,null,null,null,null,null,null,null,null,null,null,null,null,null,null,null,null,null,null,null,null,null,null,null,null,null,null,null,null,null,null,null,null,null,null,null,null,null,null,null,null,null,null,null,null,null,null,null,null,null,null,null,null,null,null,null,null,null,null,null,null,null,null,null,null,null,null,null,null,null,null,0.625]
[5,null,null,null,null,"Окорочкова О.Т., кассир билетный",null,null,null,null,null,null,null,null,null,null,null,null,null,null,null,null,null,1,null,null,null,null,null,null,null,null,null,null,0.375,null,null,null,null,null,null,null,null,null,null,null,0.375,null,null,null,null,null,null,null,null,null,null,null,0.375,null,null,null,null,null,null,null,null,null,null,null,0.375,null,null,null,null,null,null,null,null,null,null,null,0.375,null,null,null,null,null,null,null,null,null,null,null,0.375,null,null,null,null,null,null,null,null,null,null,null,0.375,null,null,null,null,null,null,null,null,null,null,null,0.375,null,null,null,null,null,null,null,null,null,null,null,0.375,null,null,null,null,null,null,null,null,null,null,null,0.375,null,null,null,null,null,null,null,null,null,null,null,0.375,null,null,null,null,null,null,null,null,null,null,null,0.375,null,null,null,null,null,null,null,null,null,null,null,0.375,null,null,null,null,null,null,null,null,null,null,null,0.375,null,null,null,null,null,null,null,null,null,null,null,0.375,null,null,null,null,null,null,null,null,null,null,null,{"$f":"COUNT(AC45:HF45)","v":15},null,null,null,null,null,null,null,null,null,null,null,null,null,null,null,null,null,{"$f":"SUM(IFERROR(AC46:HF46-AC45:HF45-AC47:HF47,0))","v":5.6249999999999991},null,null,null,null,null,null,null,0.875]
[null,null,null,null,null,null,null,null,null,null,null,null,null,null,null,null,null,null,null,null,null,null,null,null,null,null,null,null,null,null,null,null,null,null,0.79166666666666663,null,null,null,null,null,null,null,null,null,null,null,0.79166666666666663,null,null,null,null,null,null,null,null,null,null,null,0.79166666666666663,null,null,null,null,null,null,null,null,null,null,null,0.79166666666666663,null,null,null,null,null,null,null,null,null,null,null,0.79166666666666663,null,null,null,null,null,null,null,null,null,null,null,0.79166666666666663,null,null,null,null,null,null,null,null,null,null,null,0.79166666666666663,null,null,null,null,null,null,null,null,null,null,null,0.79166666666666663,null,null,null,null,null,null,null,null,null,null,null,0.79166666666666663,null,null,null,null,null,null,null,null,null,null,null,0.79166666666666663,null,null,null,null,null,null,null,null,null,null,null,0.79166666666666663,null,null,null,null,null,null,null,null,null,null,null,0.79166666666666663,null,null,null,null,null,null,null,null,null,null,null,0.79166666666666663,null,null,null,null,null,null,null,null,null,null,null,0.79166666666666663,null,null,null,null,null,null,null,null,null,null,null,0.79166666666666663,null,null,null,null,null,null,null,null,null,null,null,null,null,null,null,null,null,null,null,null,null,null,null,null,null,null,null,null,null,null,null,null,null,null,null,null,null,0.58333333333333337]
[null,null,null,null,null,null,null,null,null,null,null,null,null,null,null,null,null,null,null,null,null,null,null,"обед",null,null,null,null,null,null,null,null,null,null,"01:00:00",null,null,null,null,null,null,null,null,null,null,null,"01:00:00",null,null,null,null,null,null,null,null,null,null,null,"01:00:00",null,null,null,null,null,null,null,null,null,null,null,"01:00:00",null,null,null,null,null,null,null,null,null,null,null,"01:00:00",null,null,null,null,null,null,null,null,null,null,null,"01:00:00",null,null,null,null,null,null,null,null,null,null,null,"01:00:00",null,null,null,null,null,null,null,null,null,null,null,"01:00:00",null,null,null,null,null,null,null,null,null,null,null,"01:00:00",null,null,null,null,null,null,null,null,null,null,null,"01:00:00",null,null,null,null,null,null,null,null,null,null,null,"01:00:00",null,null,null,null,null,null,null,null,null,null,null,"01:00:00",null,null,null,null,null,null,null,null,null,null,null,"01:00:00",null,null,null,null,null,null,null,null,null,null,null,"01:00:00",null,null,null,null,null,null,null,null,null,null,null,"01:00:00",null,null,null,null,null,null,null,null,null,null,null,null,null,null,null,null,null,null,null,null,null,null,null,null,null,null,null,null,null,null,null,null,null,null,null,null,null,0.83333333333333337]
[null,null,null,null,null,null,null,null,null,null,null,null,null,null,null,null,null,null,null,null,null,null,null,null,null,null,null,null,null,null,null,null,null,null,null,null,null,null,null,null,null,null,null,null,null,null,null,null,null,null,null,null,null,null,null,null,null,null,null,null,null,null,null,null,null,null,null,null,null,null,null,null,null,null,null,null,null,null,null,null,null,null,null,null,null,null,null,null,null,null,null,null,null,null,null,null,null,null,null,null,null,null,null,null,null,null,null,null,null,null,null,null,null,null,null,null,null,null,null,null,null,null,null,null,null,null,null,null,null,null,null,null,null,null,null,null,null,null,null,null,null,null,null,null,null,null,null,null,null,null,null,null,null,null,null,null,null,null,null,null,null,null,null,null,null,null,null,null,null,null,null,null,null,null,null,null,null,null,null,null,null,null,null,null,null,null,null,null,null,null,null,null,null,null,null,null,null,null,null,null,null,null,null,null,null,null,null,null,null,null,null,null,null,null,null,null,null,null,null,null,null,null,null,null,null,null,null,null,null,null,null,null,null,null,null,null,null,null,null,null,0.66666666666666663]
[null,null,null,null,null,null,null,null,null,null,null,null,null,null,null,null,null,null,null,null,null,null,null,"пр",null,null,null,null,null,null,null,null,null,null,null,null,null,null,null,null,null,null,null,null,null,null,null,null,null,null,null,null,null,null,null,null,null,null,null,null,null,null,null,null,null,null,null,null,null,null,null,null,null,null,null,null,null,null,null,null,null,null,null,null,null,null,null,null,null,null,null,null,null,null,null,null,null,null,null,null,null,null,null,null,null,null,null,null,null,null,null,null,null,null,null,null,null,null,null,null,null,null,null,null,null,null,null,null,null,null,null,null,null,null,null,null,null,null,null,null,null,null,null,null,null,null,null,null,null,null,null,null,null,null,null,null,null,null,null,null,null,null,null,null,null,null,null,null,null,null,null,null,null,null,null,null,null,null,null,null,null,null,null,null,null,null,null,null,null,null,null,null,null,null,null,null,null,null,null,null,null,null,null,null,null,null,null,null,null,null,null,null,null,null,null,null,null,null,null,null,null,null,null,null,null,null,null,null,null,null,null,null,null,null,null,null,null,null,null,null,0.9375]
[null,null,null,null,null,null,null,null,null,null,null,null,null,null,null,null,null,null,null,null,null,null,null,null,null,null,null,null,null,null,null,null,null,null,null,null,null,null,null,null,null,null,null,null,null,null,null,null,null,null,null,null,null,null,null,null,null,null,null,null,null,null,null,null,null,null,null,null,null,null,null,null,null,null,null,null,null,null,null,null,null,null,null,null,null,null,null,null,null,null,null,null,null,null,null,null,null,null,null,null,null,null,null,null,null,null,null,null,null,null,null,null,null,null,null,null,null,null,null,null,null,null,null,null,null,null,null,null,null,null,null,null,null,null,null,null,null,null,null,null,null,null,null,null,null,null,null,null,null,null,null,null,null,null,null,null,null,null,null,null,null,null,null,null,null,null,null,null,null,null,null,null,null,null,null,null,null,null,null,null,null,null,null,null,null,null,null,null,null,null,null,null,null,null,null,null,null,null,null,null,null,null,null,null,null,null,null,null,null,null,null,null,null,null,null,null,null,null,null,null,null,null,null,null,null,null,null,null,null,null,null,null,null,null,null,null,null,null,null,null,0.95833333333333337]
[6,null,null,null,null,"Пермякова Т.М., контролёр-посадчик аттракциона",null,null,null,null,null,null,null,null,null,null,null,null,null,null,null,null,null,1,null,null,null,null,null,null,null,null,null,null,null,null,null,null,null,null,0.375,null,null,null,null,null,null,null,null,null,null,null,0.375,null,null,null,null,null,null,null,null,null,null,null,0.375,null,null,null,null,null,null,null,null,null,null,null,null,null,null,null,null,null,null,null,null,null,null,null,0.375,null,null,null,null,null,null,null,null,null,null,null,0.375,null,null,null,null,null,null,null,null,null,null,null,0.375,null,null,null,null,null,null,null,null,null,null,null,0.375,null,null,null,null,null,null,null,null,null,null,null,0.375,null,null,null,null,null,null,null,null,null,null,null,0.375,null,null,null,null,null,null,null,null,null,null,null,0.375,null,null,null,null,null,null,null,null,null,null,null,0.375,null,null,null,null,null,null,null,null,null,null,null,0.375,null,null,null,null,null,null,null,null,null,null,null,0.375,null,null,null,null,null,null,null,null,null,null,null,0.375,null,null,null,null,null,{"$f":"COUNT(AC51:HF51)","v":14},null,null,null,null,null,null,null,null,null,null,null,null,null,null,null,null,null,{"$f":"SUM(IFERROR(AC52:HF52-AC51:HF51-AC53:HF53,0))","v":5.6249999999999991},null,null,null,null,null,null,null,0.97916666666666663]
[null,null,null,null,null,null,null,null,null,null,null,null,null,null,null,null,null,null,null,null,null,null,null,null,null,null,null,null,null,null,null,null,null,null,null,null,null,null,null,null,0.79166666666666663,null,null,null,null,null,null,null,null,null,null,null,0.79166666666666663,null,null,null,null,null,null,null,null,null,null,null,0.79166666666666663,null,null,null,null,null,null,null,null,null,null,null,null,null,null,null,null,null,null,null,null,null,null,null,0.79166666666666663,null,null,null,null,null,null,null,null,null,null,null,0.83333333333333337,null,null,null,null,null,null,null,null,null,null,null,0.83333333333333337,null,null,null,null,null,null,null,null,null,null,null,0.83333333333333337,null,null,null,null,null,null,null,null,null,null,null,0.83333333333333337,null,null,null,null,null,null,null,null,null,null,null,0.83333333333333337,null,null,null,null,null,null,null,null,null,null,null,0.83333333333333337,null,null,null,null,null,null,null,null,null,null,null,0.83333333333333337,null,null,null,null,null,null,null,null,null,null,null,0.83333333333333337,null,null,null,null,null,null,null,null,null,null,null,0.83333333333333337,null,null,null,null,null,null,null,null,null,null,null,0.83333333333333337,null,null,null,null,null,null,null,null,null,null,null,null,null,null,null,null,null,null,null,null,null,null,null,null,null,null,null,null,null,null,null,1]
[null,null,null,null,null,null,null,null,null,null,null,null,null,null,null,null,null,null,null,null,null,null,null,"обед",null,null,null,null,null,null,null,null,null,null,null,null,null,null,null,null,"01:00:00",null,null,null,null,null,null,null,null,null,null,null,"01:00:00",null,null,null,null,null,null,null,null,null,null,null,"01:00:00",null,null,null,null,null,null,null,null,null,null,null,null,null,null,null,null,null,null,null,null,null,null,null,"01:00:00",null,null,null,null,null,null,null,null,null,null,null,"01:00:00",null,null,null,null,null,null,null,null,null,null,null,"01:00:00",null,null,null,null,null,null,null,null,null,null,null,"01:00:00",null,null,null,null,null,null,null,null,null,null,null,"01:00:00",null,null,null,null,null,null,null,null,null,null,null,"01:00:00",null,null,null,null,null,null,null,null,null,null,null,"01:00:00",null,null,null,null,null,null,null,null,null,null,null,"01:00:00",null,null,null,null,null,null,null,null,null,null,null,"01:00:00",null,null,null,null,null,null,null,null,null,null,null,"01:30:00",null,null,null,null,null,null,null,null,null,null,null,"01:30:00"]
[null,null,null,null,null,null,null,null,null,null,null,null,null,null,null,null,null,null,null,null,null,null,null,null,null,null,null,null,null,null,null,null,null,null,null,null,null,null,null,null,null,null,null,null,null,null,null,null,null,null,null,null,null,null,null,null,null,null,null,null,null,null,null,null,null,null,null,null,null,null,null,null,null,null,null,null,null,null,null,null,null,null,null,null,null,null,null,null,null,null,null,null,null,null,null,null,null,null,null,null,null,null,null,null,null,null,null,null,null,null,null,null,null,null,null,null,null,null,null,null,null,null,null,null,null,null,null,null,null,null,null,null,null,null,null,null,null,null,null,null,null,null,null,null,null,null,null,null,null,null,null,null,null,null,null,null,null,null,null,null,null,null,null,null,null,null,null,null,null,null,null,null,null,null,null,null,null,null,null,null,null,null,null,null,null,null,null,null,null,null,null,null,null,null,null,null,null,null,null,null,null,null,null,null,null,null,null,null,null,null,null,null,null,null,null,null,null,null,null,null,null,null,null,null,null,null,null,null,null,null,null,null,null,null,null,null,null,null,null,null,"В"]
[null,null,null,null,null,null,null,null,null,null,null,null,null,null,null,null,null,null,null,null,null,null,null,"пр",null,null,null,null,null,null,null,null,null,null,null,null,null,null,null,null,null,null,null,null,null,null,null,null,null,null,null,null,null,null,null,null,null,null,null,null,null,null,null,null,null,null,null,null,null,null,null,null,null,null,null,null,null,null,null,null,null,null,null,null,null,null,null,null,null,null,null,null,null,null,null,null,null,null,null,null,null,null,null,null,null,null,null,null,null,null,null,null,null,null,null,null,null,null,null,null,null,null,null,null,null,null,null,null,null,null,null,null,null,null,null,null,null,null,null,null,null,null,null,null,null,null,null,null,null,null,null,null,null,null,null,null,null,null,null,null,null,null,null,null,null,null,null,null,null,null,null,null,null,null,null,null,null,null,null,null,null,null,null,null,null,null,null,null,null,null,null,null,null,null,null,null,null,null,null,null,null,null,null,null,null,null,null,null,null,null,null,null,null,null,null,null,null,null,null,null,null,null,null,null,null,null,null,null,null,null,null,null,null,null,null,null,null,null,null,null,"Б"]
[null,null,null,null,null,null,null,null,null,null,null,null,null,null,null,null,null,null,null,null,null,null,null,null,null,null,null,null,null,null,null,null,null,null,null,null,null,null,null,null,null,null,null,null,null,null,null,null,null,null,null,null,null,null,null,null,null,null,null,null,null,null,null,null,null,null,null,null,null,null,null,null,null,null,null,null,null,null,null,null,null,null,null,null,null,null,null,null,null,null,null,null,null,null,null,null,null,null,null,null,null,null,null,null,null,null,null,null,null,null,null,null,null,null,null,null,null,null,null,null,null,null,null,null,null,null,null,null,null,null,null,null,null,null,null,null,null,null,null,null,null,null,null,null,null,null,null,null,null,null,null,null,null,null,null,null,null,null,null,null,null,null,null,null,null,null,null,null,null,null,null,null,null,null,null,null,null,null,null,null,null,null,null,null,null,null,null,null,null,null,null,null,null,null,null,null,null,null,null,null,null,null,null,null,null,null,null,null,null,null,null,null,null,null,null,null,null,null,null,null,null,null,null,null,null,null,null,null,null,null,null,null,null,null,null,null,null,null,null,null,"К"]
[7,null,null,null,null,"Алексеева Р.И., котролёр-посадчик аттракциона",null,null,null,null,null,null,null,null,null,null,null,null,null,null,null,null,null,1,null,null,null,null,null,null,null,null,null,null,0.375,null,null,null,null,null,null,null,null,null,null,null,0.375,null,null,null,null,null,null,null,null,null,null,null,0.375,null,null,null,null,null,null,null,null,null,null,null,0.375,null,null,null,null,null,null,null,null,null,null,null,0.375,null,null,null,null,null,null,null,null,null,null,null,0.375,null,null,null,null,null,null,null,null,null,null,null,0.375,null,null,null,null,null,null,null,null,null,null,null,0.375,null,null,null,null,null,null,null,null,null,null,null,0.375,null,null,null,null,null,null,null,null,null,null,null,0.375,null,null,null,null,null,null,null,null,null,null,null,0.375,null,null,null,null,null,null,null,null,null,null,null,0.375,null,null,null,null,null,null,null,null,null,null,null,0.375,null,null,null,null,null,null,null,null,null,null,null,0.375,null,null,null,null,null,null,null,null,null,null,null,0.375,null,null,null,null,null,null,null,null,null,null,null,{"$f":"COUNT(AC57:HF57)","v":15},null,null,null,null,null,null,null,null,null,null,null,null,null,null,null,null,null,{"$f":"SUM(IFERROR(AC58:HF58-AC57:HF57-AC59:HF59,0))","v":5.6249999999999991},null,null,null,null,null,null,null,"О"]
[null,null,null,null,null,null,null,null,null,null,null,null,null,null,null,null,null,null,null,null,null,null,null,null,null,null,null,null,null,null,null,null,null,null,0.79166666666666663,null,null,null,null,null,null,null,null,null,null,null,0.79166666666666663,null,null,null,null,null,null,null,null,null,null,null,0.79166666666666663,null,null,null,null,null,null,null,null,null,null,null,0.79166666666666663,null,null,null,null,null,null,null,null,null,null,null,0.79166666666666663,null,null,null,null,null,null,null,null,null,null,null,0.79166666666666663,null,null,null,null,null,null,null,null,null,null,null,0.79166666666666663,null,null,null,null,null,null,null,null,null,null,null,0.79166666666666663,null,null,null,null,null,null,null,null,null,null,null,0.79166666666666663,null,null,null,null,null,null,null,null,null,null,null,0.79166666666666663,null,null,null,null,null,null,null,null,null,null,null,0.79166666666666663,null,null,null,null,null,null,null,null,null,null,null,0.79166666666666663,null,null,null,null,null,null,null,null,null,null,null,0.79166666666666663,null,null,null,null,null,null,null,null,null,null,null,0.79166666666666663,null,null,null,null,null,null,null,null,null,null,null,0.79166666666666663,null,null,null,null,null,null,null,null,null,null,null,null,null,null,null,null,null,null,null,null,null,null,null,null,null,null,null,null,null,null,null,null,null,null,null,null,null,"П"]
[null,null,null,null,null,null,null,null,null,null,null,null,null,null,null,null,null,null,null,null,null,null,null,"обед",null,null,null,null,null,null,null,null,null,null,"01:00:00",null,null,null,null,null,null,null,null,null,null,null,"01:00:00",null,null,null,null,null,null,null,null,null,null,null,"01:00:00",null,null,null,null,null,null,null,null,null,null,null,"01:00:00",null,null,null,null,null,null,null,null,null,null,null,"01:00:00",null,null,null,null,null,null,null,null,null,null,null,"01:00:00",null,null,null,null,null,null,null,null,null,null,null,"01:00:00",null,null,null,null,null,null,null,null,null,null,null,"01:00:00",null,null,null,null,null,null,null,null,null,null,null,"01:00:00",null,null,null,null,null,null,null,null,null,null,null,"01:00:00",null,null,null,null,null,null,null,null,null,null,null,"01:00:00",null,null,null,null,null,null,null,null,null,null,null,"01:00:00",null,null,null,null,null,null,null,null,null,null,null,"01:00:00",null,null,null,null,null,null,null,null,null,null,null,"01:00:00",null,null,null,null,null,null,null,null,null,null,null,"01:00:00"]
[null,null,null,null,null,null,null,null,null,null,null,null,null,null,null,null,null,null,null,null,null,null,null,null,null,null,null,null,null,null,null,null,null,null,null,null,null,null,null,null,null,null,null,null,null,null,null,null,null,null,null,null,null,null,null,null,null,null,null,null,null,null,null,null,null,null,null,null,null,null,null,null,null,null,null,null,null,null,null,null,null,null,null,null,null,null,null,null,null,null,null,null,null,null,null,null,null,null,null,null,null,null,null,null,null,null,null,null,null,null,null,null,null,null,null,null,null,null,null,null,null,null,null,null,null,null,null,null,null,null,null,null,null,null,null,null,null,null,null,null,null,null,null,null,null,null,null,null,null,null,null,null,null,null,null,null,null,null,null,null,null,null,null,null,null,null,null,null,null,null,null,null,null,null,null,null,null,null,null,null,null,null,null,null,null,null,null,null,null,null,null,null,null,null,null,null,null,null,null,null,null,null,null,null,null,null,null,null,null,null,null,null,null,null,null,null,null,null,null,null,null,null,null,null,null,null,null,null,null,null,null,null,null,null,null,null,null,null,null,null,"С"]
[null,null,null,null,null,null,null,null,null,null,null,null,null,null,null,null,null,null,null,null,null,null,null,"пр"]
[]
[8,null,null,null,null,"Перминов К.И., дежурный зала",null,null,null,null,null,null,null,null,null,null,null,null,null,null,null,null,null,1,null,null,null,null,"В",null,null,null,null,null,0.375,null,null,null,null,null,0.375,null,null,null,null,null,0.41666666666666669,null,null,null,null,null,"В",null,null,null,null,null,0.375,null,null,null,null,null,0.375,null,null,null,null,null,0.375,null,null,null,null,null,"В",null,null,null,null,null,"В",null,null,null,null,null,"В",null,null,null,null,null,"В",null,null,null,null,null,0.375,null,null,null,null,null,0.375,null,null,null,null,null,0.375,null,null,null,null,null,0.375,null,null,null,null,null,0.375,null,null,null,null,null,0.41666666666666669,null,null,null,null,null,"В",null,null,null,null,null,0.375,null,null,null,null,null,0.375,null,null,null,null,null,0.375,null,null,null,null,null,0.375,null,null,null,null,null,0.375,null,null,null,null,null,0.41666666666666669,null,null,null,null,null,"В",null,null,null,null,null,0.375,null,null,null,null,null,0.375,null,null,null,null,null,0.375,null,null,null,null,null,0.375,null,null,null,null,null,0.375,null,null,null,null,null,{"$f":"COUNT(AC63:HF63)","v":23},null,null,null,null,null,null,null,null,null,null,null,null,null,null,null,null,null,{"$f":"SUM(IFERROR(AC64:HF64-AC63:HF63-AC65:HF65,0))","v":5.6249999999999991}]
[null,null,null,null,null,null,null,null,null,null,null,null,null,null,null,null,null,null,null,null,null,null,null,null,null,null,null,null,"В",null,null,null,null,null,0.79166666666666663,null,null,null,null,null,0.79166666666666663,null,null,null,null,null,0.66666666666666663,null,null,null,null,null,"В",null,null,null,null,null,0.79166666666666663,null,null,null,null,null,0.79166666666666663,null,null,null,null,null,0.79166666666666663,null,null,null,null,null,"В",null,null,null,null,null,"В",null,null,null,null,null,"В",null,null,null,null,null,"В",null,null,null,null,null,0.79166666666666663,null,null,null,null,null,0.79166666666666663,null,null,null,null,null,0.79166666666666663,null,null,null,null,null,0.79166666666666663,null,null,null,null,null,0.79166666666666663,null,null,null,null,null,0.66666666666666663,null,null,null,null,null,"В",null,null,null,null,null,0.79166666666666663,null,null,null,null,null,0.79166666666666663,null,null,null,null,null,0.79166666666666663,null,null,null,null,null,0.79166666666666663,null,null,null,null,null,0.79166666666666663,null,null,null,null,null,0.66666666666666663,null,null,null,null,null,"В",null,null,null,null,null,0.79166666666666663,null,null,null,null,null,0.79166666666666663,null,null,null,null,null,0.79166666666666663,null,null,null,null,null,0.79166666666666663,null,null,null,null,null,0.79166666666666663]
[null,null,null,null,null,null,null,null,null,null,null,null,null,null,null,null,null,null,null,null,null,null,null,"обед",null,null,null,null,null,null,null,null,null,null,"04:00:00",null,null,null,null,null,"04:00:00",null,null,null,null,null,"01:00:00",null,null,null,null,null,null,null,null,null,null,null,"04:00:00",null,null,null,null,null,"04:00:00",null,null,null,null,null,"04:00:00",null,null,null,null,null,null,null,null,null,null,null,null,null,null,null,null,null," ",null,null,null,null,null,null,null,null,null,null,null,"04:00:00",null,null,null,null,null,"04:00:00",null,null,null,null,null,"04:00:00",null,null,null,null,null,"04:00:00",null,null,null,null,null,"04:00:00",null,null,null,null,null,"01:00:00",null,null,null,null,null,null,null,null,null,null,null,"04:00:00",null,null,null,null,null,"04:00:00",null,null,null,null,null,"04:00:00",null,null,null,null,null,"04:00:00",null,null,null,null,null,"04:00:00",null,null,null,null,null,"01:00:00",null,null,null,null,null,null,null,null,null,null,null,"04:00:00",null,null,null,null,null,"04:00:00",null,null,null,null,null,"04:00:00",null,null,null,null,null,"04:00:00",null,null,null,null,null,"04:00:00"]
[]
[null,null,null,null,null,null,null,null,null,null,null,null,null,null,null,null,null,null,null,null,null,null,null,"пр"]
[]
[9,null,null,null,null,"Перминов К.И., кассир",null,null,null,null,null,null,null,null,null,null,null,null,null,null,null,null,null,0.25,null,null,null,null,null,null,null,null,null,null,0.375,null,null,null,null,null,0.375,null,null,null,null,null,0.375,null,null,null,null,null,null,null,null,null,null,null,0.375,null,null,null,null,null,0.375,null,null,null,null,null,0.375,null,null,null,null,null,null,null,null,null,null,null,null,null,null,null,null,null,null,null,null,null,null,null,null,null,null,null,null,null,0.375,null,null,null,null,null,0.375,null,null,null,null,null,0.375,null,null,null,null,null,0.375,null,null,null,null,null,0.375,null,null,null,null,null,0.375,null,null,null,null,null,null,null,null,null,null,null,0.375,null,null,null,null,null,0.375,null,null,null,null,null,0.375,null,null,null,null,null,0.375,null,null,null,null,null,0.375,null,null,null,null,null,0.375,null,null,null,null,null,null,null,null,null,null,null,0.375,null,null,null,null,null,0.375,null,null,null,null,null,0.375,null,null,null,null,null,0.375,null,null,null,null,null,0.375,null,null,null,null,null,{"$f":"COUNT(AC69:HF69)","v":23},null,null,null,null,null,null,null,null,null,null,null,null,null,null,null,null,null,{"$f":"SUM(IFERROR(AC70:HF70-AC69:HF69-AC71:HF71,0))","v":1.4062499999999996}]
[null,null,null,null,null,null,null,null,null,null,null,null,null,null,null,null,null,null,null,null,null,null,null,null,null,null,null,null,null,null,null,null,null,null,0.41666666666666669,null,null,null,null,null,0.41666666666666669,null,null,null,null,null,0.41666666666666669,null,null,null,null,null,null,null,null,null,null,null,0.41666666666666669,null,null,null,null,null,0.41666666666666669,null,null,null,null,null,0.41666666666666669,null,null,null,null,null,null,null,null,null,null,null,null,null,null,null,null,null,null,null,null,null,null,null,null,null,null,null,null,null,0.41666666666666669,null,null,null,null,null,0.41666666666666669,null,null,null,null,null,0.41666666666666669,null,null,null,null,null,0.41666666666666669,null,null,null,null,null,0.41666666666666669,null,null,null,null,null,0.41666666666666669,null,null,null,null,null,null,null,null,null,null,null,0.41666666666666669,null,null,null,null,null,0.45833333333333331,null,null,null,null,null,0.45833333333333331,null,null,null,null,null,0.45833333333333331,null,null,null,null,null,0.45833333333333331,null,null,null,null,null,0.45833333333333331,null,null,null,null,null,null,null,null,null,null,null,0.45833333333333331,null,null,null,null,null,0.45833333333333331,null,null,null,null,null,0.45833333333333331,null,null,null,null,null,0.45833333333333331,null,null,null,null,null,0.48958333333333331]
[null,null,null,null,null,null,null,null,null,null,null,null,null,null,null,null,null,null,null,null,null,null,null,"обед"]
[]
[null,null,null,null,null,null,null,null,null,null,null,null,null,null,null,null,null,null,null,null,null,null,null,"пр"]
[]
[10,null,null,null,null,"Бутелин Ю.Н., сторож",null,null,null,null,null,null,null,null,null,null,null,null,null,null,null,null,null,1,null,null,null,null,"В",null,null,null,null,null,0.83333333333333337,null,null,null,null,null,"В",null,null,null,null,null,"В",null,null,null,null,null,0.83333333333333337,null,null,null,null,null,"В",null,null,null,null,null,"В",null,null,null,null,null,0.83333333333333337,null,null,null,null,null,"В",null,null,null,null,null,"В",null,null,null,null,null,0.83333333333333337,null,null,null,null,null,"В",null,null,null,null,null,"В",null,null,null,null,null,0.83333333333333337,null,null,null,null,null,"В",null,null,null,null,null,"В",null,null,null,null,null,0.79166666666666663,null,null,null,null,null,"В",null,null,null,null,null,"В",null,null,null,null,null,0.79166666666666663,null,null,null,null,null,"В",null,null,null,null,null,"В",null,null,null,null,null,0.79166666666666663,null,null,null,null,null,"В",null,null,null,null,null,"В",null,null,null,null,null,0.79166666666666663,null,null,null,null,null,"В",null,null,null,null,null,"В",null,null,null,null,null,0.79166666666666663,null,null,null,null,null,"В",null,null,null,null,null,"В",null,null,null,null,null,{"$f":"COUNT(AC75:HF75)","v":10},null,null,null,null,null,null,null,null,null,null,null,null,null,null,null,null,null,{"$f":"SUM(IF(ISNUMBER(AC75:HF75),AC76:HF76-AC75:HF75+(AC76:HF76<AC75:HF75),))*24","v":134.99999999999997}]
[null,null,null,null,null,null,null,null,null,null,null,null,null,null,null,null,null,null,null,null,null,null,null,null,null,null,null,null,"В",null,null,null,null,null,0.375,null,null,null,null,null,"В",null,null,null,null,null,"В",null,null,null,null,null,0.375,null,null,null,null,null,"В",null,null,null,null,null,"В",null,null,null,null,null,0.375,null,null,null,null,null,"В",null,null,null,null,null,"В",null,null,null,null,null,0.375,null,null,null,null,null,"В",null,null,null,null,null,"В",null,null,null,null,null,0.375,null,null,null,null,null,"В",null,null,null,null,null,"В",null,null,null,null,null,0.375,null,null,null,null,null,"В",null,null,null,null,null,"В",null,null,null,null,null,0.375,null,null,null,null,null,"В",null,null,null,null,null,"В",null,null,null,null,null,0.375,null,null,null,null,null,"В",null,null,null,null,null,"В",null,null,null,null,null,0.375,null,null,null,null,null,"В",null,null,null,null,null,"В",null,null,null,null,null,0.375,null,null,null,null,null,"В",null,null,null,null,null,"В"]
[null,null,null,null,null,null,null,null,null,null,null,null,null,null,null,null,null,null,null,null,null,null,null,null,null,null,null,null,null,null,null,null,null,null,13,null,null,null,null,null,null,null,null,null,null,null,null,null,null,null,null,null,13,null,null,null,null,null,null,null,null,null,null,null,null,null,null,null,null,null,13,null,null,null,null,null,null,null,null,null,null,null,null,null,null,null,null,null,13,null,null,null,null,null,null,null,null,null,null,null,null,null,null,null,null,null,13,null,null,null,null,null,null,null,null,null,null,null,null,null,null,null,null,null,14,null,null,null,null,null,null,null,null,null,null,null,null,null,null,null,null,null,14,null,null,null,null,null,null,null,null,null,null,null,null,null,null,null,null,null,14,null,null,null,null,null,null,null,null,null,null,null,null,null,null,null,null,null,14,null,null,null,null,null,null,null,null,null,null,null,null,null,null,null,null,null,14,null,null,null,null,null,null,null,null,null,null,null,null,null,null,null,null,null,null,null,null,null,null,null,null,null,null,null,null,null,null,null,null,null,null,null,{"$f":"SUM(AC77:HF77)","v":135}]
[]
[null,null,null,null,null,null,null,null,null,null,null,null,null,null,null,null,null,null,null,null,null,null,null,"НОЧЬ",null,null,null,null,null,null,null,null,null,null,{"$f":"(MIN(AI76,6/24)-MIN(AI75,6/24)+MAX(AI76,22/24)-MAX(AI75,22/24))*24+(AI76<AI75)*8","v":8},null,null,null,null,null,null,null,null,null,null,null,null,null,null,null,null,null,{"$f":"(MIN(BA76,6/24)-MIN(BA75,6/24)+MAX(BA76,22/24)-MAX(BA75,22/24))*24+(BA76<BA75)*8","v":8},null,null,null,null,null,null,null,null,null,null,null,null,null,null,null,null,null,{"$f":"(MIN(BS76,6/24)-MIN(BS75,6/24)+MAX(BS76,22/24)-MAX(BS75,22/24))*24+(BS76<BS75)*8","v":8},null,null,null,null,null,null,null,null,null,null,null,null,null,null,null,null,null,{"$f":"(MIN(CK76,6/24)-MIN(CK75,6/24)+MAX(CK76,22/24)-MAX(CK75,22/24))*24+(CK76<CK75)*8","v":8},null,null,null,null,null,null,null,null,null,null,null,null,null,null,null,null,null,{"$f":"(MIN(DC76,6/24)-MIN(DC75,6/24)+MAX(DC76,22/24)-MAX(DC75,22/24))*24+(DC76<DC75)*8","v":8},null,null,null,null,null,null,null,null,null,null,null,null,null,null,null,null,null,{"$f":"(MIN(DU76,6/24)-MIN(DU75,6/24)+MAX(DU76,22/24)-MAX(DU75,22/24))*24+(DU76<DU75)*8","v":8},null,null,null,null,null,null,null,null,null,null,null,null,null,null,null,null,null,{"$f":"(MIN(EM76,6/24)-MIN(EM75,6/24)+MAX(EM76,22/24)-MAX(EM75,22/24))*24+(EM76<EM75)*8","v":8},null,null,null,null,null,null,null,null,null,null,null,null,null,null,null,null,null,{"$f":"(MIN(FE76,6/24)-MIN(FE75,6/24)+MAX(FE76,22/24)-MAX(FE75,22/24))*24+(FE76<FE75)*8","v":8},null,null,null,null,null,null,null,null,null,null,null,null,null,null,null,null,null,{"$f":"(MIN(FW76,6/24)-MIN(FW75,6/24)+MAX(FW76,22/24)-MAX(FW75,22/24))*24+(FW76<FW75)*8","v":8},null,null,null,null,null,null,null,null,null,null,null,null,null,null,null,null,null,{"$f":"(MIN(GO76,6/24)-MIN(GO75,6/24)+MAX(GO76,22/24)-MAX(GO75,22/24))*24+(GO76<GO75)*8","v":8},null,null,null,null,null,null,null,null,null,null,null,null,null,null,null,null,null,null,null,null,null,null,null,null,null,null,null,null,null,null,null,null,null,null,null,{"$f":"SUM(AC79:HF79)","v":80}]
[]
[null,null,null,null,null,null,null,null,null,null,null,null,null,null,null,null,null,null,null,null,null,null,null,"пр",null,null,null,null,null,null,null,null,null,null,null,null,null,null,null,null,null,null,null,null,null,null,null,null,null,null,null,null,null,null,null,null,null,null,null,null,null,null,null,null,null,null,null,null,null,null,9,null,null,null,null,null,null,null,null,null,null,null,null,null,null,null,null,null,null,null,null,null,null,null,null,null,null,null,null,null,null,null,null,null,null,null,null,null,null,null,null,null,null,null,null,null,null,null,null,null,null,null,null,null,null,null,null,null,null,null,null,null,null,null,null,null,null,null,null,null,null,null,null,null,null,null,null,null,null,null,null,null,null,null,null,null,null,null,null,null,null,null,null,null,null,null,null,null,null,null,null,null,null,null,null,null,null,null,null,null,null,null,null,null,null,null,null,null,null,null,null,null,null,null,null,null,null,null,null,null,null,null,null,null,null,null,null,null,null,null,null,null,null,null,null,null,null,null,null,null,null,null,null,null,null,null,null,null,null,null,null,null,{"$f":"SUM(AC81:HF81)","v":9}]
[]
[11,null,null,null,null,"Бутелин Ю.Н., контролёр-посадчик",null,null,null,null,null,null,null,null,null,null,null,null,null,null,null,null,null,0.25,null,null,null,null,null,null,null,null,null,null,3,null,null,null,null,null,null,null,null,null,null,null,null,null,null,null,null,null,3,null,null,null,null,null,null,null,null,null,null,null,null,null,null,null,null,null,3,null,null,null,null,null,null,null,null,null,null,null,null,null,null,null,null,null,3,null,null,null,null,null,null,null,null,null,null,null,null,null,null,null,null,null,3,null,null,null,null,null,null,null,null,null,null,null,null,null,null,null,null,null,3,null,null,null,null,null,null,null,null,null,null,null,null,null,null,null,null,null,4,null,null,null,null,null,null,null,null,null,null,null,null,null,null,null,null,null,4,null,null,null,null,null,null,null,null,null,null,null,null,null,null,null,null,null,4,null,null,null,null,null,null,null,null,null,null,null,null,null,null,null,null,null,3.45,null,null,null,null,null,null,null,null,null,null,null,null,null,null,null,null,null,{"$f":"COUNT(AC83:HF83)","v":10},null,null,null,null,null,null,null,null,null,null,null,null,null,null,null,null,null,{"$f":"SUM(AC83:HF83)","v":33.450000000000003}]
[]
[]
[]
[null,null,null,null,null,null,null,null,null,null,null,null,null,null,null,null,null,null,null,null,null,null,null,"пр",null,null,null,null,null,null,null,null,null,null,null,null,null,null,null,null,null,null,null,null,null,null,null,null,null,null,null,null,null,null,null,null,null,null,null,null,null,null,null,null,null,null,null,null,null,null,3,null,null,null,null,null,null,null,null,null,null,null,null,null,null,null,null,null,null,null,null,null,null,null,null,null,null,null,null,null,null,null,null,null,null,null,null,null,null,null,null,null,null,null,null,null,null,null,null,null,null,null,null,null,null,null,null,null,null,null,null,null,null,null,null,null,null,null,null,null,null,null,null,null,null,null,null,null,null,null,null,null,null,null,null,null,null,null,null,null,null,null,null,null,null,null,null,null,null,null,null,null,null,null,null,null,null,null,null,null,null,null,null,null,null,null,null,null,null,null,null,null,null,null,null,null,null,null,null,null,null,null,null,null,null,null,null,null,null,null,null,null,null,null,null,null,null,null,null,null,null,null,null,null,null,null,null,null,null,null,null,null,{"$f":"SUM(AC87:HF87)","v":3}]
[]
[12,null,null,null,null,"Медведев А.П., сторож",null,null,null,null,null,null,null,null,null,null,null,null,null,null,null,null,null,1,null,null,null,null,null,null,null,null,null,null,null,null,null,null,null,null,2.0833333333333332E-2,null,null,null,null,null,null,null,null,null,null,null,null,null,null,null,null,null,2.0833333333333332E-2,null,null,null,null,null,null,null,null,null,null,null,null,null,null,null,null,null,2.0833333333333332E-2,null,null,null,null,null,null,null,null,null,null,null,null,null,null,null,null,null,2.0833333333333332E-2,null,null,null,null,null,null,null,null,null,null,null,null,null,null,null,null,null,2.0833333333333332E-2,null,null,null,null,null,null,null,null,null,null,null,null,null,null,null,null,null,2.0833333333333332E-2,null,null,null,null,null,null,null,null,null,null,null,null,null,null,null,null,null,2.0833333333333332E-2,null,null,null,null,null,null,null,null,null,null,null,null,null,null,null,null,null,6.25E-2,null,null,null,null,null,null,null,null,null,null,null,null,null,null,null,null,null,6.25E-2,null,null,null,null,null,null,null,null,null,null,null,null,null,null,null,null,null,4.1666666666666664E-2,null,null,null,null,null,null,null,null,null,null,null,{"$f":"COUNT(AC89:HF89)","v":10},null,null,null,null,null,null,null,null,null,null,null,null,null,null,null,null,null,{"$f":"SUM(IFERROR(AC90:HF90-AC89:HF89-AC91:HF91,0))","v":2.8125000000000004}]
[null,null,null,null,null,null,null,null,null,null,null,null,null,null,null,null,null,null,null,null,null,null,null,null,null,null,null,null,null,null,null,null,null,null,null,null,null,null,null,null,0.3125,null,null,null,null,null,null,null,null,null,null,null,null,null,null,null,null,null,0.3125,null,null,null,null,null,null,null,null,null,null,null,null,null,null,null,null,null,0.3125,null,null,null,null,null,null,null,null,null,null,null,null,null,null,null,null,null,0.3125,null,null,null,null,null,null,null,null,null,null,null,null,null,null,null,null,null,0.3125,null,null,null,null,null,null,null,null,null,null,null,null,null,null,null,null,null,0.3125,null,null,null,null,null,null,null,null,null,null,null,null,null,null,null,null,null,0.3125,null,null,null,null,null,null,null,null,null,null,null,null,null,null,null,null,null,0.3125,null,null,null,null,null,null,null,null,null,null,null,null,null,null,null,null,null,0.3125,null,null,null,null,null,null,null,null,null,null,null,null,null,null,null,null,null,0.3125]
[null,null,null,null,null,null,null,null,null,null,null,null,null,null,null,null,null,null,null,null,null,null,null,"обед"]
[]
[null,null,null,null,null,null,null,null,null,null,null,null,null,null,null,null,null,null,null,null,null,null,null,"НОЧЬ",null,null,null,null,null,null,null,null,null,null,null,null,null,null,null,null,{"$f":"(MIN(AO90,6/24)-MIN(AO89,6/24)+MAX(AO90,22/24)-MAX(AO89,22/24))*24+(AO90<AO89)*8","v":5.4999999999999991},null,null,null,null,null,null,null,null,null,null,null,null,null,null,null,null,null,{"$f":"(MIN(BG90,6/24)-MIN(BG89,6/24)+MAX(BG90,22/24)-MAX(BG89,22/24))*24+(BG90<BG89)*8","v":5.4999999999999991},null,null,null,null,null,null,null,null,null,null,null,null,null,null,null,null,null,{"$f":"(MIN(BY90,6/24)-MIN(BY89,6/24)+MAX(BY90,22/24)-MAX(BY89,22/24))*24+(BY90<BY89)*8","v":5.4999999999999991},null,null,null,null,null,null,null,null,null,null,null,null,null,null,null,null,null,{"$f":"(MIN(CQ90,6/24)-MIN(CQ89,6/24)+MAX(CQ90,22/24)-MAX(CQ89,22/24))*24+(CQ90<CQ89)*8","v":5.4999999999999991},null,null,null,null,null,null,null,null,null,null,null,null,null,null,null,null,null,{"$f":"(MIN(DI90,6/24)-MIN(DI89,6/24)+MAX(DI90,22/24)-MAX(DI89,22/24))*24+(DI90<DI89)*8","v":5.4999999999999991},null,null,null,null,null,null,null,null,null,null,null,null,null,null,null,null,null,{"$f":"(MIN(EA90,6/24)-MIN(EA89,6/24)+MAX(EA90,22/24)-MAX(EA89,22/24))*24+(EA90<EA89)*8","v":5.4999999999999991},null,null,null,null,null,null,null,null,null,null,null,null,null,null,null,null,null,{"$f":"(MIN(ES90,6/24)-MIN(ES89,6/24)+MAX(ES90,22/24)-MAX(ES89,22/24))*24+(ES90<ES89)*8","v":5.4999999999999991},null,null,null,null,null,null,null,null,null,null,null,null,null,null,null,null,null,{"$f":"(MIN(FK90,6/24)-MIN(FK89,6/24)+MAX(FK90,22/24)-MAX(FK89,22/24))*24+(FK90<FK89)*8","v":4.4999999999999973},null,null,null,null,null,null,null,null,null,null,null,null,null,null,null,null,null,{"$f":"(MIN(GC90,6/24)-MIN(GC89,6/24)+MAX(GC90,22/24)-MAX(GC89,22/24))*24+(GC90<GC89)*8","v":4.4999999999999973},null,null,null,null,null,null,null,null,null,null,null,null,null,null,null,null,null,{"$f":"(MIN(GU90,6/24)-MIN(GU89,6/24)+MAX(GU90,22/24)-MAX(GU89,22/24))*24+(GU90<GU89)*8","v":5.0000000000000009},null,null,null,null,null,null,null,null,null,null,null,null,null,null,null,null,null,null,null,null,null,null,null,null,null,null,null,null,null,{"$f":"SUM(AC93:HF93)","v":52.499999999999993}]
[]
[null,null,null,null,null,null,null,null,null,null,null,null,null,null,null,null,null,null,null,null,null,null,null,"пр",null,null,null,null,null,null,null,null,null,null,null,null,null,null,null,null,null,null,null,null,null,null,null,null,null,null,null,null,null,null,null,null,null,null,null,null,null,null,null,null,null,null,null,null,null,null,null,null,null,null,null,null,7,null,null,null,null,null,null,null,null,null,null,null,null,null,null,null,null,null,null,null,null,null,null,null,null,null,null,null,null,null,null,null,null,null,null,null,null,null,null,null,null,null,null,null,null,null,null,null,null,null,null,null,null,null,null,null,null,null,null,null,null,null,null,null,null,null,null,null,null,null,null,null,null,null,null,null,null,null,null,null,null,null,null,null,null,null,null,null,null,null,null,null,null,null,null,null,null,null,null,null,null,null,null,null,null,null,null,null,null,null,null,null,null,null,null,null,null,null,null,null,null,null,null,null,null,null,null,null,null,null,null,null,null,null,null,null,null,null,null,null,null,null,null,null,null,null,null,null,null,null,null,null,null,null,null,null,{"$f":"SUM(AC95:HF95)","v":7}]

{"sheet":"К.П. ИЮНЬ 2020 ","index":1,"n_rows":95,"n_cols":257,"rows_kept":95,"cut":false,"hidden":false,"merged":[[94,208,94,213],[94,214,95,220],[94,221,95,228],[95,208,95,213],[94,172,94,177],[94,178,94,183],[94,184,94,189],[94,190,94,195],[94,196,94,201],[94,130,94,135],[94,136,94,141],[94,142,94,147],[94,148,94,153],[94,154,94,159],[94,160,94,165],[95,172,95,177],[95,178,95,183],[95,184,95,189],[95,190,95,195],[95,196,95,201],[94,166,94,171],[94,23,95,27],[94,28,94,33],[94,34,94,39],[94,40,94,45],[94,46,94,51],[94,52,94,57],[95,202,95,207],[95,136,95,141],[95,142,95,147],[95,148,95,153],[95,154,95,159],[95,160,95,165],[95,166,95,171],[95,100,95,105],[95,106,95,111],[95,112,95,117],[95,118,95,123],[95,124,95,129],[95,130,95,135],[94,202,94,207],[95,64,95,69],[95,70,95,75],[95,76,95,81],[95,82,95,87],[95,88,95,93],[95,94,95,99],[95,28,95,33],[95,34,95,39],[95,40,95,45],[95,46,95,51],[95,52,95,57],[95,58,95,63],[94,58,94,63],[94,64,94,69],[94,70,94,75],[94,94,94,99],[94,100,94,105],[94,106,94,111],[94,112,94,117],[94,118,94,123],[94,124,94,129],[94,76,94,81],[94,82,94,87],[94,88,94,93],[92,221,93,228],[93,28,93,33],[93,34,93,39],[93,40,93,45],[93,46,93,51],[93,52,93,57],[93,58,93,63],[93,64,93,69],[93,70,93,75],[93,76,93,81],[92,184,92,189],[92,190,92,195],[92,196,92,201],[92,202,92,207],[92,208,92,213],[92,214,93,220],[93,190,93,195],[93,196,93,201],[93,202,93,207],[93,208,93,213],[92,148,92,153],[92,154,92,159],[92,160,92,165],[92,166,92,171],[92,172,92,177],[92,178,92,183],[92,112,92,117],[92,118,92,123],[92,124,92,129],[92,130,92,135],[92,136,92,141],[92,142,92,147],[92,76,92,81],[92,82,92,87],[92,88,92,93],[92,94,92,99],[92,100,92,105],[92,106,92,111],[93,172,93,177],[93,178,93,183],[93,184,93,189],[93,118,93,123],[93,124,93,129],[93,130,93,135],[93,136,93,141],[93,142,93,147],[93,148,93,153],[93,82,93,87],[93,88,93,93],[93,154,93,159],[93,160,93,165],[93,166,93,171],[93,94,93,99],[93,100,93,105],[93,106,93,111],[93,112,93,117],[91,208,91,213],[92,23,93,27],[92,28,92,33],[92,34,92,39],[92,40,92,45],[92,46,92,51],[92,52,92,57],[92,58,92,63],[92,64,92,69],[92,70,92,75],[91,172,91,177],[91,178,91,183],[91,184,91,189],[91,190,91,195],[91,196,91,201],[91,202,91,207],[91,136,91,141],[91,142,91,147],[91,148,91,153],[91,154,91,159],[91,160,91,165],[91,166,91,171],[91,100,91,105],[91,106,91,111],[91,112,91,117],[91,118,91,123],[91,124,91,129],[91,130,91,135],[91,64,91,69],[91,70,91,75],[91,76,91,81],[91,82,91,87],[91,88,91,93],[91,94,91,99],[90,202,90,207],[90,208,90,213],[90,214,91,220],[91,28,91,33],[91,34,91,39],[91,40,91,45],[91,46,91,51],[91,52,91,57],[91,58,91,63],[90,166,90,171],[90,172,90,177],[90,178,90,183],[90,184,90,189],[90,190,90,195],[90,196,90,201],[90,130,90,135],[90,136,90,141],[90,142,90,147],[90,148,90,153],[90,154,90,159],[90,160,90,165],[90,94,90,99],[90,100,90,105],[90,106,90,111],[90,112,90,117],[90,118,90,123],[90,124,90,129],[90,58,90,63],[90,64,90,69],[90,70,90,75],[90,76,90,81],[90,82,90,87],[90,88,90,93],[90,23,91,27],[90,28,90,33],[90,34,90,39],[90,40,90,45],[90,46,90,51],[90,52,90,57],[89,172,89,177],[89,178,89,183],[89,184,89,189],[89,190,89,195],[89,196,89,201],[89,202,89,207],[89,136,89,141],[89,142,89,147],[89,148,89,153],[89,154,89,159],[89,160,89,165],[89,166,89,171],[89,100,89,105],[89,106,89,111],[89,112,89,117],[89,118,89,123],[89,124,89,129],[89,130,89,135],[89,64,89,69],[89,70,89,75],[89,76,89,81],[89,82,89,87],[89,88,89,93],[89,94,89,99],[89,28,89,33],[89,34,89,39],[89,40,89,45],[89,46,89,51],[89,52,89,57],[89,58,89,63],[88,184,88,189],[88,190,88,195],[88,196,88,201],[88,202,88,207],[88,208,88,213],[88,214,89,220],[89,208,89,213],[88,148,88,153],[88,154,88,159],[88,160,88,165],[88,166,88,171],[88,172,88,177],[88,178,88,183],[88,112,88,117],[88,118,88,123],[88,124,88,129],[88,130,88,135],[88,136,88,141],[88,142,88,147],[88,76,88,81],[88,82,88,87],[88,88,88,93],[88,94,88,99],[88,100,88,105],[88,106,88,111],[88,40,88,45],[88,46,88,51],[88,52,88,57],[88,58,88,63],[88,64,88,69],[88,70,88,75],[87,184,87,189],[87,190,87,195],[87,196,87,201],[87,202,87,207],[87,208,87,213],[88,0,95,4],[88,5,95,22],[88,23,89,27],[88,28,88,33],[88,34,88,39],[87,148,87,153],[87,154,87,159],[87,160,87,165],[87,166,87,171],[87,172,87,177],[87,178,87,183],[87,112,87,117],[87,118,87,123],[87,124,87,129],[87,130,87,135],[87,136,87,141],[87,142,87,147],[87,76,87,81],[87,82,87,87],[87,88,87,93],[87,94,87,99],[87,100,87,105],[87,106,87,111],[86,214,87,220],[86,221,87,228],[87,28,87,33],[87,34,87,39],[87,40,87,45],[87,46,87,51],[87,52,87,57],[87,58,87,63],[87,64,87,69],[87,70,87,75],[86,178,86,183],[86,184,86,189],[86,190,86,195],[86,196,86,201],[86,202,86,207],[86,208,86,213],[86,142,86,147],[86,148,86,153],[86,154,86,159],[86,160,86,165],[86,166,86,171],[86,172,86,177],[86,106,86,111],[86,112,86,117],[86,118,86,123],[86,124,86,129],[86,130,86,135],[86,136,86,141],[86,70,86,75],[86,76,86,81],[86,82,86,87],[86,88,86,93],[86,94,86,99],[86,100,86,105],[85,202,85,207],[85,208,85,213],[86,23,87,27],[86,28,86,33],[86,34,86,39],[86,40,86,45],[86,46,86,51],[86,52,86,57],[86,58,86,63],[86,64,86,69],[85,166,85,171],[85,172,85,177],[85,178,85,183],[85,184,85,189],[85,190,85,195],[85,196,85,201],[85,130,85,135],[85,136,85,141],[85,142,85,147],[85,148,85,153],[85,154,85,159],[85,160,85,165],[85,94,85,99],[85,100,85,105],[85,106,85,111],[85,112,85,117],[85,118,85,123],[85,124,85,129],[85,58,85,63],[85,64,85,69],[85,70,85,75],[85,76,85,81],[85,82,85,87],[85,88,85,93],[84,196,84,201],[84,202,84,207],[84,208,84,213],[84,214,85,220],[84,221,85,228],[85,28,85,33],[85,34,85,39],[85,40,85,45],[85,46,85,51],[85,52,85,57],[84,160,84,165],[84,166,84,171],[84,172,84,177],[84,178,84,183],[84,184,84,189],[84,190,84,195],[84,124,84,129],[84,130,84,135],[84,136,84,141],[84,142,84,147],[84,148,84,153],[84,154,84,159],[84,88,84,93],[84,94,84,99],[84,100,84,105],[84,106,84,111],[84,112,84,117],[84,118,84,123],[84,52,84,57],[84,58,84,63],[84,64,84,69],[84,70,84,75],[84,76,84,81],[84,82,84,87],[83,184,83,189],[83,190,83,195],[83,196,83,201],[83,202,83,207],[83,208,83,213],[84,23,85,27],[84,28,84,33],[84,34,84,39],[84,40,84,45],[84,46,84,51],[83,148,83,153],[83,154,83,159],[83,160,83,165],[83,166,83,171],[83,172,83,177],[83,178,83,183],[83,112,83,117],[83,118,83,123],[83,124,83,129],[83,130,83,135],[83,136,83,141],[83,142,83,147],[83,76,83,81],[83,82,83,87],[83,88,83,93],[83,94,83,99],[83,100,83,105],[83,106,83,111],[82,208,82,213],[82,214,83,220],[83,28,83,33],[83,34,83,39],[83,40,83,45],[83,46,83,51],[83,52,83,57],[83,58,83,63],[83,64,83,69],[83,70,83,75],[82,172,82,177],[82,178,82,183],[82,184,82,189],[82,190,82,195],[82,196,82,201],[82,202,82,207],[82,136,82,141],[82,142,82,147],[82,148,82,153],[82,154,82,159],[82,160,82,165],[82,166,82,171],[82,100,82,105],[82,106,82,111],[82,112,82,117],[82,118,82,123],[82,124,82,129],[82,130,82,135],[82,64,82,69],[82,70,82,75],[82,76,82,81],[82,82,82,87],[82,88,82,93],[82,94,82,99],[81,208,81,213],[82,0,87,4],[82,5,87,22],[82,23,83,27],[82,28,82,33],[82,34,82,39],[82,40,82,45],[82,46,82,51],[82,52,82,57],[82,58,82,63],[81,172,81,177],[81,178,81,183],[81,184,81,189],[81,190,81,195],[81,196,81,201],[81,202,81,207],[81,136,81,141],[81,142,81,147],[81,148,81,153],[81,154,81,159],[81,160,81,165],[81,166,81,171],[81,100,81,105],[81,106,81,111],[81,112,81,117],[81,130,81,135],[80,202,80,207],[80,208,80,213],[80,214,81,220],[80,221,81,228],[81,28,81,33],[81,34,81,39],[81,40,81,45],[81,46,81,51],[81,52,81,57],[81,58,81,63],[80,166,80,171],[80,172,80,177],[80,178,80,183],[80,184,80,189],[80,190,80,195],[80,196,80,201],[80,130,80,135],[80,136,80,141],[80,142,80,147],[80,148,80,153],[80,154,80,159],[80,160,80,165],[80,94,80,99],[80,100,80,105],[80,106,80,111],[80,112,80,117],[80,118,80,123],[80,124,80,129],[80,58,80,63],[80,64,80,69],[80,70,80,75],[80,76,80,81],[80,82,80,87],[80,88,80,93],[80,23,81,27],[80,28,80,33],[80,34,80,39],[80,40,80,45],[80,46,80,51],[80,52,80,57],[81,118,81,123],[81,124,81,129],[79,154,79,159],[81,64,81,69],[81,70,81,75],[81,76,81,81],[81,82,81,87],[81,88,81,93],[81,94,81,99],[79,160,79,165],[79,166,79,171],[79,172,79,177],[79,178,79,183],[79,184,79,189],[79,118,79,123],[79,124,79,129],[79,130,79,135],[79,136,79,141],[79,142,79,147],[79,148,79,153],[79,82,79,87],[79,88,79,93],[79,94,79,99],[79,100,79,105],[79,106,79,111],[79,112,79,117],[78,221,79,228],[79,28,79,33],[79,34,79,39],[79,40,79,45],[79,46,79,51],[79,52,79,57],[79,58,79,63],[79,64,79,69],[79,70,79,75],[79,76,79,81],[78,184,78,189],[78,190,78,195],[78,196,78,201],[78,202,78,207],[78,208,78,213],[78,214,79,220],[79,190,79,195],[79,196,79,201],[79,202,79,207],[79,208,79,213],[78,148,78,153],[78,154,78,159],[78,160,78,165],[78,166,78,171],[78,172,78,177],[78,178,78,183],[78,112,78,117],[78,118,78,123],[78,124,78,129],[78,130,78,135],[78,136,78,141],[78,142,78,147],[78,76,78,81],[78,82,78,87],[78,88,78,93],[78,94,78,99],[78,100,78,105],[78,106,78,111],[77,208,77,213],[78,23,79,27],[78,28,78,33],[78,34,78,39],[78,40,78,45],[78,46,78,51],[78,52,78,57],[78,58,78,63],[78,64,78,69],[78,70,78,75],[77,172,77,177],[77,178,77,183],[77,184,77,189],[77,190,77,195],[77,196,77,201],[77,202,77,207],[77,136,77,141],[77,142,77,147],[77,148,77,153],[77,154,77,159],[77,160,77,165],[77,166,77,171],[77,100,77,105],[77,106,77,111],[77,112,77,117],[77,118,77,123],[76,202,76,207],[76,208,76,213],[76,214,77,220],[76,221,77,228],[77,28,77,33],[77,34,77,39],[77,40,77,45],[77,46,77,51],[77,52,77,57],[77,58,77,63],[76,166,76,171],[76,172,76,177],[76,178,76,183],[76,184,76,189],[76,190,76,195],[76,196,76,201],[76,130,76,135],[76,136,76,141],[76,142,76,147],[76,148,76,153],[76,154,76,159],[76,160,76,165],[76,94,76,99],[76,100,76,105],[76,106,76,111],[76,112,76,117],[76,118,76,123],[76,124,76,129],[76,58,76,63],[76,64,76,69],[76,70,76,75],[76,76,76,81],[76,82,76,87],[76,88,76,93],[76,23,77,27],[76,28,76,33],[76,34,76,39],[76,40,76,45],[76,46,76,51],[76,52,76,57],[75,178,75,183],[75,70,75,75],[75,76,75,81],[75,82,75,87],[75,88,75,93],[75,94,75,99],[75,100,75,105],[77,124,77,129],[77,130,77,135],[77,64,77,69],[77,70,77,75],[77,76,77,81],[77,82,77,87],[77,88,77,93],[77,94,77,99],[75,184,75,189],[75,190,75,195],[75,196,75,201],[75,202,75,207],[75,208,75,213],[75,142,75,147],[75,148,75,153],[75,154,75,159],[75,160,75,165],[75,166,75,171],[75,172,75,177],[75,106,75,111],[75,112,75,117],[75,118,75,123],[75,124,75,129],[75,130,75,135],[75,136,75,141],[74,202,74,207],[74,208,74,213],[74,214,75,220],[75,28,75,33],[75,34,75,39],[75,40,75,45],[75,46,75,51],[75,52,75,57],[75,58,75,63],[75,64,75,69],[74,166,74,171],[74,172,74,177],[74,178,74,183],[74,184,74,189],[74,190,74,195],[74,196,74,201],[74,130,74,135],[74,136,74,141],[74,142,74,147],[74,148,74,153],[74,154,74,159],[74,160,74,165],[74,94,74,99],[74,100,74,105],[74,106,74,111],[74,112,74,117],[74,118,74,123],[74,124,74,129],[74,58,74,63],[74,64,74,69],[74,70,74,75],[74,76,74,81],[74,82,74,87],[74,88,74,93],[73,202,73,207],[73,208,73,213],[74,0,81,4],[74,5,81,22],[74,23,75,27],[74,28,74,33],[74,34,74,39],[74,40,74,45],[74,46,74,51],[74,52,74,57],[73,166,73,171],[73,172,73,177],[73,178,73,183],[73,184,73,189],[73,190,73,195],[73,196,73,201],[73,130,73,135],[73,136,73,141],[73,142,73,147],[73,148,73,153],[73,154,73,159],[73,160,73,165],[73,94,73,99],[73,100,73,105],[73,106,73,111],[73,112,73,117],[73,118,73,123],[73,124,73,129],[73,58,73,63],[73,64,73,69],[73,70,73,75],[73,76,73,81],[73,82,73,87],[73,88,73,93],[72,196,72,201],[72,202,72,207],[72,208,72,213],[72,214,73,220],[72,221,73,228],[73,28,73,33],[73,34,73,39],[73,40,73,45],[73,46,73,51],[73,52,73,57],[72,160,72,165],[72,166,72,171],[72,172,72,177],[72,178,72,183],[72,184,72,189],[72,190,72,195],[72,124,72,129],[72,130,72,135],[72,136,72,141],[72,142,72,147],[72,148,72,153],[72,154,72,159],[72,88,72,93],[72,94,72,99],[72,100,72,105],[72,106,72,111],[72,112,72,117],[72,118,72,123],[72,52,72,57],[72,58,72,63],[72,64,72,69],[72,70,72,75],[72,76,72,81],[72,82,72,87],[71,184,71,189],[71,190,71,195],[71,196,71,201],[71,202,71,207],[71,208,71,213],[72,23,73,27],[72,28,72,33],[72,34,72,39],[72,40,72,45],[72,46,72,51],[71,148,71,153],[71,154,71,159],[71,160,71,165],[71,166,71,171],[71,172,71,177],[71,178,71,183],[71,112,71,117],[71,118,71,123],[71,124,71,129],[71,130,71,135],[71,136,71,141],[71,142,71,147],[71,76,71,81],[71,82,71,87],[71,88,71,93],[71,94,71,99],[71,100,71,105],[71,106,71,111],[70,214,71,220],[70,221,71,228],[71,28,71,33],[71,34,71,39],[71,40,71,45],[71,46,71,51],[71,52,71,57],[71,58,71,63],[71,64,71,69],[71,70,71,75],[70,178,70,183],[70,184,70,189],[70,190,70,195],[70,196,70,201],[70,202,70,207],[70,208,70,213],[70,142,70,147],[70,148,70,153],[70,154,70,159],[70,160,70,165],[70,166,70,171],[70,172,70,177],[70,106,70,111],[70,112,70,117],[70,118,70,123],[70,124,70,129],[70,130,70,135],[70,136,70,141],[70,70,70,75],[70,76,70,81],[70,52,70,57],[70,58,70,63],[70,64,70,69],[69,166,69,171],[69,172,69,177],[69,178,69,183],[69,184,69,189],[69,190,69,195],[69,196,69,201],[69,130,69,135],[69,136,69,141],[69,142,69,147],[69,148,69,153],[69,154,69,159],[69,160,69,165],[69,94,69,99],[69,100,69,105],[69,106,69,111],[69,112,69,117],[69,118,69,123],[69,124,69,129],[68,190,68,195],[68,196,68,201],[68,202,68,207],[68,208,68,213],[68,214,69,220],[69,28,69,33],[69,34,69,39],[69,40,69,45],[69,46,69,51],[69,52,69,57],[68,154,68,159],[68,160,68,165],[68,166,68,171],[68,172,68,177],[68,178,68,183],[68,184,68,189],[68,118,68,123],[68,124,68,129],[68,130,68,135],[68,136,68,141],[68,142,68,147],[68,148,68,153],[68,82,68,87],[68,88,68,93],[68,94,68,99],[68,100,68,105],[69,202,69,207],[69,208,69,213],[68,106,68,111],[68,112,68,117],[68,46,68,51],[68,52,68,57],[68,58,68,63],[68,64,68,69],[68,70,68,75],[68,76,68,81],[68,0,73,4],[68,5,73,22],[68,23,69,27],[68,28,68,33],[68,34,68,39],[68,40,68,45],[67,154,67,159],[67,160,67,165],[67,166,67,171],[69,58,69,63],[69,64,69,69],[69,70,69,75],[69,76,69,81],[69,82,69,87],[69,88,69,93],[70,82,70,87],[70,88,70,93],[70,94,70,99],[70,100,70,105],[70,23,71,27],[70,28,70,33],[70,34,70,39],[70,40,70,45],[70,46,70,51],[67,94,67,99],[67,100,67,105],[67,106,67,111],[67,112,67,117],[66,221,67,228],[67,28,67,33],[67,34,67,39],[67,40,67,45],[67,46,67,51],[67,52,67,57],[67,58,67,63],[67,64,67,69],[67,70,67,75],[67,76,67,81],[66,184,66,189],[66,190,66,195],[66,196,66,201],[66,202,66,207],[66,208,66,213],[66,214,67,220],[67,190,67,195],[67,196,67,201],[67,202,67,207],[67,208,67,213],[66,148,66,153],[66,154,66,159],[66,160,66,165],[66,166,66,171],[66,172,66,177],[66,178,66,183],[66,112,66,117],[66,118,66,123],[66,124,66,129],[66,130,66,135],[66,136,66,141],[66,142,66,147],[66,76,66,81],[66,82,66,87],[66,88,66,93],[66,94,66,99],[66,100,66,105],[66,106,66,111],[67,172,67,177],[67,178,67,183],[67,184,67,189],[67,118,67,123],[67,124,67,129],[67,130,67,135],[67,136,67,141],[67,142,67,147],[67,148,67,153],[67,82,67,87],[67,88,67,93],[65,208,65,213],[66,23,67,27],[66,28,66,33],[66,34,66,39],[66,40,66,45],[66,46,66,51],[66,52,66,57],[66,58,66,63],[66,64,66,69],[66,70,66,75],[65,172,65,177],[65,178,65,183],[65,184,65,189],[65,190,65,195],[65,196,65,201],[65,202,65,207],[65,136,65,141],[65,142,65,147],[65,148,65,153],[65,154,65,159],[65,160,65,165],[65,166,65,171],[65,100,65,105],[65,106,65,111],[65,112,65,117],[65,118,65,123],[65,124,65,129],[65,130,65,135],[65,64,65,69],[65,70,65,75],[65,76,65,81]],"merged_total":2546,"flags":["merged_cut"]}
[null,null,null,null,null,null,null,null,null,null,null,null,null,null,null,null,null,null,null,null,null,null,null,null,null,null,null,null,null,null,null,null,null,null,null,null,null,null,null,null,null,null,null,null,null,null,null,null,null,null,null,null,null,null,null,null,null,null,null,null,null,null,null,null,null,null,null,null,null,null,null,null,null,null,null,null,null,null,null,null,null,null,null,null,null,null,null,null,null,null,null,null,null,null,null,null,null,null,null,null,null,null,null,null,null,null,null,null,null,null,null,null,null,null,null,null,null,null,null,null,null,null,null,null,null,null,null,null,null,null,null,null,null,null,null,null,null,null,null,null,null,null,null,null,null,null,null,null,null,null,null,null,null,null,null,null,null,null,null,null,null,null,null,null,null,null,null,null,null,null,null,null,null,null,null,null,null,null,null,null,null,null,null,null,null,null,null,null,null,null,null,null,null,null,null,null,null,null,null,null,null,null,null,null,null,null,null,null,null,null,null,null,null,null,null,null,null,null,null,null,null,null,null,null,null,null,null,null,null,null,null,null,null,null,null,null,null,null,null,null,null,"СЕГОДНЯ",null,null,null,null,null,null,null,null,"на январь 2020 года",null,1]
[null,null,null,null,null,null,null,null,null,null,null,null,null,null,null,null,null,null,null,null,null,null,null,null,null,null,null,null,null,null,null,null,null,null,null,null,null,null,null,null,null,null,null,null,null,null,null,null,null,null,null,null,null,null,null,null,null,null,null,null,null,null,null,null,null,null,null,null,null,null,null,null,null,null,null,null,null,null,null,null,null,null,null,null,null,null,null,null,null,null,null,null,null,null,null,null,null,null,null,null,null,null,null,null,null,null,null,null,null,null,null,null,null,null,null,null,null,null,null,null,null,null,null,null,null,null,null,null,null,null,null,null,null,null,null,null,null,null,null,null,null,null,null,null,null,null,null,null,null,null,null,null,null,null,null,null,null,null,null,null,null,null,null,null,null,null,null,null,null,null,null,null,null,null,null,null,null,null,null,null,null,null,null,null,null,null,null,null,null,null,null,null,null,null,null,null,null,null,null,null,null,null,null,null,null,null,null,null,null,null,null,null,null,null,null,null,null,null,null,null,null,null,null,null,null,null,null,null,null,null,null,null,null,null,null,null,null,null,null,null,null,{"$f":"TODAY()","v":"2020-05-05"},null,null,null,null,null,null,null,null,"на февраль 2020 года",null,2]
[null,null,null,null,null,null,null,null,null,null,null,null,null,null,null,null,null,null,null,null,null,null,null,null,null,null,null,null,null,null,null,null,null,null,null,null,null,null,null,null,null,null,null,null,null,null,null,null,null,null,null,null,null,null,null,null,null,null,null,null,null,null,null,null,null,null,null,null,null,null,null,null,null,null,null,null,null,null,null,null,null,null,null,null,null,null,null,null,null,null,null,null,null,null,null,null,null,null,null,null,null,null,null,null,null,null,null,null,null,null,null,null,null,null,null,null,null,null,null,null,null,null,null,null,null,null,null,null,null,null,null,null,null,null,null,null,null,null,null,null,null,null,null,null,null,null,null,null,null,null,null,null,null,null,null,null,null,null,null,null,null,null,null,null,null,null,null,null,null,null,null,null,null,null,null,null,null,null,null,null,null,null,null,null,null,null,null,null,null,null,null,null,null,null,null,null,null,null,null,null,null,null,null,null,null,null,null,null,null,null,null,null,null,null,null,null,null,null,null,null,null,null,null,null,null,null,null,null,null,null,null,null,null,null,null,null,null,null,null,null,null,{"$f":"TEXT(HZ2,\"дддд\")","v":"суббота"},null,null,null,null,null,null,null,null,"на март 2020 года",null,3]
[null,null,null,null,null,null,null,null,null,null,null,null,null,null,null,null,null,null,null,null,null,null,null,null,null,null,null,null,null,null,null,null,null,null,null,null,null,null,null,null,null,null,null,null,null,null,null,null,null,null,null,null,null,null,null,null,null,null,null,null,null,null,null,null,null,null,null,null,null,null,null,null,null,null,null,null,null,null,null,null,null,null,null,null,null,null,null,null,null,null,null,null,null,null,null,null,null,null,null,null,null,null,null,null,null,null,null,null,null,null,null,null,null,null,null,null,null,null,null,null,null,null,null,null,null,null,null,null,null,null,null,null,null,null,null,null,null,null,null,null,null,null,null,null,null,null,null,null,null,null,null,null,null,null,null,null,null,null,null,null,null,null,null,null,null,null,null,null,null,null,null,null,null,null,null,null,null,null,null,null,null,null,null,null,null,null,null,null,null,null,null,null,null,null,null,null,null,null,null,null,null,null,null,null,null,null,null,null,null,null,null,null,null,null,null,null,null,null,null,null,null,null,null,null,null,null,null,null,null,null,null,null,null,null,null,null,null,null,null,null,null,{"$f":"WEEKNUM(IH2,2)&\"-ая неделя\"","v":"19-ая неделя"},null,null,null,null,null,null,null,null,"на апрель 2020 года",null,4]
[null,null,null,null,null,null,null,null,{"$f":"IF(OR(#REF!<D3,AND(#REF!<D2,#REF!=D3)),$CN$19,IF(OR(#REF!>D3,AND(#REF!>D2,#REF!=D3)),0,DAY(A2)))","v":{"$error":"#REF!"}},null,null,null,null,null,null,null,null,null,null,null,null,null,null,null,null,null,null,null,null,null,null,null,null,null,null,null,null,null,null,null,null,null,null,null,null,null,null,null,null,null,null,null,null,null,null,null,null,null,null,null,null,null,null,null,null,null,null,null,null,null,null,null,null,null,null,null,null,null,null,null,null,null,null,null,null,null,null,null,null,null,null,null,null,null,null,null,null,null,null,null,null,null,null,null,null,null,null,null,null,null,null,null,null,null,null,null,null,null,null,null,null,null,null,null,null,null,null,null,null,null,null,null,null,null,null,null,null,null,null,null,null,null,null,null,null,null,null,null,null,null,null,null,null,null,null,null,null,null,null,null,null,null,null,null,null,null,null,null,null,null,null,null,null,null,null,null,null,null,null,null,null,null,null,null,null,null,null,null,null,null,null,null,null,null,null,null,null,null,null,null,null,null,null,null,null,null,null,null,null,null,null,null,null,null,null,null,null,null,null,null,null,null,null,null,null,null,null,null,null,null,null,null,null,null,null,null,null,null,null,null,null,{"$f":"IF(OR(#REF!<IC3,AND(#REF!<IC2,#REF!=IC3)),$CN$19,IF(OR(#REF!>IC3,AND(#REF!>IC2,#REF!=IC3)),0,DAY(HZ2)))","v":{"$error":"#REF!"}},null,null,null,null,null,null,null,null,"на май 2020 года",null,5]
[null,null,null,null,null,null,null,null,null,null,null,null,null,null,null,null,null,null,null,null,null,null,null,null,null,null,null,null,null,null,null,null,null,null,null,null,null,null,null,null,null,null,null,null,null,null,null,null,null,null,null,null,null,null,null,null,null,null,null,null,null,null,null,null,null,null,null,null,null,null,null,null,null,null,null,null,null,null,null,null,null,null,null,null,null,null,null,null,null,null,null,null,null,null,null,null,null,null,null,null,null,null,null,null,null,null,null,null,null,null,null,null,null,null,null,null,null,null,null,null,null,null,null,null,null,null,null,null,null,null,null,null,null,null,null,null,null,null,null,null,null,null,null,null,null,null,null,null,null,null,null,null,null,null,null,null,null,null,null,null,null,null,null,null,null,null,null,null,null,null,null,null,null,null,null,null,null,null,null,null,null,null,null,null,null,null,null,null,null,null,null,null,null,null,null,null,null,null,null,null,null,null,null,null,null,null,null,null,null,null,null,null,null,null,null,null,null,null,null,null,null,null,null,null,null,null,null,null,null,null,null,null,null,null,null,null,null,null,null,null,"время",null,null,null,null,null,null,null,null,null,"на июнь 2020 года",null,6]
[null,null,null,null,null,null,null,null,null,null,null,null,null,null,null,null,null,null,null,null,null,null,null,null,null,null,null,null,null,null,null,null,null,null,null,null,null,null,null,null,null,null,null,null,null,null,null,null,null,null,null,null,null,null,null,null,null,null,null,null,null,null,null,null,null,null,null,null,null,null,null,null,null,null,null,null,null,null,null,null,null,null,null,null,null,null,null,null,null,null,null,null,null,null,null,null,null,null,null,null,null,null,null,null,null,null,null,null,null,null,null,null,null,null,null,null,null,null,null,null,null,null,null,null,null,null,null,null,null,null,null,null,null,null,null,null,null,null,null,null,null,null,null,null,null,null,null,null,null,null,null,null,null,null,null,null,null,null,null,null,null,null,null,null,null,null,null,null,null,null,null,null,null,null,null,null,null,null,null,null,null,null,null,null,null,null,null,null,null,null,null,null,null,null,null,null,null,null,null,null,null,null,null,null,null,null,null,null,1,null,null,null,null,null,null,null,null,null,null,null,null,null,null,null,null,null,null,null,null,null,null,null,null,null,null,"количество дней месяца",null,null,30,null,null,null,null,null,null,null,null,null,null,null,"на июль 2020 года",null,7]
[null,null,null,null,null,null,null,null,null,null,null,null,null,null,null,null,null,null,null,null,null,null,null,null,null,null,null,null,null,null,null,null,null,null,null,null,null,null,null,null,null,null,null,null,null,null,null,null,null,null,null,null,null,null,null,null,null,null,null,null,null,null,null,null,null,null,null,null,null,null,null,null,null,null,null,null,null,null,null,null,null,null,null,null,null,null,null,null,null,null,null,null,null,null,null,null,null,null,null,null,null,null,null,null,null,null,null,null,null,null,null,null,null,null,null,null,null,null,null,null,null,null,null,null,null,null,null,null,null,null,null,null,null,null,null,null,null,null,null,null,null,null,null,null,null,null,null,null,null,null,null,null,null,null,null,null,null,null,null,null,null,null,null,null,null,null,null,null,null,null,null,null,null,null,null,null,null,null,null,null,null,null,null,null,null,null,null,null,null,null,null,null,null,null,null,null,null,null,null,null,null,null,null,null,null,null,null,null,2,null,null,null,null,null,null,null,null,null,null,null,null,null,null,null,null,null,null,null,null,null,null,null,null,null,null,"месяц",null,null,6,null,0,null,136,17,null,"я",null,null,null,null,"на август 2020 года",null,8]
[null,null,null,null,null,null,null,null,null,null,null,null,null,null,null,null,null,null,null,null,null,null,null,null,null,null,null,null,null,null,null,null,null,null,null,null,null,null,null,null,null,null,null,null,null,null,null,null,null,null,null,null,null,null,null,null,null,null,null,null,null,null,null,null,null,null,null,null,null,null,null,null,null,null,null,null,null,null,null,null,null,null,null,null,null,null,null,null,null,null,null,null,null,null,null,null,null,null,null,null,null,null,null,null,null,null,null,null,null,null,null,null,null,null,null,null,null,null,null,null,null,null,null,null,null,null,null,null,null,null,null,null,null,null,null,null,null,null,null,null,null,null,null,null,null,null,null,null,null,null,null,null,null,null,null,null,null,null,null,null,null,null,null,null,null,null,null,null,null,null,null,null,null,null,null,null,null,null,null,null,null,null,null,null,null,null,null,null,null,null,null,null,null,null,null,null,null,null,null,null,null,null,null,null,null,null,null,null,null,null,null,null,null,null,null,null,null,null,null,null,null,null,null,null,null,null,null,null,null,null,null,null,null,null,null,"год",null,null,{"$f":"YEAR(A17)","v":2020},null,2.0833333333333332E-2,null,152,19,null,"ф",null,null,null,null,"на сентябрь 2020 года",null,9]
[null,null,null,null,null,null,null,null,null,null,null,null,null,null,null,null,null,null,null,null,null,null,null,null,null,null,null,null,null,null,null,null,null,null,null,null,null,null,null,null,null,null,null,null,null,null,null,null,null,null,null,null,null,null,null,null,null,null,null,null,null,null,null,null,null,null,null,null,null,null,null,null,null,null,null,null,null,null,null,null,null,null,null,null,null,null,null,null,null,null,null,null,null,null,null,null,null,null,null,null,null,null,null,null,null,null,null,null,null,null,null,null,null,null,null,null,null,null,null,null,null,null,null,null,null,null,null,null,null,null,null,null,null,null,null,null,null,null,null,null,null,null,null,null,null,null,null,null,null,null,null,null,null,null,null,null,null,null,null,null,null,null,null,null,null,null,null,null,null,null,null,null,null,null,null,null,null,null,null,null,null,null,null,null,null,null,null,null,null,null,"УТВЕРЖДАЮ",null,null,null,null,null,null,null,null,null,null,null,null,null,null,null,null,null,null,null,null,null,null,null,null,null,null,null,null,null,null,null,null,null,null,null,null,null,null,null,null,null,null,null,null,null,null,null,null,null,6.25E-2,null,168,21,null,"м",null,null,null,null,"на октябрь 2020 года",null,10]
[null,null,null,null,null,null,null,null,null,null,null,null,null,null,null,null,null,null,null,null,null,null,null,null,null,null,null,null,null,null,null,null,null,null,null,null,null,null,null,null,null,null,null,null,null,null,null,null,null,null,null,null,null,null,null,null,null,null,null,null,null,null,null,null,null,null,null,null,null,null,null,null,null,null,null,null,null,null,null,null,null,null,null,null,null,null,null,null,null,null,null,null,null,null,null,null,null,null,null,null,null,null,null,null,null,null,null,null,null,null,null,null,null,null,null,null,null,null,null,null,null,null,null,null,null,null,null,null,null,null,null,null,null,null,null,null,null,null,null,null,null,null,null,null,null,null,null,null,null,null,null,null,null,null,null,null,null,null,null,null,null,null,null,null,null,null,null,null,null,null,null,null,null,null,null,null,null,null,null,null,null,null,null,null,null,null,null,null,null,null," ",null,null,null,null,null,null,null,null,null,null,null,null,null,null,null,null,null,null,null,null,null,null,null,null,null,null,null,null,null,null,null,null,null,null,null,null,null,null,null,null,null,null,null,null,"0бед",null,null,4.1666666666666664E-2,null,0.41666666666666669,null,175,22,null,"а",null,null,null,null,"на ноябрь 2020 года",null,11]
[null,null,null,null,null,null,null,null,null,null,null,null,null,null,null,null,null,null,null,null,null,null,null,null,null,null,null,null,null,null,null,null,null,null,null,null,null,null,null,null,null,null,null,null,null,null,null,null,null,null,null,null,null,null,null,null,null,null,null,null,null,null,null,null,null,null,null,null,null,null,null,null,null,null,null,null,null,null,null,null,null,null,null,null,null,null,null,null,null,null,null,null,null,null,null,null,null,null,null,null,null,null,null,null,null,null,null,null,null,null,null,null,null,null,null,null,null,null,null,null,null,null,null,null,null,null,null,null,null,null,null,null,null,null,null,null,null,null,null,null,null,null,null,null,null,null,null,null,null,null,null,null,null,null,null,null,null,null,null,null,null,null,null,null,null,null,null,null,null,null,null,null,null,null,null,null,null,null,null,null,null,null,null,null,null,null,null,null,null,null,"_______________С. А. Сорокина",null,null,null,null,null,null,null,null,null,null,null,null,null,null,null,null,null,null,null,null,null,null,null,null,null,null,null,null,null,null,null,null,null,null,null,null,null,null,null,null,null,null,null,null,null,null,null,null,null,0.45833333333333331,null,135,17,null,"май",null,null,null,null,"на декабрь 2020 года",null,12]
[null,null,null,null,null,null,null,null,null,null,null,null,null,null,null,null,null,null,null,null,null,null,null,null,null,null,null,null,null,null,null,null,null,null,null,null,null,null,null,null,null,null,null,null,null,null,null,null,null,null,null,null,null,null,null,null,null,null,null,null,null,null,null,null,null,null,null,null,null,null,null,null,null,null,null,null,null,null,null,null,null,null,null,null,null,null,null,null,null,null,null,null,null,null,null,null,null,null,null,null,null,null,null,null,null,null,null,null,null,null,null,null,null,null,null,null,null,null,null,null,null,null,null,null,null,null,null,null,null,null,null,null,null,null,null,null,null,null,null,null,null,null,null,null,null,null,null,null,null,null,null,null,null,null,null,null,null,null,null,null,null,null,null,null,null,null,null,null,null,null,null,null,null,null,null,null,null,null,null,null,null,null,null,null,null,null,null,null,null,null,"« 10 »     февраля    2020г.",null,null,null,null,null,null,null,null,null,null,"апреля",null,null,null,null,null,null,null,null,null,null,null,null,null,null,null,null,null,null,null,null,null,null,null,null,null,null,null,null,null,null,null,null,null,null,null,null,null,null,0.125,null,167,21,null,"июнь"]
[null,null,null,null,null,null,null,null,null,null,null,null,null,null,null,null,null,null,null,null,null,null,null,null,null,null,null,null,null,null,null,null,null,null,null,null,null,null,null,null,null,null,null,null,null,null,null,null,null,null,null,null,null,null,null,null,null,null,null,null,null,null,null,null,null,null,null,null,null,null,null,null,null,null,null,null,null,null,null,null,null,null,null,null,null,null,null,null,null,null,null,null,null,null,null,null,null,null,null,null,null,null,null,null,null,null,null,null,null,null,null,null,null,null,null,null,null,null,null,null,null,null,null,null,null,null,null,null,null,null,null,null,null,null,null,null,null,null,null,null,null,null,null,null,null,null,null,null,null,null,null,null,null,null,null,null,null,null,null,null,null,null,null,null,null,null,null,null,null,null,null,null,null,null,null,null,null,null,null,null,null,null,null,null,null,null,null,null,null,null,null,null,null,null,null,null,null,null,null,null,null,null,null,null,null,null,null,null,null,null,null,null,null,null,null,null,null,null,null,null,null,null,null,null,null,null,null,null,null,null,null,null,null,null,null,null,null,null,null,null,0.14583333333333334,null,184,23,null,"июль",null,null,null,null,"Слезинский В.Е.,  управляющий участка",null,null,null,null,null,1]
["ГРАФИК",null,null,null,null,null,null,null,null,null,null,null,null,null,null,null,null,null,null,null,null,null,null,null,null,null,null,null,null,null,null,null,null,null,null,null,null,null,null,null,null,null,null,null,null,null,null,null,null,null,null,null,null,null,null,null,null,null,null,null,null,null,null,null,null,null,null,null,null,null,null,null,null,null,null,null,null,null,null,null,null,null,null,null,null,null,null,null,null,null,null,null,null,null,null,null,null,null,null,null,null,null,null,null,null,null,null,null,null,null,null,null,null,null,null,null,null,null,null,null,null,null,null,null,null,null,null,null,null,null,null,null,null,null,null,null,null,null,null,null,null,null,null,null,null,null,null,null,null,null,null,null,null,null,null,null,null,null,null,null,null,null,null,null,null,null,null,null,null,null,null,null,null,null,null,null,null,null,null,null,null,null,null,null,null,null,null,null,null,null,null,null,null,null,null,null,null,null,null,null,null,null,null,null,null,null,null,null,null,null,null,null,null,null,null,null,null,null,null,null,null,null,null,null,null,null,null,null,null,null,null,null,null,null,null,null,null,null,null,null,0.16666666666666666,null,168,21,null,"август",null,null,null,null,"Медведев А.П., слесарь-ремонтник",null,null,null,null,null,0.5]
["УЧЕТА ИСПОЛЬЗОВАНИЯ РАБОЧЕГО ВРЕМЕНИ ОБСЛУЖИВАЮЩЕГО ПЕРСОНАЛА",null,null,null,null,null,null,null,null,null,null,null,null,null,null,null,null,null,null,null,null,null,null,null,null,null,null,null,null,null,null,null,null,null,null,null,null,null,null,null,null,null,null,null,null,null,null,null,null,null,null,null,null,null,null,null,null,null,null,null,null,null,null,null,null,null,null,null,null,null,null,null,null,null,null,null,null,null,null,null,null,null,null,null,null,null,null,null,null,null,null,null,null,null,null,null,null,null,null,null,null,null,null,null,null,null,null,null,null,null,null,null,null,null,null,null,null,null,null,null,null,null,null,null,null,null,null,null,null,null,null,null,null,null,null,null,null,null,null,null,null,null,null,null,null,null,null,null,null,null,null,null,null,null,null,null,null,null,null,null,null,null,null,null,null,null,null,null,null,null,null,null,null,null,null,null,null,null,null,null,null,null,null,null,null,null,null,null,null,null,null,null,null,null,null,null,null,null,null,null,null,null,null,null,null,null,null,null,null,null,null,null,null,null,null,null,null,null,null,null,null,null,null,null,null,null,null,null,null,null,null,null,null,null,null,null,null,null,null,null,0.1875,null,176,22,null,null,null,null,null,null,"Береговой Г.П., электрик",null,null,null,null,null,0.25]
["2020-06-01",null,null,null,null,null,null,null,null,null,null,null,null,null,null,null,null,null,null,null,null,null,null,null,null,null,null,null,null,null,null,null,null,null,null,null,null,null,null,null,null,null,null,null,null,null,null,null,null,null,null,null,null,null,null,null,null,null,null,null,null,null,null,null,null,null,null,null,null,null,null,null,null,null,null,null,null,null,null,null,null,null,null,null,null,null,null,null,null,null,null,null,null,null,null,null,null,null,null,null,null,null,null,null,null,null,null,null,null,null,null,null,null,null,null,null,null,null,null,null,null,null,null,null,null,null,null,null,null,null,null,null,null,null,null,null,null,null,null,null,null,null,null,null,null,null,null,null,null,null,null,null,null,null,null,null,null,null,null,null,null,null,null,null,null,null,null,null,null,null,null,null,null,null,null,null,null,null,null,null,null,null,null,null,null,null,null,null,null,null,null,null,null,null,null,null,null,null,null,null,null,null,null,null,null,null,null,null,null,null,null,null,null,null,null,null,null,null,null,null,null,null,null,null,null,null,null,null,null,null,null,null,"июнь",null,null,null,null,null,null,null,0.20833333333333334,null,176,22,null,null,null,null,null,null,"Воротынцева В.Н., кассир билетный"]
[null,null,null,null,null,null,null,null,null,null,null,null,null,null,null,null,null,null,null,null,null,null,null,null,null,null,null,null,null,null,null,null,null,null,null,null,null,null,null,null,null,null,null,null,null,null,null,null,null,null,null,null,null,null,null,null,null,null,null,null,null,null,null,null,null,null,null,null,null,null,null,null,null,null,null,null,null,null,null,null,null,null,null,null,null,null,null,null,null,null,null,null,null,null,null,null,null,null,null,null,null,null,null,null,null,null,null,null,null,null,null,null,null,null,null,null,null,null,null,null,null,null,null,null,null,null,null,null,null,null,null,null,null,null,null,null,null,null,null,null,null,null,null,null,null,null,null,null,null,null,null,null,null,null,null,null,null,null,null,null,null,null,null,null,null,null,null,null,null,null,null,null,null,null,null,null,null,null,null,null,null,null,null,null,null,null,null,null,null,null,null,null,null,null,null,null,null,null,null,null,null,null,null,null,null,null,null,null,null,null,null,null,null,null,null,null,null,null,null,null,null,null,null,null,null,null,null,null,null,null,null,null,null,null,null,null,null,null,null,null,0.22916666666666666,null,159,20,null,null,null,null,null,null,"Окорочкова О.Т., кассир билетный"]
["№ п/п",null,null,null,null,"Фамилия Инициалы",null,null,null,null,null,null,null,null,null,null,null,null,null,null,null,null,null,"Ставка",null,null,null,null,1,null,null,null,null,null,2,null,null,null,null,null,3,null,null,null,null,null,4,null,null,null,null,null,5,null,null,null,null,null,6,null,null,null,null,null,7,null,null,null,null,null,8,null,null,null,null,null,9,null,null,null,null,null,10,null,null,null,null,null,11,null,null,null,null,null,12,null,null,null,null,null,13,null,null,null,null,null,14,null,null,null,null,null,15,null,null,null,null,null,16,null,null,null,null,null,17,null,null,null,null,null,18,null,null,null,null,null,19,null,null,null,null,null,20,null,null,null,null,null,21,null,null,null,null,null,22,null,null,null,null,null,23,null,null,null,null,null,24,null,null,null,null,null,25,null,null,null,null,null,26,null,null,null,null,null,27,null,null,null,null,null,28,null,null,null,null,null,{"$f":"IF(29<=$IE$7,29,\"-\")","v":29},null,null,null,null,null,{"$f":"IF(30<=$IE$7,30,\"-\")","v":30},null,null,null,null,null,{"$f":"IF(31<=$IE$7,31,\"-\")","v":"-"},null,null,null,null,null,"ВСЕГО",null,null,null,null,null,null,null,null,null,null,null,null,null,null,null,null,null,null,"дней по произв. Кал.","часов по произв. Кал. ",null,null,17,null,null,0.25,null,183,23,null,null,null,null,null,null,"Пермякова Т.М., контролёр-посадчик аттракциона"]
[null,null,null,null,null,null,null,null,null,null,null,null,null,null,null,null,null,null,null,null,null,null,null,null,null,null,null,null,null,null,null,null,null,null,null,null,null,null,null,null,null,null,null,null,null,null,null,null,null,null,null,null,null,null,null,null,null,null,null,null,null,null,null,null,null,null,null,null,null,null,null,null,null,null,null,null,null,null,null,null,null,null,null,null,null,null,null,null,null,null,null,null,null,null,null,null,null,null,null,null,null,null,null,null,null,null,null,null,null,null,null,null,null,null,null,null,null,null,null,null,null,null,null,null,null,null,null,null,null,null,null,null,null,null,null,null,null,null,null,null,null,null,null,null,null,null,null,null,null,null,null,null,null,null,null,null,null,null,null,null,null,null,null,null,null,null,null,null,null,null,null,null,null,null,null,null,null,null,null,null,null,null,null,null,null,null,null,null,null,null,null,null,null,null,null,null,null,null,null,null,null,null,null,null,null,null,null,null,null,null,null,null,null,null,"дней",null,null,null,null,null,null,null,null,null,null,null,null,null,null,null,null,null,"часов",null,null,null,null,19,null,null,0.27083333333333331,null,null,null,null,null,null,null,null,null,"Алексеева Р.И., котролёр-посадчик аттракциона"]
[1,null,null,null,null,"Слезинский В.Е  управляющий участка",null,null,null,null,null,null,null,null,null,null,null,null,null,null,null,null,null,1,null,null,null,null,0.375,null,null,null,null,null,0.41666666666666669,null,null,null,null,null,"В",null,null,null,null,null,0.375,null,null,null,null,null,0.375,null,null,null,null,null,0.375,null,null,null,null,null,0.375,null,null,null,null,null,0.375,null,null,null,null,null,0.41666666666666669,null,null,null,null,null,"В",null,null,null,null,null,0.375,null,null,null,null,null,"В",null,null,null,null,null,0.375,null,null,null,null,null,0.375,null,null,null,null,null,0.375,null,null,null,null,null,0.41666666666666669,null,null,null,null,null,"В",null,null,null,null,null,0.375,null,null,null,null,null,0.375,null,null,null,null,null,0.375,null,null,null,null,null,0.375,null,null,null,null,null,0.375,null,null,null,null,null,0.41666666666666669,null,null,null,null,null,"В",null,null,null,null,null,0.375,null,null,null,null,null,0.375,null,null,null,null,null,0.375,null,null,null,null,null,0.375,null,null,null,null,null,0.375,null,null,null,null,null,0.41666666666666669,null,null,null,null,null,null,null,null,null,null,null,{"$f":"COUNT(AC21:HF21)","v":25},null,null,null,null,null,null,null,null,null,null,null,null,null,null,null,null,null,{"$f":"SUM(IFERROR(AC22:HF22-AC21:HF21-AC23:HF23,0))","v":6.9583333333333357},{"$f":"VLOOKUP($HY$17,#REF!,3,TRUE)","v":{"$error":"#REF!"}},{"$f":"INDEX(#REF!,MATCH($HY$17,#REF!,0))","v":{"$error":"#REF!"}},null,null,21,null,null,4.1666666666666664E-2,null,null,null,null,null,null,null,null,null,"Перминов К.И., дежурный зала"]
[null,null,null,null,null,null,null,null,null,null,null,null,null,null,null,null,null,null,null,null,null,null,null,null,null,null,null,null,0.79166666666666663,null,null,null,null,null,0.66666666666666663,null,null,null,null,null,"В",null,null,null,null,null,0.79166666666666663,null,null,null,null,null,0.79166666666666663,null,null,null,null,null,0.83333333333333337,null,null,null,null,null,0.83333333333333337,null,null,null,null,null,0.79166666666666663,null,null,null,null,null,0.66666666666666663,null,null,null,null,null,"В",null,null,null,null,null,0.79166666666666663,null,null,null,null,null,"В",null,null,null,null,null,0.83333333333333337,null,null,null,null,null,0.83333333333333337,null,null,null,null,null,0.83333333333333337,null,null,null,null,null,0.66666666666666663,null,null,null,null,null,"В",null,null,null,null,null,0.83333333333333337,null,null,null,null,null,0.83333333333333337,null,null,null,null,null,0.83333333333333337,null,null,null,null,null,0.83333333333333337,null,null,null,null,null,0.83333333333333337,null,null,null,null,null,0.66666666666666663,null,null,null,null,null,"В",null,null,null,null,null,0.83333333333333337,null,null,null,null,null,0.83333333333333337,null,null,null,null,null,0.83333333333333337,null,null,null,null,null,0.83333333333333337,null,null,null,null,null,0.83333333333333337,null,null,null,null,null,0.66666666666666663,null,null,null,null,null,null,null,null,null,null,null,null,null,null,null,null,null,null,null,null,null,null,null,null,null,null,null,null,null,null,null,null,null,null,22,null,null,0.33333333333333331,null,null,null,null,null,null,null,null,null,"Перминов К.И., кассир"]
[null,null,null,null,null,null,null,null,null,null,null,null,null,null,null,null,null,null,null,null,null,null,null,"обед",null,null,null,null,"03:00:00",null,null,null,null,null,"01:00:00",null,null,null,null,null,null,null,null,null,null,null,"03:00:00",null,null,null,null,null,"03:00:00",null,null,null,null,null,"03:00:00",null,null,null,null,null,"03:00:00",null,null,null,null,null,"03:00:00",null,null,null,null,null,"01:00:00",null,null,null,null,null,null,null,null,null,null,null,"04:00:00",null,null,null,null,null,null,null,null,null,null,null,"03:00:00",null,null,null,null,null,"04:00:00",null,null,null,null,null,"04:00:00",null,null,null,null,null,"01:00:00",null,null,null,null,null,null,null,null,null,null,null,"04:00:00",null,null,null,null,null,"04:00:00",null,null,null,null,null,"04:00:00",null,null,null,null,null,"04:00:00",null,null,null,null,null,"04:00:00",null,null,null,null,null,"01:00:00",null,null,null,null,null,null,null,null,null,null,null,"04:00:00",null,null,null,null,null,"04:00:00",null,null,null,null,null,"04:00:00",null,null,null,null,null,"04:00:00",null,null,null,null,null,"04:00:00",null,null,null,null,null,"01:00:00",null,null,null,null,null,null,null,null,null,null,null,null,null,null,null,null,null,null,null,null,null,null,null,null,null,null,null,null,null,null,null,null,null,null,17,null,null,null,null,null,null,null,null,null,null,null,null,"Бутелин Ю.Н., сторож"]
[null,null,null,null,null,null,null,null,null,null,null,null,null,null,null,null,null,null,null,null,null,null,null,null,null,null,null,null,null,null,null,null,null,null,null,null,null,null,null,null,null,null,null,null,null,null,null,null,null,null,null,null,null,null,null,null,null,null,null,null,null,null,null,null,null,null,null,null,null,null,null,null,null,null,null,null,null,null,null,null,null,null,null,null,null,null,null,null,null,null,null,null,null,null,null,null,null,null,null,null,null,null,null,null,null,null,null,null,null,null,null,null,null,null,null,null,null,null,null,null,null,null,null,null,null,null,null,null,null,null,null,null,null,null,null,null,null,null,null,null,null,null,null,null,null,null,null,null,null,null,null,null,null,null,null,null,null,null,null,null,null,null,null,null,null,null,null,null,null,null,null,null,null,null,null,null,null,null,null,null,null,null,null,null,null,null,null,null,null,null,null,null,null,null,null,null,null,null,null,null,null,null,null,null,null,null,null,null,null,null,null,null,null,null,null,null,null,null,null,null,null,null,null,null,null,null,null,null,null,null,null,null,null,null,null,null,null,21,null,null,null,null,null,null,null,null,null,null,null,null,"Бутелин Ю.Н., контролёр-посадчик"]
[null,null,null,null,null,null,null,null,null,null,null,null,null,null,null,null,null,null,null,null,null,null,null,"пр",null,null,null,null,null,null,null,null,null,null,null,null,null,null,null,null,null,null,null,null,null,null,null,null,null,null,null,null,null,null,null,null,null,null,null,null,null,null,null,null,null,null,null,null,null,null,null,null,null,null,null,null,null,null,null,null,null,null,null,null,null,null,null,null,null,null,null,null,null,null,null,null,null,null,null,null,null,null,null,null,null,null,null,null,null,null,null,null,null,null,null,null,null,null,null,null,null,null,null,null,null,null,null,null,null,null,null,null,null,null,null,null,null,null,null,null,null,null,null,null,null,null,null,null,null,null,null,null,null,null,null,null,null,null,null,null,null,null,null,null,null,null,null,null,null,null,null,null,null,null,null,null,null,null,null,null,null,null,null,null,null,null,null,null,null,null,null,null,null,null,null,null,null,null,null,null,null,null,null,null,null,null,null,null,null,null,null,null,null,null,null,null,null,null,null,null,null,null,null,null,null,null,null,null,null,null,null,null,null,null,null,null,null,23,null,null,null,null,null,null,null,null,null,null,null,null,"Медведев А.П., сторож"]
[null,null,null,null,null,null,null,null,null,null,null,null,null,null,null,null,null,null,null,null,null,null,null,null,null,null,null,null,null,null,null,null,null,null,null,null,null,null,null,null,null,null,null,null,null,null,null,null,null,null,null,null,null,null,null,null,null,null,null,null,null,null,null,null,null,null,null,null,null,null,null,null,null,null,null,null,null,null,null,null,null,null,null,null,null,null,null,null,null,null,null,null,null,null,null,null,null,null,null,null,null,null,null,null,null,null,null,null,null,null,null,null,null,null,null,null,null,null,null,null,null,null,null,null,null,null,null,null,null,null,null,null,null,null,null,null,null,null,null,null,null,null,null,null,null,null,null,null,null,null,null,null,null,null,null,null,null,null,null,null,null,null,null,null,null,null,null,null,null,null,null,null,null,null,null,null,null,null,null,null,null,null,null,null,null,null,null,null,null,null,null,null,null,null,null,null,null,null,null,null,null,null,null,null,null,null,null,null,null,null,null,null,null,null,null,null,null,null,null,null,null,null,null,null,null,null,null,null,null,null,null,null,null,null,null,null,null,21]
[2,null,null,null,null,"Медведев А.П., слесарь-ремонтник",null,null,null,null,null,null,null,null,null,null,null,null,null,null,null,null,null,1,null,null,null,null,"В",null,null,null,null,null,"В",null,null,null,null,null,0.375,null,null,null,null,null,0.375,null,null,null,null,null,0.375,null,null,null,null,null,0.375,null,null,null,null,null,0.375,null,null,null,null,null,"В",null,null,null,null,null,"В",null,null,null,null,null,0.375,null,null,null,null,null,0.375,null,null,null,null,null,"В",null,null,null,null,null,0.375,null,null,null,null,null,0.375,null,null,null,null,null,"В",null,null,null,null,null,"В",null,null,null,null,null,0.375,null,null,null,null,null,0.375,null,null,null,null,null,0.375,null,null,null,null,null,0.375,null,null,null,null,null,0.375,null,null,null,null,null,"В",null,null,null,null,null,"В",null,null,null,null,null,0.375,null,null,null,null,null,0.375,null,null,null,null,null,0.375,null,null,null,null,null,0.375,null,null,null,null,null,0.375,null,null,null,null,null,"В",null,null,null,null,null,"В",null,null,null,null,null,null,null,null,null,null,null,{"$f":"COUNT(AC27:HF27)","v":19},null,null,null,null,null,null,null,null,null,null,null,null,null,null,null,null,null,{"$f":"SUM(IFERROR(AC28:HF28-AC27:HF27-AC29:HF29,0))","v":6.958333333333333},{"$f":"VLOOKUP($HY$17,#REF!,3,TRUE)","v":{"$error":"#REF!"}},{"$f":"INDEX(#REF!,MATCH($HY$17,#REF!,0))","v":{"$error":"#REF!"}},null,null,22]
[null,null,null,null,null,null,null,null,null,null,null,null,null,null,null,null,null,null,null,null,null,null,null,null,null,null,null,null,"В",null,null,null,null,null,"В",null,null,null,null,null,0.83333333333333337,null,null,null,null,null,0.83333333333333337,null,null,null,null,null,0.83333333333333337,null,null,null,null,null,0.83333333333333337,null,null,null,null,null,0.83333333333333337,null,null,null,null,null,"В",null,null,null,null,null,"В",null,null,null,null,null,0.83333333333333337,null,null,null,null,null,0.83333333333333337,null,null,null,null,null,"В",null,null,null,null,null,0.83333333333333337,null,null,null,null,null,0.83333333333333337,null,null,null,null,null,"В",null,null,null,null,null,"В",null,null,null,null,null,0.83333333333333337,null,null,null,null,null,0.83333333333333337,null,null,null,null,null,0.83333333333333337,null,null,null,null,null,0.83333333333333337,null,null,null,null,null,0.83333333333333337,null,null,null,null,null,"В",null,null,null,null,null,"В",null,null,null,null,null,0.83333333333333337,null,null,null,null,null,0.83333333333333337,null,null,null,null,null,0.83333333333333337,null,null,null,null,null,0.83333333333333337,null,null,null,null,null,0.83333333333333337,null,null,null,null,null,"В",null,null,null,null,null,"В",null,null,null,null,null,null,null,null,null,null,null,null,null,null,null,null,null,null,null,null,null,null,null,null,null,null,null,null,null,null,null,null,null,null,22]
[null,null,null,null,null,null,null,null,null,null,null,null,null,null,null,null,null,null,null,null,null,null,null,"обед",null,null,null,null,null,null,null,null,null,null,null,null,null,null,null,null,"02:00:00",null,null,null,null,null,"02:00:00",null,null,null,null,null,"02:00:00",null,null,null,null,null,"02:00:00",null,null,null,null,null,"02:00:00",null,null,null,null,null,null,null,null,null,null,null,null,null,null,null,null,null,"02:00:00",null,null,null,null,null,"02:00:00",null,null,null,null,null,null,null,null,null,null,null,"02:00:00",null,null,null,null,null,"02:00:00",null,null,null,null,null,null,null,null,null,null,null,null,null,null,null,null,null,"02:00:00",null,null,null,null,null,"02:00:00",null,null,null,null,null,"02:00:00",null,null,null,null,null,"02:00:00",null,null,null,null,null,"02:00:00",null,null,null,null,null,null,null,null,null,null,null,null,null,null,null,null,null,"02:00:00",null,null,null,null,null,"03:00:00",null,null,null,null,null,"03:00:00",null,null,null,null,null,"03:00:00",null,null,null,null,null,"03:00:00",null,null,null,null,null,null,null,null,null,null,null,null,null,null,null,null,null,null,null,null,null,null,null,null,null,null,null,null,null,null,null,null,null,null,null,null,null,null,null,null,null,null,null,null,null,null,20]
[null,null,null,null,null,null,null,null,null,null,null,null,null,null,null,null,null,null,null,null,null,null,null,null,null,null,null,null,null,null,null,null,null,null,null,null,null,null,null,null,null,null,null,null,null,null,null,null,null,null,null,null,null,null,null,null,null,null,null,null,null,null,null,null,null,null,null,null,null,null,null,null,null,null,null,null,null,null,null,null,null,null,null,null,null,null,null,null,null,null,null,null,null,null,null,null,null,null,null,null,null,null,null,null,null,null,null,null,null,null,null,null,null,null,null,null,null,null,null,null,null,null,null,null,null,null,null,null,null,null,null,null,null,null,null,null,null,null,null,null,null,null,null,null,null,null,null,null,null,null,null,null,null,null,null,null,null,null,null,null,null,null,null,null,null,null,null,null,null,null,null,null,null,null,null,null,null,null,null,null,null,null,null,null,null,null,null,null,null,null,null,null,null,null,null,null,null,null,null,null,null,null,null,null,null,null,null,null,null,null,null,null,null,null,null,null,null,null,null,null,null,null,null,null,null,null,null,null,null,null,null,null,null,null,null,null,null,23]
[null,null,null,null,null,null,null,null,null,null,null,null,null,null,null,null,null,null,null,null,null,null,null,"пр",null,null,null,null,null,null,null,null,null,null,null,null,null,null,null,null,null,null,null,null,null,null,null,null,null,null,null,null,null,null,null,null,null,null,null,null,null,null,null,null,null,null,null,null,null,null,null,null,null,null,null,null,null,null,null,null,null,null,null,null,null,null,null,null,null,null,null,null,null,null,null,null,null,null,null,null,null,null,null,null,null,null,null,null,null,null,null,null,null,null,null,null,null,null,null,null,null,null,null,null,null,null,null,null,null,null,null,null,null,null,null,null,null,null,null,null,null,null,null,null,null,null,null,null,null,null,null,null,null,null,null,null,null,null,null,null,null,null,null,null,null,null,null,null,null,null,null,null,null,null,null,null,null,null,null,null,null,null,null,null,null,null,null,null,null,null,null,null,null,null,null,null,null,null,null,null,null,null,null,null,null,null,null,null,null,null,null,null,null,null,null,null,null,null,null,null,null,null,null,null,null,null,null,null,null,null,null,null,null,null,null,null,null,null,null,null,0.66666666666666663]
[null,null,null,null,null,null,null,null,null,null,null,null,null,null,null,null,null,null,null,null,null,null,null,null,null,null,null,null,null,null,null,null,null,null,null,null,null,null,null,null,null,null,null,null,null,null,null,null,null,null,null,null,null,null,null,null,null,null,null,null,null,null,null,null,null,null,null,null,null,null,null,null,null,null,null,null,null,null,null,null,null,null,null,null,null,null,null,null,null,null,null,null,null,null,null,null,null,null,null,null,null,null,null,null,null,null,null,null,null,null,null,null,null,null,null,null,null,null,null,null,null,null,null,null,null,null,null,null,null,null,null,null,null,null,null,null,null,null,null,null,null,null,null,null,null,null,null,null,null,null,null,null,null,null,null,null,null,null,null,null,null,null,null,null,null,null,null,null,null,null,null,null,null,null,null,null,null,null,null,null,null,null,null,null,null,null,null,null,null,null,null,null,null,null,null,null,null,null,null,null,null,null,null,null,null,null,null,null,null,null,null,null,null,null,null,null,null,null,null,null,null,null,null,null,null,null,null,null,null,null,null,null,null,null,null,null,null,null,null,null,0.66666666666666663]
[3,null,null,null,null,"Береговой Г.П., электрик",null,null,null,null,null,null,null,null,null,null,null,null,null,null,null,null,null,1,null,null,null,null,0.375,null,null,null,null,null,0.375,null,null,null,null,null,0.375,null,null,null,null,null,0.375,null,null,null,null,null,0.375,null,null,null,null,null,"В",null,null,null,null,null,"В",null,null,null,null,null,0.375,null,null,null,null,null,0.375,null,null,null,null,null,0.375,null,null,null,null,null,0.375,null,null,null,null,null,"В",null,null,null,null,null,"В",null,null,null,null,null,"В",null,null,null,null,null,0.375,null,null,null,null,null,0.375,null,null,null,null,null,0.375,null,null,null,null,null,0.375,null,null,null,null,null,0.375,null,null,null,null,null,"В",null,null,null,null,null,"В",null,null,null,null,null,0.375,null,null,null,null,null,0.375,null,null,null,null,null,0.375,null,null,null,null,null,0.375,null,null,null,null,null,0.375,null,null,null,null,null,"В",null,null,null,null,null,"В",null,null,null,null,null,0.375,null,null,null,null,null,0.375,null,null,null,null,null,null,null,null,null,null,null,{"$f":"COUNT(AC33:HF33)","v":21},null,null,null,null,null,null,null,null,null,null,null,null,null,null,null,null,null,{"$f":"SUM(IFERROR(AC34:HF34-AC33:HF33-AC35:HF35,0))","v":6.9583333333333313},{"$f":"VLOOKUP($HY$17,#REF!,3,TRUE)","v":{"$error":"#REF!"}},{"$f":"INDEX(#REF!,MATCH($HY$17,#REF!,0))","v":{"$error":"#REF!"}},null,null,null,null,null,0.70833333333333337]
[null,null,null,null,null,null,null,null,null,null,null,null,null,null,null,null,null,null,null,null,null,null,null,null,null,null,null,null,0.75,null,null,null,null,null,0.75,null,null,null,null,null,0.75,null,null,null,null,null,0.75,null,null,null,null,null,0.75,null,null,null,null,null,"В",null,null,null,null,null,"В",null,null,null,null,null,0.75,null,null,null,null,null,0.75,null,null,null,null,null,0.75,null,null,null,null,null,0.70833333333333337,null,null,null,null,null,"В",null,null,null,null,null,"В",null,null,null,null,null,"В",null,null,null,null,null,0.75,null,null,null,null,null,0.75,null,null,null,null,null,0.75,null,null,null,null,null,0.75,null,null,null,null,null,0.75,null,null,null,null,null,"В",null,null,null,null,null,"В",null,null,null,null,null,0.75,null,null,null,null,null,0.75,null,null,null,null,null,0.75,null,null,null,null,null,0.75,null,null,null,null,null,0.75,null,null,null,null,null,"В",null,null,null,null,null,"В",null,null,null,null,null,0.75,null,null,null,null,null,0.75,null,null,null,null,null,null,null,null,null,null,null,null,null,null,null,null,null,null,null,null,null,null,null,null,null,null,null,null,null,null,null,null,null,null,null,null,null,0.44791666666666669]
[null,null,null,null,null,null,null,null,null,null,null,null,null,null,null,null,null,null,null,null,null,null,null,"обед",null,null,null,null,"01:00:00",null,null,null,null,null,"01:00:00",null,null,null,null,null,"01:00:00",null,null,null,null,null,"01:00:00",null,null,null,null,null,"01:00:00",null,null,null,null,null,null,null,null,null,null,null,null,null,null,null,null,null,"01:00:00",null,null,null,null,null,"01:00:00",null,null,null,null,null,"01:00:00",null,null,null,null,null,"01:00:00",null,null,null,null,null,null,null,null,null,null,null,null,null,null,null,null,null,null,null,null,null,null,null,"01:00:00",null,null,null,null,null,"01:00:00",null,null,null,null,null,"01:00:00",null,null,null,null,null,"01:00:00",null,null,null,null,null,"01:00:00",null,null,null,null,null,null,null,null,null,null,null,null,null,null,null,null,null,"01:00:00",null,null,null,null,null,"01:00:00",null,null,null,null,null,"01:00:00",null,null,null,null,null,"01:00:00",null,null,null,null,null,"01:00:00",null,null,null,null,null,null,null,null,null,null,null,null,null,null,null,null,null,"01:00:00",null,null,null,null,null,"01:00:00",null,null,null,null,null,null,null,null,null,null,null,null,null,null,null,null,null,null,null,null,null,null,null,null,null,null,null,null,null,null,null,null,null,null,null,null,null,0.3125]
[null,null,null,null,null,null,null,null,null,null,null,null,null,null,null,null,null,null,null,null,null,null,null,null,null,null,null,null,null,null,null,null,null,null,null,null,null,null,null,null,null,null,null,null,null,null,null,null,null,null,null,null,null,null,null,null,null,null,null,null,null,null,null,null,null,null,null,null,null,null,null,null,null,null,null,null,null,null,null,null,null,null,null,null,null,null,null,null,null,null,null,null,null,null,null,null,null,null,null,null,null,null,null,null,null,null,null,null,null,null,null,null,null,null,null,null,null,null,null,null,null,null,null,null,null,null,null,null,null,null,null,null,null,null,null,null,null,null,null,null,null,null,null,null,null,null,null,null,null,null,null,null,null,null,null,null,null,null,null,null,null,null,null,null,null,null,null,null,null,null,null,null,null,null,null,null,null,null,null,null,null,null,null,null,null,null,null,null,null,null,null,null,null,null,null,null,null,null,null,null,null,null,null,null,null,null,null,null,null,null,null,null,null,null,null,null,null,null,null,null,null,null,null,null,null,null,null,null,null,null,null,null,null,null,null,null,null,null,null,null,0.375]
[null,null,null,null,null,null,null,null,null,null,null,null,null,null,null,null,null,null,null,null,null,null,null,"пр",null,null,null,null,null,null,null,null,null,null,null,null,null,null,null,null,null,null,null,null,null,null,null,null,null,null,null,null,null,null,null,null,null,null,null,null,null,null,null,null,null,null,null,null,null,null,null,null,null,null,null,null,null,null,null,null,null,null,null,null,null,null,null,null,null,null,null,null,null,null,null,null,null,null,null,null,null,null,null,null,null,null,null,null,null,null,null,null,null,null,null,null,null,null,null,null,null,null,null,null,null,null,null,null,null,null,null,null,null,null,null,null,null,null,null,null,null,null,null,null,null,null,null,null,null,null,null,null,null,null,null,null,null,null,null,null,null,null,null,null,null,null,null,null,null,null,null,null,null,null,null,null,null,null,null,null,null,null,null,null,null,null,null,null,null,null,null,null,null,null,null,null,null,null,null,null,null,null,null,null,null,null,null,null,null,null,null,null,null,null,null,null,null,null,null,null,null,null,null,null,null,null,null,null,null,null,null,null,null,null,null,null,null,null,null,null,0.48958333333333331]
[null,null,null,null,null,null,null,null,null,null,null,null,null,null,null,null,null,null,null,null,null,null,null,null,null,null,null,null,null,null,null,null,null,null,null,null,null,null,null,null,null,null,null,null,null,null,null,null,null,null,null,null,null,null,null,null,null,null,null,null,null,null,null,null,null,null,null,null,null,null,null,null,null,null,null,null,null,null,null,null,null,null,null,null,null,null,null,null,null,null,null,null,null,null,null,null,null,null,null,null,null,null,null,null,null,null,null,null,null,null,null,null,null,null,null,null,null,null,null,null,null,null,null,null,null,null,null,null,null,null,null,null,null,null,null,null,null,null,null,null,null,null,null,null,null,null,null,null,null,null,null,null,null,null,null,null,null,null,null,null,null,null,null,null,null,null,null,null,null,null,null,null,null,null,null,null,null,null,null,null,null,null,null,null,null,null,null,null,null,null,null,null,null,null,null,null,null,null,null,null,null,null,null,null,null,null,null,null,null,null,null,null,null,null,null,null,null,null,null,null,null,null,null,null,null,null,null,null,null,null,null,null,null,null,null,null,null,null,null,null,0.54166666666666663]
[4,null,null,null,null,"Воротынцева В.Н., кассир билетный",null,null,null,null,null,null,null,null,null,null,null,null,null,null,null,null,null,1,null,null,null,null,null,null,null,null,null,null,0.375,null,null,null,null,null,null,null,null,null,null,null,0.375,null,null,null,null,null,null,null,null,null,null,null,0.33333333333333331,null,null,null,null,null,null,null,null,null,null,null,0.375,null,null,null,null,null,null,null,null,null,null,null,0.375,null,null,null,null,null,null,null,null,null,null,null,0.375,null,null,null,null,null,null,null,null,null,null,null,0.33333333333333331,null,null,null,null,null,null,null,null,null,null,null,0.375,null,null,null,null,null,null,null,null,null,null,null,0.375,null,null,null,null,null,null,null,null,null,null,null,0.375,null,null,null,null,null,null,null,null,null,null,null,0.375,null,null,null,null,null,null,null,null,null,null,null,0.375,null,null,null,null,null,null,null,null,null,null,null,0.375,null,null,null,null,null,null,null,null,null,null,null,0.375,null,null,null,null,null,null,null,null,null,null,null,0.375,null,null,null,null,null,null,null,null,null,null,null,{"$f":"COUNT(AC39:HF39)","v":15},null,null,null,null,null,null,null,null,null,null,null,null,null,null,null,null,null,{"$f":"SUM(IFERROR(AC40:HF40-AC39:HF39-AC41:HF41,0))","v":6.9583333333333321},{"$f":"VLOOKUP($HY$17,#REF!,3,TRUE)","v":{"$error":"#REF!"}},{"$f":"INDEX(#REF!,MATCH($HY$17,#REF!,0))","v":{"$error":"#REF!"}},null,null,null,null,null,0.70833333333333337]
[null,null,null,null,null,null,null,null,null,null,null,null,null,null,null,null,null,null,null,null,null,null,null,null,null,null,null,null,null,null,null,null,null,null,0.875,null,null,null,null,null,null,null,null,null,null,null,0.875,null,null,null,null,null,null,null,null,null,null,null,0.875,null,null,null,null,null,null,null,null,null,null,null,0.875,null,null,null,null,null,null,null,null,null,null,null,0.875,null,null,null,null,null,null,null,null,null,null,null,0.875,null,null,null,null,null,null,null,null,null,null,null,0.875,null,null,null,null,null,null,null,null,null,null,null,0.875,null,null,null,null,null,null,null,null,null,null,null,0.875,null,null,null,null,null,null,null,null,null,null,null,0.875,null,null,null,null,null,null,null,null,null,null,null,0.875,null,null,null,null,null,null,null,null,null,null,null,0.875,null,null,null,null,null,null,null,null,null,null,null,0.875,null,null,null,null,null,null,null,null,null,null,null,0.875,null,null,null,null,null,null,null,null,null,null,null,0.875,null,null,null,null,null,null,null,null,null,null,null,null,null,null,null,null,null,null,null,null,null,null,null,null,null,null,null,null,null,null,null,null,null,null,null,null,null,0.72916666666666663]
[null,null,null,null,null,null,null,null,null,null,null,null,null,null,null,null,null,null,null,null,null,null,null,"обед",null,null,null,null,null,null,null,null,null,null,"01:00:00",null,null,null,null,null,null,null,null,null,null,null,"01:00:00",null,null,null,null,null,null,null,null,null,null,null,"01:00:00",null,null,null,null,null,null,null,null,null,null,null,"01:00:00",null,null,null,null,null,null,null,null,null,null,null,"01:00:00",null,null,null,null,null,null,null,null,null,null,null,"01:00:00",null,null,null,null,null,null,null,null,null,null,null,"01:00:00",null,null,null,null,null,null,null,null,null,null,null,"01:00:00",null,null,null,null,null,null,null,null,null,null,null,"01:00:00",null,null,null,null,null,null,null,null,null,null,null,"01:00:00",null,null,null,null,null,null,null,null,null,null,null,"01:00:00",null,null,null,null,null,null,null,null,null,null,null,"01:00:00",null,null,null,null,null,null,null,null,null,null,null,"01:00:00",null,null,null,null,null,null,null,null,null,null,null,"01:00:00",null,null,null,null,null,null,null,null,null,null,null,"01:00:00",null,null,null,null,null,null,null,null,null,null,null,null,null,null,null,null,null,null,null,null,null,null,null,null,null,null,null,null,null,null,null,null,null,null,null,null,null,0.79166666666666663]
[null,null,null,null,null,null,null,null,null,null,null,null,null,null,null,null,null,null,null,null,null,null,null,null,null,null,null,null,null,null,null,null,null,null,null,null,null,null,null,null,null,null,null,null,null,null,null,null,null,null,null,null,null,null,null,null,null,null,null,null,null,null,null,null,null,null,null,null,null,null,null,null,null,null,null,null,null,null,null,null,null,null,null,null,null,null,null,null,null,null,null,null,null,null,null,null,null,null,null,null,null,null,null,null,null,null,null,null,null,null,null,null,null,null,null,null,null,null,null,null,null,null,null,null,null,null,null,null,null,null,null,null,null,null,null,null,null,null,null,null,null,null,null,null,null,null,null,null,null,null,null,null,null,null,null,null,null,null,null,null,null,null,null,null,null,null,null,null,null,null,null,null,null,null,null,null,null,null,null,null,null,null,null,null,null,null,null,null,null,null,null,null,null,null,null,null,null,null,null,null,null,null,null,null,null,null,null,null,null,null,null,null,null,null,null,null,null,null,null,null,null,null,null,null,null,null,null,null,null,null,null,null,null,null,null,null,null,null,null,null,0.75]
[null,null,null,null,null,null,null,null,null,null,null,null,null,null,null,null,null,null,null,null,null,null,null,"пр",null,null,null,null,null,null,null,null,null,null,null,null,null,null,null,null,null,null,null,null,null,null,null,null,null,null,null,null,null,null,null,null,null,null,null,null,null,null,null,null,null,null,null,null,null,null,null,null,null,null,null,null,null,null,null,null,null,null,null,null,null,null,null,null,null,null,null,null,null,null,{"$f":"CQ40-CQ39-CQ41","v":0.45833333333333331},null,null,null,null,null,null,null,null,null,null,null,null,null,null,null,null,null,null,null,null,null,null,null,null,null,null,null,null,null,null,null,null,null,null,null,null,null,null,null,null,null,null,null,null,null,null,null,null,null,null,null,null,null,null,null,null,null,null,null,null,null,null,null,null,null,null,null,null,null,null,null,null,null,null,null,null,null,null,null,null,null,null,null,null,null,null,null,null,null,null,null,null,null,null,null,null,null,null,null,null,null,null,null,null,null,null,null,null,null,null,null,null,null,null,null,null,null,null,null,null,null,null,null,null,null,null,null,null,null,null,null,null,null,null,null,null,null,{"$f":"SUM(AG43:HQ44)","v":"11:00:00"},null,null,null,null,null,null,null,0.77083333333333337]
[null,null,null,null,null,null,null,null,null,null,null,null,null,null,null,null,null,null,null,null,null,null,null,null,null,null,null,null,null,null,null,null,null,null,null,null,null,null,null,null,null,null,null,null,null,null,null,null,null,null,null,null,null,null,null,null,null,null,null,null,null,null,null,null,null,null,null,null,null,null,null,null,null,null,null,null,null,null,null,null,null,null,null,null,null,null,null,null,null,null,null,null,null,null,null,null,null,null,null,null,null,null,null,null,null,null,null,null,null,null,null,null,null,null,null,null,null,null,null,null,null,null,null,null,null,null,null,null,null,null,null,null,null,null,null,null,null,null,null,null,null,null,null,null,null,null,null,null,null,null,null,null,null,null,null,null,null,null,null,null,null,null,null,null,null,null,null,null,null,null,null,null,null,null,null,null,null,null,null,null,null,null,null,null,null,null,null,null,null,null,null,null,null,null,null,null,null,null,null,null,null,null,null,null,null,null,null,null,null,null,null,null,null,null,null,null,null,null,null,null,null,null,null,null,null,null,null,null,null,null,null,null,null,null,null,null,null,null,null,null,0.625]
[5,null,null,null,null,"Окорочкова О.Т., кассир билетный",null,null,null,null,null,null,null,null,null,null,null,null,null,null,null,null,null,1,null,null,null,null,0.375,null,null,null,null,null,null,null,null,null,null,null,0.375,null,null,null,null,null,null,null,null,null,null,null,0.375,null,null,null,null,null,null,null,null,null,null,null,0.33333333333333331,null,null,null,null,null,null,null,null,null,null,null,0.375,null,null,null,null,null,null,null,null,null,null,null,0.375,null,null,null,null,null,null,null,null,null,null,null,0.33333333333333331,null,null,null,null,null,null,null,null,null,null,null,0.375,null,null,null,null,null,null,null,null,null,null,null,0.375,null,null,null,null,null,null,null,null,null,null,null,0.375,null,null,null,null,null,null,null,null,null,null,null,0.375,null,null,null,null,null,null,null,null,null,null,null,0.375,null,null,null,null,null,null,null,null,null,null,null,0.375,null,null,null,null,null,null,null,null,null,null,null,0.375,null,null,null,null,null,null,null,null,null,null,null,0.375,null,null,null,null,null,null,null,null,null,null,null,null,null,null,null,null,null,{"$f":"COUNT(AC45:HF45)","v":15},null,null,null,null,null,null,null,null,null,null,null,null,null,null,null,null,null,{"$f":"SUM(IFERROR(AC46:HF46-AC45:HF45-AC47:HF47,0))","v":6.9583333333333321},null,null,null,null,null,null,null,0.875]
[null,null,null,null,null,null,null,null,null,null,null,null,null,null,null,null,null,null,null,null,null,null,null,null,null,null,null,null,0.875,null,null,null,null,null,null,null,null,null,null,null,0.875,null,null,null,null,null,null,null,null,null,null,null,0.875,null,null,null,null,null,null,null,null,null,null,null,0.875,null,null,null,null,null,null,null,null,null,null,null,0.875,null,null,null,null,null,null,null,null,null,null,null,0.875,null,null,null,null,null,null,null,null,null,null,null,0.875,null,null,null,null,null,null,null,null,null,null,null,0.875,null,null,null,null,null,null,null,null,null,null,null,0.875,null,null,null,null,null,null,null,null,null,null,null,0.875,null,null,null,null,null,null,null,null,null,null,null,0.875,null,null,null,null,null,null,null,null,null,null,null,0.875,null,null,null,null,null,null,null,null,null,null,null,0.875,null,null,null,null,null,null,null,null,null,null,null,0.875,null,null,null,null,null,null,null,null,null,null,null,0.875,null,null,null,null,null,null,null,null,null,null,null,null,null,null,null,null,null,null,null,null,null,null,null,null,null,null,null,null,null,null,null,null,null,null,null,null,null,null,null,null,null,null,null,0.58333333333333337]
[null,null,null,null,null,null,null,null,null,null,null,null,null,null,null,null,null,null,null,null,null,null,null,"обед",null,null,null,null,"01:00:00",null,null,null,null,null,null,null,null,null,null,null,"01:00:00",null,null,null,null,null,null,null,null,null,null,null,"01:00:00",null,null,null,null,null,null,null,null,null,null,null,"01:00:00",null,null,null,null,null,null,null,null,null,null,null,"01:00:00",null,null,null,null,null,null,null,null,null,null,null,"01:00:00",null,null,null,null,null,null,null,null,null,null,null,"01:00:00",null,null,null,null,null,null,null,null,null,null,null,"01:00:00",null,null,null,null,null,null,null,null,null,null,null,"01:00:00",null,null,null,null,null,null,null,null,null,null,null,"01:00:00",null,null,null,null,null,null,null,null,null,null,null,"01:00:00",null,null,null,null,null,null,null,null,null,null,null,"01:00:00",null,null,null,null,null,null,null,null,null,null,null,"01:00:00",null,null,null,null,null,null,null,null,null,null,null,"01:00:00",null,null,null,null,null,null,null,null,null,null,null,"01:00:00",null,null,null,null,null,null,null,null,null,null,null,null,null,null,null,null,null,null,null,null,null,null,null,null,null,null,null,null,null,null,null,null,null,null,null,null,null,null,null,null,null,null,null,0.83333333333333337]
[null,null,null,null,null,null,null,null,null,null,null,null,null,null,null,null,null,null,null,null,null,null,null,null,null,null,null,null,null,null,null,null,null,null,null,null,null,null,null,null,null,null,null,null,null,null,null,null,null,null,null,null,null,null,null,null,null,null,null,null,null,null,null,null,null,null,null,null,null,null,null,null,null,null,null,null,null,null,null,null,null,null,null,null,null,null,null,null,null,null,null,null,null,null,null,null,null,null,null,null,null,null,null,null,null,null,null,null,null,null,null,null,null,null,null,null,null,null,null,null,null,null,null,null,null,null,null,null,null,null,null,null,null,null,null,null,null,null,null,null,null,null,null,null,null,null,null,null,null,null,null,null,null,null,null,null,null,null,null,null,null,null,null,null,null,null,null,null,null,null,null,null,null,null,null,null,null,null,null,null,null,null,null,null,null,null,null,null,null,null,null,null,null,null,null,null,null,null,null,null,null,null,null,null,null,null,null,null,null,null,null,null,null,null,null,null,null,null,null,null,null,null,null,null,null,null,null,null,null,null,null,null,null,null,null,null,null,null,null,null,0.66666666666666663]
[null,null,null,null,null,null,null,null,null,null,null,null,null,null,null,null,null,null,null,null,null,null,null,"пр",null,null,null,null,null,null,null,null,null,null,null,null,null,null,null,null,null,null,null,null,null,null,null,null,null,null,null,null,null,null,null,null,null,null,null,null,null,null,null,null,null,null,null,null,null,null,null,null,null,null,null,null,null,null,null,null,null,null,null,null,null,null,null,null,null,null,null,null,null,null,null,null,null,null,null,null,null,null,null,null,null,null,null,null,null,null,null,null,null,null,null,null,null,null,null,null,null,null,null,null,null,null,null,null,null,null,null,null,null,null,null,null,null,null,null,null,null,null,null,null,null,null,null,null,null,null,null,null,null,null,null,null,null,null,null,null,null,null,null,null,null,null,null,null,null,null,null,null,null,null,null,null,null,null,null,null,null,null,null,null,null,null,null,null,null,null,null,null,null,null,null,null,null,null,null,null,null,null,null,null,null,null,null,null,null,null,null,null,null,null,null,null,null,null,null,null,null,null,null,null,null,null,null,null,null,null,null,null,null,null,null,null,null,null,null,null,0.9375]
[null,null,null,null,null,null,null,null,null,null,null,null,null,null,null,null,null,null,null,null,null,null,null,null,null,null,null,null,null,null,null,null,null,null,null,null,null,null,null,null,null,null,null,null,null,null,null,null,null,null,null,null,null,null,null,null,null,null,null,null,null,null,null,null,null,null,null,null,null,null,null,null,null,null,null,null,null,null,null,null,null,null,null,null,null,null,null,null,null,null,null,null,null,null,null,null,null,null,null,null,null,null,null,null,null,null,null,null,null,null,null,null,null,null,null,null,null,null,null,null,null,null,null,null,null,null,null,null,null,null,null,null,null,null,null,null,null,null,null,null,null,null,null,null,null,null,null,null,null,null,null,null,null,null,null,null,null,null,null,null,null,null,null,null,null,null,null,null,null,null,null,null,null,null,null,null,null,null,null,null,null,null,null,null,null,null,null,null,null,null,null,null,null,null,null,null,null,null,null,null,null,null,null,null,null,null,null,null,null,null,null,null,null,null,null,null,null,null,null,null,null,null,null,null,null,null,null,null,null,null,null,null,null,null,null,null,null,null,null,null,0.95833333333333337]
[6,null,null,null,null,"Пермякова Т.М., контролёр-посадчик аттракциона",null,null,null,null,null,null,null,null,null,null,null,null,null,null,null,null,null,1,null,null,null,null,null,null,null,null,null,null,0.375,null,null,null,null,null,null,null,null,null,null,null,0.375,null,null,null,null,null,null,null,null,null,null,null,0.33333333333333331,null,null,null,null,null,null,null,null,null,null,null,0.375,null,null,null,null,null,null,null,null,null,null,null,0.375,null,null,null,null,null,null,null,null,null,null,null,0.375,null,null,null,null,null,null,null,null,null,null,null,0.33333333333333331,null,null,null,null,null,null,null,null,null,null,null,0.375,null,null,null,null,null,null,null,null,null,null,null,0.375,null,null,null,null,null,null,null,null,null,null,null,0.375,null,null,null,null,null,null,null,null,null,null,null,0.375,null,null,null,null,null,null,null,null,null,null,null,0.375,null,null,null,null,null,null,null,null,null,null,null,0.375,null,null,null,null,null,null,null,null,null,null,null,0.375,null,null,null,null,null,null,null,null,null,null,null,0.375,null,null,null,null,null,null,null,null,null,null,null,{"$f":"COUNT(AC51:HF51)","v":15},null,null,null,null,null,null,null,null,null,null,null,null,null,null,null,null,null,{"$f":"SUM(IFERROR(AC52:HF52-AC51:HF51-AC53:HF53,0))","v":6.9583333333333321},null,null,null,null,null,null,null,0.97916666666666663]
[null,null,null,null,null,null,null,null,null,null,null,null,null,null,null,null,null,null,null,null,null,null,null,null,null,null,null,null,null,null,null,null,null,null,0.875,null,null,null,null,null,null,null,null,null,null,null,0.875,null,null,null,null,null,null,null,null,null,null,null,0.875,null,null,null,null,null,null,null,null,null,null,null,0.875,null,null,null,null,null,null,null,null,null,null,null,0.875,null,null,null,null,null,null,null,null,null,null,null,0.875,null,null,null,null,null,null,null,null,null,null,null,0.875,null,null,null,null,null,null,null,null,null,null,null,0.875,null,null,null,null,null,null,null,null,null,null,null,0.875,null,null,null,null,null,null,null,null,null,null,null,0.875,null,null,null,null,null,null,null,null,null,null,null,0.875,null,null,null,null,null,null,null,null,null,null,null,0.875,null,null,null,null,null,null,null,null,null,null,null,0.875,null,null,null,null,null,null,null,null,null,null,null,0.875,null,null,null,null,null,null,null,null,null,null,null,0.875,null,null,null,null,null,null,null,null,null,null,null,null,null,null,null,null,null,null,null,null,null,null,null,null,null,null,null,null,null,null,null,null,null,null,null,null,null,1]
[null,null,null,null,null,null,null,null,null,null,null,null,null,null,null,null,null,null,null,null,null,null,null,"обед",null,null,null,null,null,null,null,null,null,null,"01:00:00",null,null,null,null,null,null,null,null,null,null,null,"01:00:00",null,null,null,null,null,null,null,null,null,null,null,"01:00:00",null,null,null,null,null,null,null,null,null,null,null,"01:00:00",null,null,null,null,null,null,null,null,null,null,null,"01:00:00",null,null,null,null,null,null,null,null,null,null,null,"01:00:00",null,null,null,null,null,null,null,null,null,null,null,"01:00:00",null,null,null,null,null,null,null,null,null,null,null,"01:00:00",null,null,null,null,null,null,null,null,null,null,null,"01:00:00",null,null,null,null,null,null,null,null,null,null,null,"01:00:00",null,null,null,null,null,null,null,null,null,null,null,"01:00:00",null,null,null,null,null,null,null,null,null,null,null,"01:00:00",null,null,null,null,null,null,null,null,null,null,null,"01:00:00",null,null,null,null,null,null,null,null,null,null,null,"01:00:00",null,null,null,null,null,null,null,null,null,null,null,"01:00:00",null,null,null,null,null,null,null,null,null,null,null,null,null,null,null,null,null,null,null,null,null,null,null,null,null,null,null,null,null,null,null,null,null,null,null,null,null,0.91666666666666663]
[null,null,null,null,null,null,null,null,null,null,null,null,null,null,null,null,null,null,null,null,null,null,null,null,null,null,null,null,null,null,null,null,null,null,null,null,null,null,null,null,null,null,null,null,null,null,null,null,null,null,null,null,null,null,null,null,null,null,null,null,null,null,null,null,null,null,null,null,null,null,null,null,null,null,null,null,null,null,null,null,null,null,null,null,null,null,null,null,null,null,null,null,null,null,null,null,null,null,null,null,null,null,null,null,null,null,null,null,null,null,null,null,null,null,null,null,null,null,null,null,null,null,null,null,null,null,null,null,null,null,null,null,null,null,null,null,null,null,null,null,null,null,null,null,null,null,null,null,null,null,null,null,null,null,null,null,null,null,null,null,null,null,null,null,null,null,null,null,null,null,null,null,null,null,null,null,null,null,null,null,null,null,null,null,null,null,null,null,null,null,null,null,null,null,null,null,null,null,null,null,null,null,null,null,null,null,null,null,null,null,null,null,null,null,null,null,null,null,null,null,null,null,null,null,null,null,null,null,null,null,null,null,null,null,null,null,null,null,null,null,"В"]
[null,null,null,null,null,null,null,null,null,null,null,null,null,null,null,null,null,null,null,null,null,null,null,"пр",null,null,null,null,null,null,null,null,null,null,null,null,null,null,null,null,null,null,null,null,null,null,null,null,null,null,null,null,null,null,null,null,null,null,null,null,null,null,null,null,null,null,null,null,null,null,null,null,null,null,null,null,null,null,null,null,null,null,null,null,null,null,null,null,null,null,null,null,null,null,{"$f":"CQ52-CQ51-CQ53","v":0.45833333333333331},null,null,null,null,null,null,null,null,null,null,null,null,null,null,null,null,null,null,null,null,null,null,null,null,null,null,null,null,null,null,null,null,null,null,null,null,null,null,null,null,null,null,null,null,null,null,null,null,null,null,null,null,null,null,null,null,null,null,null,null,null,null,null,null,null,null,null,null,null,null,null,null,null,null,null,null,null,null,null,null,null,null,null,null,null,null,null,null,null,null,null,null,null,null,null,null,null,null,null,null,null,null,null,null,null,null,null,null,null,null,null,null,null,null,null,null,null,null,null,null,null,null,null,null,null,null,null,null,null,null,null,null,null,null,null,null,null,null,null,null,null,null,null,null,null,"Б"]
[null,null,null,null,null,null,null,null,null,null,null,null,null,null,null,null,null,null,null,null,null,null,null,null,null,null,null,null,null,null,null,null,null,null,null,null,null,null,null,null,null,null,null,null,null,null,null,null,null,null,null,null,null,null,null,null,null,null,null,null,null,null,null,null,null,null,null,null,null,null,null,null,null,null,null,null,null,null,null,null,null,null,null,null,null,null,null,null,null,null,null,null,null,null,null,null,null,null,null,null,null,null,null,null,null,null,null,null,null,null,null,null,null,null,null,null,null,null,null,null,null,null,null,null,null,null,null,null,null,null,null,null,null,null,null,null,null,null,null,null,null,null,null,null,null,null,null,null,null,null,null,null,null,null,null,null,null,null,null,null,null,null,null,null,null,null,null,null,null,null,null,null,null,null,null,null,null,null,null,null,null,null,null,null,null,null,null,null,null,null,null,null,null,null,null,null,null,null,null,null,null,null,null,null,null,null,null,null,null,null,null,null,null,null,null,null,null,null,null,null,null,null,null,null,null,null,null,null,null,null,null,null,null,null,null,null,null,null,null,null,"К"]
[7,null,null,null,null,"Алексеева Р.И., котролёр-посадчик аттракциона",null,null,null,null,null,null,null,null,null,null,null,null,null,null,null,null,null,1,null,null,null,null,0.375,null,null,null,null,null,null,null,null,null,null,null,0.375,null,null,null,null,null,null,null,null,null,null,null,0.375,null,null,null,null,null,null,null,null,null,null,null,0.33333333333333331,null,null,null,null,null,null,null,null,null,null,null,0.375,null,null,null,null,null,null,null,null,null,null,null,0.375,null,null,null,null,null,null,null,null,null,null,null,0.33333333333333331,null,null,null,null,null,null,null,null,null,null,null,0.375,null,null,null,null,null,null,null,null,null,null,null,0.375,null,null,null,null,null,null,null,null,null,null,null,0.375,null,null,null,null,null,null,null,null,null,null,null,0.375,null,null,null,null,null,null,null,null,null,null,null,0.375,null,null,null,null,null,null,null,null,null,null,null,0.375,null,null,null,null,null,null,null,null,null,null,null,0.375,null,null,null,null,null,null,null,null,null,null,null,0.375,null,null,null,null,null,null,null,null,null,null,null,null,null,null,null,null,null,{"$f":"COUNT(AC57:HF57)","v":15},null,null,null,null,null,null,null,null,null,null,null,null,null,null,null,null,null,{"$f":"SUM(IFERROR(AC58:HF58-AC57:HF57-AC59:HF59,0))","v":6.9583333333333321},null,null,null,null,null,null,null,"О"]
[null,null,null,null,null,null,null,null,null,null,null,null,null,null,null,null,null,null,null,null,null,null,null,null,null,null,null,null,0.875,null,null,null,null,null,null,null,null,null,null,null,0.875,null,null,null,null,null,null,null,null,null,null,null,0.875,null,null,null,null,null,null,null,null,null,null,null,0.875,null,null,null,null,null,null,null,null,null,null,null,0.875,null,null,null,null,null,null,null,null,null,null,null,0.875,null,null,null,null,null,null,null,null,null,null,null,0.875,null,null,null,null,null,null,null,null,null,null,null,0.875,null,null,null,null,null,null,null,null,null,null,null,0.875,null,null,null,null,null,null,null,null,null,null,null,0.875,null,null,null,null,null,null,null,null,null,null,null,0.875,null,null,null,null,null,null,null,null,null,null,null,0.875,null,null,null,null,null,null,null,null,null,null,null,0.875,null,null,null,null,null,null,null,null,null,null,null,0.875,null,null,null,null,null,null,null,null,null,null,null,0.875,null,null,null,null,null,null,null,null,null,null,null,null,null,null,null,null,null,null,null,null,null,null,null,null,null,null,null,null,null,null,null,null,null,null,null,null,null,null,null,null,null,null,null,"П"]
[null,null,null,null,null,null,null,null,null,null,null,null,null,null,null,null,null,null,null,null,null,null,null,"обед",null,null,null,null,"01:00:00",null,null,null,null,null,null,null,null,null,null,null,"01:00:00",null,null,null,null,null,null,null,null,null,null,null,"01:00:00",null,null,null,null,null,null,null,null,null,null,null,"01:00:00",null,null,null,null,null,null,null,null,null,null,null,"01:00:00",null,null,null,null,null,null,null,null,null,null,null,"01:00:00",null,null,null,null,null,null,null,null,null,null,null,"01:00:00",null,null,null,null,null,null,null,null,null,null,null,"01:00:00",null,null,null,null,null,null,null,null,null,null,null,"01:00:00",null,null,null,null,null,null,null,null,null,null,null,"01:00:00",null,null,null,null,null,null,null,null,null,null,null,"01:00:00",null,null,null,null,null,null,null,null,null,null,null,"01:00:00",null,null,null,null,null,null,null,null,null,null,null,"01:00:00",null,null,null,null,null,null,null,null,null,null,null,"01:00:00",null,null,null,null,null,null,null,null,null,null,null,"01:00:00"]
[null,null,null,null,null,null,null,null,null,null,null,null,null,null,null,null,null,null,null,null,null,null,null,null,null,null,null,null,null,null,null,null,null,null,null,null,null,null,null,null,null,null,null,null,null,null,null,null,null,null,null,null,null,null,null,null,null,null,null,null,null,null,null,null,null,null,null,null,null,null,null,null,null,null,null,null,null,null,null,null,null,null,null,null,null,null,null,null,null,null,null,null,null,null,null,null,null,null,null,null,null,null,null,null,null,null,null,null,null,null,null,null,null,null,null,null,null,null,null,null,null,null,null,null,null,null,null,null,null,null,null,null,null,null,null,null,null,null,null,null,null,null,null,null,null,null,null,null,null,null,null,null,null,null,null,null,null,null,null,null,null,null,null,null,null,null,null,null,null,null,null,null,null,null,null,null,null,null,null,null,null,null,null,null,null,null,null,null,null,null,null,null,null,null,null,null,null,null,null,null,null,null,null,null,null,null,null,null,null,null,null,null,null,null,null,null,null,null,null,null,null,null,null,null,null,null,null,null,null,null,null,null,null,null,null,null,null,null,null,null,"С"]
[null,null,null,null,null,null,null,null,null,null,null,null,null,null,null,null,null,null,null,null,null,null,null,"пр"]
[]
[8,null,null,null,null,"Перминов К.И., дежурный зала",null,null,null,null,null,null,null,null,null,null,null,null,null,null,null,null,null,1,null,null,null,null,0.41666666666666669,null,null,null,null,null,"В",null,null,null,null,null,0.375,null,null,null,null,null,0.375,null,null,null,null,null,0.375,null,null,null,null,null,0.375,null,null,null,null,null,0.375,null,null,null,null,null,0.41666666666666669,null,null,null,null,null,"В",null,null,null,null,null,0.375,null,null,null,null,null,0.41666666666666669,null,null,null,null,null,"В",null,null,null,null,null,0.375,null,null,null,null,null,0.375,null,null,null,null,null,0.41666666666666669,null,null,null,null,null,"В",null,null,null,null,null,0.375,null,null,null,null,null,0.375,null,null,null,null,null,0.375,null,null,null,null,null,0.375,null,null,null,null,null,0.375,null,null,null,null,null,0.41666666666666669,null,null,null,null,null,"В",null,null,null,null,null,0.375,null,null,null,null,null,0.375,null,null,null,null,null,0.375,null,null,null,null,null,0.375,null,null,null,null,null,0.375,null,null,null,null,null,0.41666666666666669,null,null,null,null,null,"В",null,null,null,null,null,null,null,null,null,null,null,{"$f":"COUNT(AC63:HF63)","v":24},null,null,null,null,null,null,null,null,null,null,null,null,null,null,null,null,null,{"$f":"SUM(IFERROR(AC64:HF64-AC63:HF63-AC65:HF65,0))","v":6.9583333333333348}]
[null,null,null,null,null,null,null,null,null,null,null,null,null,null,null,null,null,null,null,null,null,null,null,null,null,null,null,null,0.66666666666666663,null,null,null,null,null,"В",null,null,null,null,null,0.79166666666666663,null,null,null,null,null,0.79166666666666663,null,null,null,null,null,0.79166666666666663,null,null,null,null,null,0.79166666666666663,null,null,null,null,null,0.79166666666666663,null,null,null,null,null,0.66666666666666663,null,null,null,null,null,"В",null,null,null,null,null,0.79166666666666663,null,null,null,null,null,0.66666666666666663,null,null,null,null,null,"В",null,null,null,null,null,0.79166666666666663,null,null,null,null,null,0.79166666666666663,null,null,null,null,null,0.66666666666666663,null,null,null,null,null,"В",null,null,null,null,null,0.79166666666666663,null,null,null,null,null,0.79166666666666663,null,null,null,null,null,0.79166666666666663,null,null,null,null,null,0.79166666666666663,null,null,null,null,null,0.79166666666666663,null,null,null,null,null,0.66666666666666663,null,null,null,null,null,"В",null,null,null,null,null,0.79166666666666663,null,null,null,null,null,0.79166666666666663,null,null,null,null,null,0.79166666666666663,null,null,null,null,null,0.79166666666666663,null,null,null,null,null,0.79166666666666663,null,null,null,null,null,0.66666666666666663,null,null,null,null,null,"В"]
[null,null,null,null,null,null,null,null,null,null,null,null,null,null,null,null,null,null,null,null,null,null,null,"обед",null,null,null,null,"01:00:00",null,null,null,null,null,null,null,null,null,null,null,"02:00:00",null,null,null,null,null,"02:00:00",null,null,null,null,null,"02:00:00",null,null,null,null,null,"02:00:00",null,null,null,null,null,"02:00:00",null,null,null,null,null,"01:00:00",null,null,null,null,null,null,null,null,null,null,null,"02:00:00",null,null,null,null,null,"01:00:00",null,null,null,null,null,null,null,null,null,null,null,"02:00:00",null,null,null,null,null,"02:00:00",null,null,null,null,null,"01:00:00",null,null,null,null,null,null,null,null,null,null,null,"02:00:00",null,null,null,null,null,"02:00:00",null,null,null,null,null,"02:00:00",null,null,null,null,null,"03:00:00",null,null,null,null,null,"03:00:00",null,null,null,null,null,"01:00:00",null,null,null,null,null,null,null,null,null,null,null,"03:00:00",null,null,null,null,null,"03:00:00",null,null,null,null,null,"03:00:00",null,null,null,null,null,"03:00:00",null,null,null,null,null,"03:00:00",null,null,null,null,null,"01:00:00"]
[]
[null,null,null,null,null,null,null,null,null,null,null,null,null,null,null,null,null,null,null,null,null,null,null,"пр"]
[]
[9,null,null,null,null,"Перминов К.И., кассир",null,null,null,null,null,null,null,null,null,null,null,null,null,null,null,null,null,0.25,null,null,null,null,0.375,null,null,null,null,null,null,null,null,null,null,null,0.375,null,null,null,null,null,0.375,null,null,null,null,null,0.375,null,null,null,null,null,0.375,null,null,null,null,null,0.375,null,null,null,null,null,0.375,null,null,null,null,null,null,null,null,null,null,null,0.375,null,null,null,null,null,0.375,null,null,null,null,null,"В",null,null,null,null,null,0.375,null,null,null,null,null,0.375,null,null,null,null,null,0.375,null,null,null,null,null,null,null,null,null,null,null,0.375,null,null,null,null,null,0.375,null,null,null,null,null,0.375,null,null,null,null,null,0.375,null,null,null,null,null,0.375,null,null,null,null,null,0.375,null,null,null,null,null,null,null,null,null,null,null,0.375,null,null,null,null,null,0.375,null,null,null,null,null,0.375,null,null,null,null,null,0.375,null,null,null,null,null,0.375,null,null,null,null,null,0.375,null,null,null,null,null,null,null,null,null,null,null,null,null,null,null,null,null,{"$f":"COUNT(AC69:HF69)","v":24},null,null,null,null,null,null,null,null,null,null,null,null,null,null,null,null,null,{"$f":"SUM(IFERROR(AC70:HF70-AC69:HF69-AC71:HF71,0))","v":1.739583333333333}]
[null,null,null,null,null,null,null,null,null,null,null,null,null,null,null,null,null,null,null,null,null,null,null,null,null,null,null,null,0.45833333333333331,null,null,null,null,null,null,null,null,null,null,null,0.45833333333333331,null,null,null,null,null,0.45833333333333331,null,null,null,null,null,0.45833333333333331,null,null,null,null,null,0.45833333333333331,null,null,null,null,null,0.45833333333333331,null,null,null,null,null,0.45833333333333331,null,null,null,null,null,null,null,null,null,null,null,0.45833333333333331,null,null,null,null,null,0.45833333333333331,null,null,null,null,null,"В",null,null,null,null,null,0.45833333333333331,null,null,null,null,null,0.45833333333333331,null,null,null,null,null,0.45833333333333331,null,null,null,null,null,null,null,null,null,null,null,0.45833333333333331,null,null,null,null,null,0.45833333333333331,null,null,null,null,null,0.45833333333333331,null,null,null,null,null,0.45833333333333331,null,null,null,null,null,0.45833333333333331,null,null,null,null,null,0.41666666666666669,null,null,null,null,null,null,null,null,null,null,null,0.41666666666666669,null,null,null,null,null,0.41666666666666669,null,null,null,null,null,0.41666666666666669,null,null,null,null,null,0.41666666666666669,null,null,null,null,null,0.41666666666666669,null,null,null,null,null,0.44791666666666669]
[null,null,null,null,null,null,null,null,null,null,null,null,null,null,null,null,null,null,null,null,null,null,null,"обед"]
[]
[null,null,null,null,null,null,null,null,null,null,null,null,null,null,null,null,null,null,null,null,null,null,null,"пр"]
[]
[10,null,null,null,null,"Бутелин Ю.Н., сторож",null,null,null,null,null,null,null,null,null,null,null,null,null,null,null,null,null,1,null,null,null,null,0.70833333333333337,null,null,null,null,null,"В",null,null,null,null,null,"В",null,null,null,null,null,0.70833333333333337,null,null,null,null,null,"В",null,null,null,null,null,"В",null,null,null,null,null,0.70833333333333337,null,null,null,null,null,"В",null,null,null,null,null,"В",null,null,null,null,null,0.66666666666666663,null,null,null,null,null,"В",null,null,null,null,null,"В",null,null,null,null,null,0.66666666666666663,null,null,null,null,null,"В",null,null,null,null,null,"В",null,null,null,null,null,0.66666666666666663,null,null,null,null,null,"В",null,null,null,null,null,"В",null,null,null,null,null,0.66666666666666663,null,null,null,null,null,"В",null,null,null,null,null,"В",null,null,null,null,null,0.66666666666666663,null,null,null,null,null,"В",null,null,null,null,null,"В",null,null,null,null,null,0.66666666666666663,null,null,null,null,null,"В",null,null,null,null,null,"В",null,null,null,null,null,0.66666666666666663,null,null,null,null,null,"В",null,null,null,null,null,"В",null,null,null,null,null,null,null,null,null,null,null,{"$f":"COUNT(AC75:HF75)","v":10},null,null,null,null,null,null,null,null,null,null,null,null,null,null,null,null,null,{"$f":"SUM(IF(ISNUMBER(AC75:HF75),AC76:HF76-AC75:HF75+(AC76:HF76<AC75:HF75),))*24","v":166.99999999999997}]
[null,null,null,null,null,null,null,null,null,null,null,null,null,null,null,null,null,null,null,null,null,null,null,null,null,null,null,null,0.375,null,null,null,null,null,"В",null,null,null,null,null,"В",null,null,null,null,null,0.375,null,null,null,null,null,"В",null,null,null,null,null,"В",null,null,null,null,null,0.375,null,null,null,null,null,"В",null,null,null,null,null,"В",null,null,null,null,null,0.375,null,null,null,null,null,"В",null,null,null,null,null,"В",null,null,null,null,null,0.375,null,null,null,null,null,"В",null,null,null,null,null,"В",null,null,null,null,null,0.375,null,null,null,null,null,"В",null,null,null,null,null,"В",null,null,null,null,null,0.375,null,null,null,null,null,"В",null,null,null,null,null,"В",null,null,null,null,null,0.375,null,null,null,null,null,"В",null,null,null,null,null,"В",null,null,null,null,null,0.375,null,null,null,null,null,"В",null,null,null,null,null,"В",null,null,null,null,null,0.375,null,null,null,null,null,"В",null,null,null,null,null,"В"]
[null,null,null,null,null,null,null,null,null,null,null,null,null,null,null,null,null,null,null,null,null,null,null,null,null,null,null,null,null,null,null,null,null,null,null,null,null,null,null,null,null,null,null,null,null,null,null,null,null,null,null,null,null,null,null,null,null,null,null,null,null,null,null,null,null,null,null,null,null,null,null,null,null,null,null,null,null,null,null,null,null,null,null,null,null,null,null,null,null,null,null,null,null,null,null,null,null,null,null,null,null,null,null,null,null,null,null,null,null,null,null,null,null,null,null,null,null,null,null,null,null,null,null,null,null,null,null,null,null,null,null,null,null,null,null,null,null,null,null,null,null,null,null,null,null,null,null,null,null,null,null,null,null,null,null,null,null,null,null,null,null,null,null,null,null,null,null,null,null,null,null,null,null,null,null,null,null,null,null,null,null,null,null,null,null,null,null,null,null,null,null,null,null,null,null,null,null,null,null,null,null,null,null,null,null,null,null,null,null,null,null,null,null,null,null,null,null,null,null,null,null,null,null,null,null,null,null,null,null,null,null,null,{"$f":"SUM(AC77:HF77)","v":0}]
[]
[null,null,null,null,null,null,null,null,null,null,null,null,null,null,null,null,null,null,null,null,null,null,null,"НОЧЬ",null,null,null,null,{"$f":"(MIN(AC76,6/24)-MIN(AC75,6/24)+MAX(AC76,22/24)-MAX(AC75,22/24))*24+(AC76<AC75)*8","v":8},null,null,null,null,null,{"$f":"(MIN(AI76,6/24)-MIN(AI75,6/24)+MAX(AI76,22/24)-MAX(AI75,22/24))*24+(AI76<AI75)*8","v":0},null,null,null,null,null,{"$f":"(MIN(AO76,6/24)-MIN(AO75,6/24)+MAX(AO76,22/24)-MAX(AO75,22/24))*24+(AO76<AO75)*8","v":0},null,null,null,null,null,{"$f":"(MIN(AU76,6/24)-MIN(AU75,6/24)+MAX(AU76,22/24)-MAX(AU75,22/24))*24+(AU76<AU75)*8","v":8},null,null,null,null,null,{"$f":"(MIN(BA76,6/24)-MIN(BA75,6/24)+MAX(BA76,22/24)-MAX(BA75,22/24))*24+(BA76<BA75)*8","v":0},null,null,null,null,null,{"$f":"(MIN(BG76,6/24)-MIN(BG75,6/24)+MAX(BG76,22/24)-MAX(BG75,22/24))*24+(BG76<BG75)*8","v":0},null,null,null,null,null,{"$f":"(MIN(BM76,6/24)-MIN(BM75,6/24)+MAX(BM76,22/24)-MAX(BM75,22/24))*24+(BM76<BM75)*8","v":8},null,null,null,null,null,{"$f":"(MIN(BS76,6/24)-MIN(BS75,6/24)+MAX(BS76,22/24)-MAX(BS75,22/24))*24+(BS76<BS75)*8","v":0},null,null,null,null,null,{"$f":"(MIN(BY76,6/24)-MIN(BY75,6/24)+MAX(BY76,22/24)-MAX(BY75,22/24))*24+(BY76<BY75)*8","v":0},null,null,null,null,null,{"$f":"(MIN(CE76,6/24)-MIN(CE75,6/24)+MAX(CE76,22/24)-MAX(CE75,22/24))*24+(CE76<CE75)*8","v":8},null,null,null,null,null,{"$f":"(MIN(CK76,6/24)-MIN(CK75,6/24)+MAX(CK76,22/24)-MAX(CK75,22/24))*24+(CK76<CK75)*8","v":0},null,null,null,null,null,{"$f":"(MIN(CQ76,6/24)-MIN(CQ75,6/24)+MAX(CQ76,22/24)-MAX(CQ75,22/24))*24+(CQ76<CQ75)*8","v":0},null,null,null,null,null,{"$f":"(MIN(CW76,6/24)-MIN(CW75,6/24)+MAX(CW76,22/24)-MAX(CW75,22/24))*24+(CW76<CW75)*8","v":8},null,null,null,null,null,{"$f":"(MIN(DC76,6/24)-MIN(DC75,6/24)+MAX(DC76,22/24)-MAX(DC75,22/24))*24+(DC76<DC75)*8","v":0},null,null,null,null,null,{"$f":"(MIN(DI76,6/24)-MIN(DI75,6/24)+MAX(DI76,22/24)-MAX(DI75,22/24))*24+(DI76<DI75)*8","v":0},null,null,null,null,null,{"$f":"(MIN(DO76,6/24)-MIN(DO75,6/24)+MAX(DO76,22/24)-MAX(DO75,22/24))*24+(DO76<DO75)*8","v":8},null,null,null,null,null,{"$f":"(MIN(DU76,6/24)-MIN(DU75,6/24)+MAX(DU76,22/24)-MAX(DU75,22/24))*24+(DU76<DU75)*8","v":0},null,null,null,null,null,{"$f":"(MIN(EA76,6/24)-MIN(EA75,6/24)+MAX(EA76,22/24)-MAX(EA75,22/24))*24+(EA76<EA75)*8","v":0},null,null,null,null,null,{"$f":"(MIN(EG76,6/24)-MIN(EG75,6/24)+MAX(EG76,22/24)-MAX(EG75,22/24))*24+(EG76<EG75)*8","v":8},null,null,null,null,null,{"$f":"(MIN(EM76,6/24)-MIN(EM75,6/24)+MAX(EM76,22/24)-MAX(EM75,22/24))*24+(EM76<EM75)*8","v":0},null,null,null,null,null,{"$f":"(MIN(ES76,6/24)-MIN(ES75,6/24)+MAX(ES76,22/24)-MAX(ES75,22/24))*24+(ES76<ES75)*8","v":0},null,null,null,null,null,{"$f":"(MIN(EY76,6/24)-MIN(EY75,6/24)+MAX(EY76,22/24)-MAX(EY75,22/24))*24+(EY76<EY75)*8","v":8},null,null,null,null,null,{"$f":"(MIN(FE76,6/24)-MIN(FE75,6/24)+MAX(FE76,22/24)-MAX(FE75,22/24))*24+(FE76<FE75)*8","v":0},null,null,null,null,null,{"$f":"(MIN(FK76,6/24)-MIN(FK75,6/24)+MAX(FK76,22/24)-MAX(FK75,22/24))*24+(FK76<FK75)*8","v":0},null,null,null,null,null,{"$f":"(MIN(FQ76,6/24)-MIN(FQ75,6/24)+MAX(FQ76,22/24)-MAX(FQ75,22/24))*24+(FQ76<FQ75)*8","v":8},null,null,null,null,null,{"$f":"(MIN(FW76,6/24)-MIN(FW75,6/24)+MAX(FW76,22/24)-MAX(FW75,22/24))*24+(FW76<FW75)*8","v":0},null,null,null,null,null,{"$f":"(MIN(GC76,6/24)-MIN(GC75,6/24)+MAX(GC76,22/24)-MAX(GC75,22/24))*24+(GC76<GC75)*8","v":0},null,null,null,null,null,{"$f":"(MIN(GI76,6/24)-MIN(GI75,6/24)+MAX(GI76,22/24)-MAX(GI75,22/24))*24+(GI76<GI75)*8","v":8},null,null,null,null,null,{"$f":"(MIN(GO76,6/24)-MIN(GO75,6/24)+MAX(GO76,22/24)-MAX(GO75,22/24))*24+(GO76<GO75)*8","v":0},null,null,null,null,null,{"$f":"(MIN(GU76,6/24)-MIN(GU75,6/24)+MAX(GU76,22/24)-MAX(GU75,22/24))*24+(GU76<GU75)*8","v":0},null,null,null,null,null,null,null,null,null,null,null,null,null,null,null,null,null,null,null,null,null,null,null,null,null,null,null,null,null,{"$f":"SUM(AC79:HF79)","v":80}]
[]
[null,null,null,null,null,null,null,null,null,null,null,null,null,null,null,null,null,null,null,null,null,null,null,"пр",null,null,null,null,null,null,null,null,null,null,null,null,null,null,null,null,null,null,null,null,null,null,null,null,null,null,null,null,null,null,null,null,null,null,null,null,null,null,null,null,null,null,null,null,null,null,null,null,null,null,null,null,null,null,null,null,null,null,null,null,null,null,null,null,null,null,null,null,null,null,null,null,null,null,null,null,null,null,null,null,null,null,null,null,null,null,null,null,null,null,null,null,null,null,null,null,null,null,null,null,null,null,null,null,null,null,null,null,null,null,null,null,null,null,null,null,null,null,null,null,null,null,null,null,null,null,null,null,null,null,null,null,null,null,null,null,null,null,null,null,null,null,null,null,null,null,null,null,null,null,null,null,null,null,null,null,null,null,null,null,null,null,null,null,null,null,null,null,null,null,null,null,null,null,null,null,null,null,null,null,null,null,null,null,null,null,null,null,null,null,null,null,null,null,null,null,null,null,null,null,null,null,null,null,null,null,null,null,{"$f":"SUM(AC81:HF81)","v":0}]
[]
[11,null,null,null,null,"Бутелин Ю.Н., контролёр-посадчик",null,null,null,null,null,null,null,null,null,null,null,null,null,null,null,null,null,0.25,null,null,null,null,4,null,null,null,null,null,null,null,null,null,null,null,null,null,null,null,null,null,4,null,null,null,null,null,null,null,null,null,null,null,null,null,null,null,null,null,4,null,null,null,null,null,null,null,null,null,null,null,null,null,null,null,null,null,4,null,null,null,null,null,null,null,null,null,null,null,null,null,null,null,null,null,4,null,null,null,null,null,null,null,null,null,null,null,null,null,null,null,null,null,4,null,null,null,null,null,null,null,null,null,null,null,null,null,null,null,null,null,4,null,null,null,null,null,null,null,null,null,null,null,null,null,null,null,null,null,4,null,null,null,null,null,null,null,null,null,null,null,null,null,null,null,null,null,4,null,null,null,null,null,null,null,null,null,null,null,null,null,null,null,null,null,5.45,null,null,null,null,null,null,null,null,null,null,null,null,null,null,null,null,null,null,null,null,null,null,null,{"$f":"COUNT(AC83:HF83)","v":10},null,null,null,null,null,null,null,null,null,null,null,null,null,null,null,null,null,{"$f":"SUM(AC83:HF83)","v":41.45}]
[]
[]
[]
[null,null,null,null,null,null,null,null,null,null,null,null,null,null,null,null,null,null,null,null,null,null,null,"пр",null,null,null,null,null,null,null,null,null,null,null,null,null,null,null,null,null,null,null,null,null,null,null,null,null,null,null,null,null,null,null,null,null,null,null,null,null,null,null,null,null,null,null,null,null,null,null,null,null,null,null,null,null,null,null,null,null,null,null,null,null,null,null,null,null,null,null,null,null,null,null,null,null,null,null,null,null,null,null,null,null,null,null,null,null,null,null,null,null,null,null,null,null,null,null,null,null,null,null,null,null,null,null,null,null,null,null,null,null,null,null,null,null,null,null,null,null,null,null,null,null,null,null,null,null,null,null,null,null,null,null,null,null,null,null,null,null,null,null,null,null,null,null,null,null,null,null,null,null,null,null,null,null,null,null,null,null,null,null,null,null,null,null,null,null,null,null,null,null,null,null,null,null,null,null,null,null,null,null,null,null,null,null,null,null,null,null,null,null,null,null,null,null,null,null,null,null,null,null,null,null,null,null,null,null,null,null,null,{"$f":"SUM(AC87:HF87)","v":0}]
[]
[12,null,null,null,null,"Медведев А.П., сторож",null,null,null,null,null,null,null,null,null,null,null,null,null,null,null,null,null,1,null,null,null,null,"В",null,null,null,null,null,0.95833333333333337,null,null,null,null,null,"В",null,null,null,null,null,"В",null,null,null,null,null,0.95833333333333337,null,null,null,null,null,"В",null,null,null,null,null,"В",null,null,null,null,null,0.95833333333333337,null,null,null,null,null,"В",null,null,null,null,null,"В",null,null,null,null,null,0.95833333333333337,null,null,null,null,null,"В",null,null,null,null,null,"В",null,null,null,null,null,0.95833333333333337,null,null,null,null,null,"В",null,null,null,null,null,"В",null,null,null,null,null,0.95833333333333337,null,null,null,null,null,"В",null,null,null,null,null,"В",null,null,null,null,null,0.95833333333333337,null,null,null,null,null,"В",null,null,null,null,null,"В",null,null,null,null,null,0.97916666666666663,null,null,null,null,null,"В",null,null,null,null,null,"В",null,null,null,null,null,0.97916666666666663,null,null,null,null,null,"В",null,null,null,null,null,"В",null,null,null,null,null,0.97916666666666663,null,null,null,null,null,"В",null,null,null,null,null,null,null,null,null,null,null,{"$f":"COUNT(AC89:HF89)","v":10},null,null,null,null,null,null,null,null,null,null,null,null,null,null,null,null,null,{"$f":"HG89-SUM(AC89:HF89)+SUM(AC90:HF90)","v":3.4791666666666679}]
[null,null,null,null,null,null,null,null,null,null,null,null,null,null,null,null,null,null,null,null,null,null,null,null,null,null,null,null,"В",null,null,null,null,null,0.3125,null,null,null,null,null,"В",null,null,null,null,null,"В",null,null,null,null,null,0.3125,null,null,null,null,null,"В",null,null,null,null,null,"В",null,null,null,null,null,0.3125,null,null,null,null,null,"В",null,null,null,null,null,"В",null,null,null,null,null,0.3125,null,null,null,null,null,"В",null,null,null,null,null,"В",null,null,null,null,null,0.3125,null,null,null,null,null,"В",null,null,null,null,null,"В",null,null,null,null,null,0.3125,null,null,null,null,null,"В",null,null,null,null,null,"В",null,null,null,null,null,0.3125,null,null,null,null,null,"В",null,null,null,null,null,"В",null,null,null,null,null,0.3125,null,null,null,null,null,"В",null,null,null,null,null,"В",null,null,null,null,null,0.3125,null,null,null,null,null,"В",null,null,null,null,null,"В",null,null,null,null,null,0.3125,null,null,null,null,null,"В"]
[null,null,null,null,null,null,null,null,null,null,null,null,null,null,null,null,null,null,null,null,null,null,null,"обед",null,null,null,null,null,null,null,null,null,null,null,null,null,null,null,null,null,null,null,null,null,null,null,null,null,null,null,null,null,null,null,null,null,null,null,null,null,null,null,null,null,null,null,null,null,null,null,null,null,null,null,null,null,null,null,null,null,null,null,null,null,null,null,null,null,null,null,null,null,null,null,null,null,null,null,null,null,null,null,null,null,null,null,null,null,null,null,null,null,null,null,null,null,null,null,null,null,null,null,null,null,null,null,null,null,null,null,null,null,null,null,null,null,null,null,null,null,null,null,null,null,null,null,null,null,null,null,null,null,null,null,null,null,null,null,null,null,null,null,null,null,null,null,null,null,null,null,null,null,null,null,null,null,null,null,null,null,null,null,null,null,null,null,null,null,null,null,null,null,null,null,null,null,null,null,null,null,null,null,null,null,null,null,null,null,null,null,null,null,null,null,null,null,null,null,null,null,null,null,null,null,null,null,null,null,null,null,null,{"$f":"HG91-SUM(AC91:HF91)+SUM(AC92:HF92)","v":0}]
[]
[null,null,null,null,null,null,null,null,null,null,null,null,null,null,null,null,null,null,null,null,null,null,null,"НОЧЬ",null,null,null,null,{"$f":"(MIN(AC90,6/24)-MIN(AC89,6/24)+MAX(AC90,22/24)-MAX(AC89,22/24))*24+(AC90<AC89)*8","v":0},null,null,null,null,null,{"$f":"(MIN(AI90,6/24)-MIN(AI89,6/24)+MAX(AI90,22/24)-MAX(AI89,22/24))*24+(AI90<AI89)*8","v":6.9999999999999982},null,null,null,null,null,{"$f":"(MIN(AO90,6/24)-MIN(AO89,6/24)+MAX(AO90,22/24)-MAX(AO89,22/24))*24+(AO90<AO89)*8","v":0},null,null,null,null,null,{"$f":"(MIN(AU90,6/24)-MIN(AU89,6/24)+MAX(AU90,22/24)-MAX(AU89,22/24))*24+(AU90<AU89)*8","v":0},null,null,null,null,null,{"$f":"(MIN(BA90,6/24)-MIN(BA89,6/24)+MAX(BA90,22/24)-MAX(BA89,22/24))*24+(BA90<BA89)*8","v":6.9999999999999982},null,null,null,null,null,{"$f":"(MIN(BG90,6/24)-MIN(BG89,6/24)+MAX(BG90,22/24)-MAX(BG89,22/24))*24+(BG90<BG89)*8","v":0},null,null,null,null,null,{"$f":"(MIN(BM90,6/24)-MIN(BM89,6/24)+MAX(BM90,22/24)-MAX(BM89,22/24))*24+(BM90<BM89)*8","v":0},null,null,null,null,null,{"$f":"(MIN(BS90,6/24)-MIN(BS89,6/24)+MAX(BS90,22/24)-MAX(BS89,22/24))*24+(BS90<BS89)*8","v":6.9999999999999982},null,null,null,null,null,{"$f":"(MIN(BY90,6/24)-MIN(BY89,6/24)+MAX(BY90,22/24)-MAX(BY89,22/24))*24+(BY90<BY89)*8","v":0},null,null,null,null,null,{"$f":"(MIN(CE90,6/24)-MIN(CE89,6/24)+MAX(CE90,22/24)-MAX(CE89,22/24))*24+(CE90<CE89)*8","v":0},null,null,null,null,null,{"$f":"(MIN(CK90,6/24)-MIN(CK89,6/24)+MAX(CK90,22/24)-MAX(CK89,22/24))*24+(CK90<CK89)*8","v":6.9999999999999982},null,null,null,null,null,{"$f":"(MIN(CQ90,6/24)-MIN(CQ89,6/24)+MAX(CQ90,22/24)-MAX(CQ89,22/24))*24+(CQ90<CQ89)*8","v":0},null,null,null,null,null,{"$f":"(MIN(CW90,6/24)-MIN(CW89,6/24)+MAX(CW90,22/24)-MAX(CW89,22/24))*24+(CW90<CW89)*8","v":0},null,null,null,null,null,{"$f":"(MIN(DC90,6/24)-MIN(DC89,6/24)+MAX(DC90,22/24)-MAX(DC89,22/24))*24+(DC90<DC89)*8","v":6.9999999999999982},null,null,null,null,null,{"$f":"(MIN(DI90,6/24)-MIN(DI89,6/24)+MAX(DI90,22/24)-MAX(DI89,22/24))*24+(DI90<DI89)*8","v":0},null,null,null,null,null,{"$f":"(MIN(DO90,6/24)-MIN(DO89,6/24)+MAX(DO90,22/24)-MAX(DO89,22/24))*24+(DO90<DO89)*8","v":0},null,null,null,null,null,{"$f":"(MIN(DU90,6/24)-MIN(DU89,6/24)+MAX(DU90,22/24)-MAX(DU89,22/24))*24+(DU90<DU89)*8","v":6.9999999999999982},null,null,null,null,null,{"$f":"(MIN(EA90,6/24)-MIN(EA89,6/24)+MAX(EA90,22/24)-MAX(EA89,22/24))*24+(EA90<EA89)*8","v":0},null,null,null,null,null,{"$f":"(MIN(EG90,6/24)-MIN(EG89,6/24)+MAX(EG90,22/24)-MAX(EG89,22/24))*24+(EG90<EG89)*8","v":0},null,null,null,null,null,{"$f":"(MIN(EM90,6/24)-MIN(EM89,6/24)+MAX(EM90,22/24)-MAX(EM89,22/24))*24+(EM90<EM89)*8","v":6.9999999999999982},null,null,null,null,null,{"$f":"(MIN(ES90,6/24)-MIN(ES89,6/24)+MAX(ES90,22/24)-MAX(ES89,22/24))*24+(ES90<ES89)*8","v":0},null,null,null,null,null,{"$f":"(MIN(EY90,6/24)-MIN(EY89,6/24)+MAX(EY90,22/24)-MAX(EY89,22/24))*24+(EY90<EY89)*8","v":0},null,null,null,null,null,{"$f":"(MIN(FE90,6/24)-MIN(FE89,6/24)+MAX(FE90,22/24)-MAX(FE89,22/24))*24+(FE90<FE89)*8","v":6.5},null,null,null,null,null,{"$f":"(MIN(FK90,6/24)-MIN(FK89,6/24)+MAX(FK90,22/24)-MAX(FK89,22/24))*24+(FK90<FK89)*8","v":0},null,null,null,null,null,{"$f":"(MIN(FQ90,6/24)-MIN(FQ89,6/24)+MAX(FQ90,22/24)-MAX(FQ89,22/24))*24+(FQ90<FQ89)*8","v":0},null,null,null,null,null,{"$f":"(MIN(FW90,6/24)-MIN(FW89,6/24)+MAX(FW90,22/24)-MAX(FW89,22/24))*24+(FW90<FW89)*8","v":6.5},null,null,null,null,null,{"$f":"(MIN(GC90,6/24)-MIN(GC89,6/24)+MAX(GC90,22/24)-MAX(GC89,22/24))*24+(GC90<GC89)*8","v":0},null,null,null,null,null,{"$f":"(MIN(GI90,6/24)-MIN(GI89,6/24)+MAX(GI90,22/24)-MAX(GI89,22/24))*24+(GI90<GI89)*8","v":0},null,null,null,null,null,{"$f":"(MIN(GO90,6/24)-MIN(GO89,6/24)+MAX(GO90,22/24)-MAX(GO89,22/24))*24+(GO90<GO89)*8","v":6.5},null,null,null,null,null,null,null,null,null,null,null,null,null,null,null,null,null,null,null,null,null,null,null,null,null,null,null,null,null,null,null,null,null,null,null,{"$f":"SUM(AC93:HF93)","v":68.5}]
[]
[null,null,null,null,null,null,null,null,null,null,null,null,null,null,null,null,null,null,null,null,null,null,null,"пр",null,null,null,null,null,null,null,null,null,null,null,null,null,null,null,null,null,null,null,null,null,null,null,null,null,null,null,null,null,null,null,null,null,null,null,null,null,null,null,null,null,null,null,null,null,null,null,null,null,null,null,null,null,null,null,null,null,null,null,null,null,null,null,null,null,null,null,null,null,null,null,null,null,null,null,null,null,null,null,null,null,null,null,null,null,null,null,null,null,null,null,null,null,null,null,null,null,null,null,null,null,null,null,null,null,null,null,null,null,null,null,null,null,null,null,null,null,null,null,null,null,null,null,null,null,null,null,null,null,null,null,null,null,null,null,null,null,null,null,null,null,null,null,null,null,null,null,null,null,null,null,null,null,null,null,null,null,null,null,null,null,null,null,null,null,null,null,null,null,null,null,null,null,null,null,null,null,null,null,null,null,null,null,null,null,null,null,null,null,null,null,null,null,null,null,null,null,null,null,null,null,null,null,null,null,null,null,null,{"$f":"SUM(AC95:HF95)","v":0}]

{"sheet":"К.П. СПИСОК СОТРУДНИКОВ","index":2,"n_rows":13,"n_cols":8,"rows_kept":13,"cut":false,"hidden":false,"merged":[[7,2,7,4],[1,0,1,8],[3,2,3,4],[4,2,4,4],[5,2,5,4],[6,2,6,4],[8,2,8,4],[9,2,9,4],[10,2,10,4],[11,2,11,4],[12,2,12,4]]}
[]
["С ГРАФИКОМ РАБОТЫ НА _________________ ОЗНАКОМЛЕН(А)"]
[]
[1,"Слезинский В.Е.",null,null,null,"\"____\"___________2020",null,2020]
[2,"Медведев А.П.",null,null,null,"\"____\"___________2020",null,2020]
[3,"Береговой Г.П.",null,null,null,"\"____\"___________2020",null,2020]
[4,"Воротынцева В.Н.",null,null,null,"\"____\"___________2020",null,2020]
[5,"Окорочкова О.Т.",null,null,null,"\"____\"___________2020",null,2020]
[6,"Пермякова Т.М.",null,null,null,"\"____\"___________2020",null,2020]
[7,"Алексеева Р.И.",null,null,null,"\"____\"___________2020",null,2020]
[8,"Перминов К.И.",null,null,null,"\"____\"___________2020",null,2020]
[9,"Бутелин  Ю.Н. ",null,null,null,"\"____\"___________2020",null,2020]
[10,"Медведев А.П.",null,null,null,"\"____\"___________2020",null,2020]

{"sheet":"И.Б. ИЮНЬ 2020 ","index":3,"n_rows":36,"n_cols":257,"rows_kept":36,"cut":false,"hidden":false,"merged":[[20,202,20,207],[20,208,20,212],[35,73,39,131],[17,24,17,27],[17,28,17,33],[20,28,20,33],[20,34,20,39],[20,40,20,45],[20,46,20,51],[20,52,20,57],[20,58,20,63],[20,64,20,69],[20,70,20,75],[20,76,20,81],[20,82,20,87],[20,88,20,93],[20,94,20,99],[20,100,20,105],[20,106,20,111],[20,112,20,117],[20,118,20,123],[20,124,20,129],[20,130,20,135],[20,136,20,141],[20,142,20,147],[20,148,20,153],[20,154,20,159],[20,160,20,165],[20,166,20,171],[20,172,20,177],[20,178,20,183],[18,214,18,232],[18,250,18,254],[19,214,19,228],[19,250,19,254],[18,202,19,207],[18,184,19,189],[18,190,19,195],[18,196,19,201],[20,184,20,189],[20,190,20,195],[20,196,20,201],[18,94,19,99],[14,0,14,227],[18,166,19,171],[18,100,19,105],[18,106,19,111],[18,112,19,117],[18,118,19,123],[18,124,19,129],[18,130,19,135],[18,136,19,141],[18,142,19,147],[18,148,19,153],[18,154,19,159],[18,160,19,165],[18,172,19,177],[18,178,19,183],[13,250,13,254],[0,241,0,242],[1,0,1,2],[1,241,1,242],[2,0,2,2],[2,241,2,242],[3,0,3,2],[3,241,3,242],[4,241,4,242],[7,0,7,76],[11,210,11,227],[11,235,12,235],[12,211,12,219],[17,250,17,254],[18,0,19,4],[18,5,19,22],[18,23,19,27],[18,28,19,33],[18,34,19,39],[18,40,19,45],[18,46,19,51],[18,52,19,57],[18,58,19,63],[18,208,19,213],[18,64,19,69],[18,70,19,75],[18,76,19,81],[18,82,19,87],[18,88,19,93],[14,250,14,254],[15,0,15,227],[15,250,15,254],[16,0,16,227],[16,250,16,254]]}
[]
[]
[]
[]
[null,null,null,null,null,null,null,null,{"$f":"IF(OR(#REF!<D3,AND(#REF!<D2,#REF!=D3)),$CN$19,IF(OR(#REF!>D3,AND(#REF!>D2,#REF!=D3)),0,DAY(A2)))","v":{"$error":"#REF!"}}]
[]
[null,null,null,null,null,null,null,null,null,null,null,null,null,null,null,null,null,null,null,null,null,null,null,null,null,null,null,null,null,null,null,null,null,null,null,null,null,null,null,null,null,null,null,null,null,null,null,null,null,null,null,null,null,null,null,null,null,null,null,null,null,null,null,null,null,null,null,null,null,null,null,null,null,null,null,null,null,null,null,null,null,null,null,null,null,null,null,null,null,null,null,null,null,null,null,null,null,null,null,null,null,null,null,null,null,null,null,null,null,null,null,null,null,null,null,null,null,null,null,null,null,null,null,null,null,null,null,null,null,null,null,null,null,null,null,null,null,null,null,null,null,null,null,null,null,null,null,null,null,null,null,null,null,null,null,null,null,null,null,null,null,null,null,null,null,null,null,null,null,null,null,null,null,null,null,null,null,null,null,null,null,null,null,null,null,null,null,null,null,null,null,null,null,null,null,null,null,null,null,null,null,null,null,null,null,null,null,null,1]
[null,null,null,null,null,null,null,null,null,null,null,null,null,null,null,null,null,null,null,null,null,null,null,null,null,null,null,null,null,null,null,null,null,null,null,null,null,null,null,null,null,null,null,null,null,null,null,null,null,null,null,null,null,null,null,null,null,null,null,null,null,null,null,null,null,null,null,null,null,null,null,null,null,null,null,null,null,null,null,null,null,null,null,null,null,null,null,null,null,null,null,null,null,null,null,null,null,null,null,null,null,null,null,null,null,null,null,null,null,null,null,null,null,null,null,null,null,null,null,null,null,null,null,null,null,null,null,null,null,null,null,null,null,null,null,null,null,null,null,null,null,null,null,null,null,null,null,null,null,null,null,null,null,null,null,null,null,null,null,null,null,null,null,null,null,null,null,null,null,null,null,null,null,null,null,null,null,null,null,null,null,null,null,null,null,null,null,null,null,null,null,null,null,null,null,null,null,null,null,null,null,null,null,null,null,null,null,null,2]
[]
[null,null,null,null,null,null,null,null,null,null,null,null,null,null,null,null,null,null,null,null,null,null,null,null,null,null,null,null,null,null,null,null,null,null,null,null,null,null,null,null,null,null,null,null,null,null,null,null,null,null,null,null,null,null,null,null,null,null,null,null,null,null,null,null,null,null,null,null,null,null,null,null,null,null,null,null,null,null,null,null,null,null,null,null,null,null,null,null,null,null,null,null,null,null,null,null,null,null,null,null,null,null,null,null,null,null,null,null,null,null,null,null,null,null,null,null,null,null,null,null,null,null,null,null,null,null,null,null,null,null,null,null,null,null,null,null,null,null,null,null,null,null,null,null,null,null,null,null,null,null,null,null,null,null,null,null,null,null,null,null,null,null,null,null,null,null,null,null,null,null,null,null,null,null,null,null,null,null,null,null,null,null,null,null,null,null,null,null,null,null,"УТВЕРЖДАЮ"]
[null,null,null,null,null,null,null,null,null,null,null,null,null,null,null,null,null,null,null,null,null,null,null,null,null,null,null,null,null,null,null,null,null,null,null,null,null,null,null,null,null,null,null,null,null,null,null,null,null,null,null,null,null,null,null,null,null,null,null,null,null,null,null,null,null,null,null,null,null,null,null,null,null,null,null,null,null,null,null,null,null,null,null,null,null,null,null,null,null,null,null,null,null,null,null,null,null,null,null,null,null,null,null,null,null,null,null,null,null,null,null,null,null,null,null,null,null,null,null,null,null,null,null,null,null,null,null,null,null,null,null,null,null,null,null,null,null,null,null,null,null,null,null,null,null,null,null,null,null,null,null,null,null,null,null,null,null,null,null,null,null,null,null,null,null,null,null,null,null,null,null,null,null,null,null,null,null,null,null,null,null,null,null,null,null,null,null,null,null,null," "]
[null,null,null,null,null,null,null,null,null,null,null,null,null,null,null,null,null,null,null,null,null,null,null,null,null,null,null,null,null,null,null,null,null,null,null,null,null,null,null,null,null,null,null,null,null,null,null,null,null,null,null,null,null,null,null,null,null,null,null,null,null,null,null,null,null,null,null,null,null,null,null,null,null,null,null,null,null,null,null,null,null,null,null,null,null,null,null,null,null,null,null,null,null,null,null,null,null,null,null,null,null,null,null,null,null,null,null,null,null,null,null,null,null,null,null,null,null,null,null,null,null,null,null,null,null,null,null,null,null,null,null,null,null,null,null,null,null,null,null,null,null,null,null,null,null,null,null,null,null,null,null,null,null,null,null,null,null,null,null,null,null,null,null,null,null,null,null,null,null,null,null,null,null,null,null,null,null,null,null,null,null,null,null,null,null,null,null,null,null,null,"_______________С. А. Сорокина"]
[null,null,null,null,null,null,null,null,null,null,null,null,null,null,null,null,null,null,null,null,null,null,null,null,null,null,null,null,null,null,null,null,null,null,null,null,null,null,null,null,null,null,null,null,null,null,null,null,null,null,null,null,null,null,null,null,null,null,null,null,null,null,null,null,null,null,null,null,null,null,null,null,null,null,null,null,null,null,null,null,null,null,null,null,null,null,null,null,null,null,null,null,null,null,null,null,null,null,null,null,null,null,null,null,null,null,null,null,null,null,null,null,null,null,null,null,null,null,null,null,null,null,null,null,null,null,null,null,null,null,null,null,null,null,null,null,null,null,null,null,null,null,null,null,null,null,null,null,null,null,null,null,null,null,null,null,null,null,null,null,null,null,null,null,null,null,null,null,null,null,null,null,null,null,null,null,null,null,null,null,null,null,null,null,null,null,null,null,null,null,"« 10 »     февраля    2020г.",null,null,null,null,null,null,null,null,null,null,"апреля"]
[null,null,null,null,null,null,null,null,null,null,null,null,null,null,null,null,null,null,null,null,null,null,null,null,null,null,null,null,null,null,null,null,null,null,null,null,null,null,null,null,null,null,null,null,null,null,null,null,null,null,null,null,null,null,null,null,null,null,null,null,null,null,null,null,null,null,null,null,null,null,null,null,null,null,null,null,null,null,null,null,null,null,null,null,null,null,null,null,null,null,null,null,null,null,null,null,null,null,null,null,null,null,null,null,null,null,null,null,null,null,null,null,null,null,null,null,null,null,null,null,null,null,null,null,null,null,null,null,null,null,null,null,null,null,null,null,null,null,null,null,null,null,null,null,null,null,null,null,null,null,null,null,null,null,null,null,null,null,null,null,null,null,null,null,null,null,null,null,null,null,null,null,null,null,null,null,null,null,null,null,null,null,null,null,null,null,null,null,null,null,null,null,null,null,null,null,null,null,null,null,null,null,null,null,null,null,null,null,null,null,null,null,null,null,null,null,null,null,null,null,null,null,null,null,null,null,null,null,null,null,null,null,null,null,null,null,null,null,null,null,null,null,null,null,null,null,null,null,null,null,null,null,null,null,null,null,1]
["ГРАФИК",null,null,null,null,null,null,null,null,null,null,null,null,null,null,null,null,null,null,null,null,null,null,null,null,null,null,null,null,null,null,null,null,null,null,null,null,null,null,null,null,null,null,null,null,null,null,null,null,null,null,null,null,null,null,null,null,null,null,null,null,null,null,null,null,null,null,null,null,null,null,null,null,null,null,null,null,null,null,null,null,null,null,null,null,null,null,null,null,null,null,null,null,null,null,null,null,null,null,null,null,null,null,null,null,null,null,null,null,null,null,null,null,null,null,null,null,null,null,null,null,null,null,null,null,null,null,null,null,null,null,null,null,null,null,null,null,null,null,null,null,null,null,null,null,null,null,null,null,null,null,null,null,null,null,null,null,null,null,null,null,null,null,null,null,null,null,null,null,null,null,null,null,null,null,null,null,null,null,null,null,null,null,null,null,null,null,null,null,null,null,null,null,null,null,null,null,null,null,null,null,null,null,null,null,null,null,null,null,null,null,null,null,null,null,null,null,null,null,null,null,null,null,null,null,null,null,null,null,null,null,null,null,null,null,null,null,null,null,null,null,null,null,null,null,null,null,null,null,null,null,null,null,null,null,null,0.5]
["УЧЕТА ИСПОЛЬЗОВАНИЯ РАБОЧЕГО ВРЕМЕНИ ОБСЛУЖИВАЮЩЕГО ПЕРСОНАЛА",null,null,null,null,null,null,null,null,null,null,null,null,null,null,null,null,null,null,null,null,null,null,null,null,null,null,null,null,null,null,null,null,null,null,null,null,null,null,null,null,null,null,null,null,null,null,null,null,null,null,null,null,null,null,null,null,null,null,null,null,null,null,null,null,null,null,null,null,null,null,null,null,null,null,null,null,null,null,null,null,null,null,null,null,null,null,null,null,null,null,null,null,null,null,null,null,null,null,null,null,null,null,null,null,null,null,null,null,null,null,null,null,null,null,null,null,null,null,null,null,null,null,null,null,null,null,null,null,null,null,null,null,null,null,null,null,null,null,null,null,null,null,null,null,null,null,null,null,null,null,null,null,null,null,null,null,null,null,null,null,null,null,null,null,null,null,null,null,null,null,null,null,null,null,null,null,null,null,null,null,null,null,null,null,null,null,null,null,null,null,null,null,null,null,null,null,null,null,null,null,null,null,null,null,null,null,null,null,null,null,null,null,null,null,null,null,null,null,null,null,null,null,null,null,null,null,null,null,null,null,null,null,null,null,null,null,null,null,null,null,null,null,null,null,null,null,null,null,null,null,null,null,null,null,null,0.25]
["2020-06-01"]
[]
["№ п/п",null,null,null,null,"Фамилия Инициалы",null,null,null,null,null,null,null,null,null,null,null,null,null,null,null,null,null,"Ставка",null,null,null,null,1,null,null,null,null,null,2,null,null,null,null,null,"1900-01-03",null,null,null,null,null,4,null,null,null,null,null,5,null,null,null,null,null,6,null,null,null,null,null,7,null,null,null,null,null,8,null,null,null,null,null,9,null,null,null,null,null,10,null,null,null,null,null,11,null,null,null,null,null,12,null,null,null,null,null,13,null,null,null,null,null,14,null,null,null,null,null,15,null,null,null,null,null,16,null,null,null,null,null,17,null,null,null,null,null,18,null,null,null,null,null,19,null,null,null,null,null,20,null,null,null,null,null,21,null,null,null,null,null,22,null,null,null,null,null,23,null,null,null,null,null,24,null,null,null,null,null,25,null,null,null,null,null,26,null,null,null,null,null,27,null,null,null,null,null,28,null,null,null,null,null,{"$f":"IF($GI$19+1<=DAY(EOMONTH($A$17,0)),GI19+1,\"-\")","v":29},null,null,null,null,null,{"$f":"IF($GI$19+2<=DAY(EOMONTH($A$17,0)),GO19+1,\"-\")","v":30},null,null,null,null,null,{"$f":"IF($GI$19+3<=DAY(EOMONTH($A$17,0)),GU19+1,\"-\")","v":"-"},null,null,null,null,null,"ВСЕГО"]
[null,null,null,null,null,null,null,null,null,null,null,null,null,null,null,null,null,null,null,null,null,null,null,null,null,null,null,null,null,null,null,null,null,null,null,null,null,null,null,null,null,null,null,null,null,null,null,null,null,null,null,null,null,null,null,null,null,null,null,null,null,null,null,null,null,null,null,null,null,null,null,null,null,null,null,null,null,null,null,null,null,null,null,null,null,null,null,null,null,null,null,null,null,null,null,null,null,null,null,null,null,null,null,null,null,null,null,null,null,null,null,null,null,null,null,null,null,null,null,null,null,null,null,null,null,null,null,null,null,null,null,null,null,null,null,null,null,null,null,null,null,null,null,null,null,null,null,null,null,null,null,null,null,null,null,null,null,null,null,null,null,null,null,null,null,null,null,null,null,null,null,null,null,null,null,null,null,null,null,null,null,null,null,null,null,null,null,null,null,null,null,null,null,null,null,null,null,null,null,null,null,null,null,null,null,null,null,null,null,null,null,null,null,null,"дней",null,null,null,null,null,null,null,null,null,null,null,null,null,null,null,null,null,"часов"]
[null,null,null,null,null,null,null,null,null,null,null,null,null,null,null,null,null,null,null,null,null,null,null,null,null,null,null,null,{"$f":"IFERROR($A$17+AC19-1,\"-\")","v":"2020-06-01"},null,null,null,null,null,"2020-06-02",null,null,null,null,null,"2020-06-03",null,null,null,null,null,"2020-06-04",null,null,null,null,null,"2020-06-05",null,null,null,null,null,"2020-06-06",null,null,null,null,null,{"$f":"IFERROR($A$17+BM19-1,\"-\")","v":"2020-06-07"},null,null,null,null,null,"2020-06-08",null,null,null,null,null,"2020-06-09",null,null,null,null,null,"2020-06-10",null,null,null,null,null,"2020-06-11",null,null,null,null,null,"2020-06-12",null,null,null,null,null,{"$f":"IFERROR($A$17+CW19-1,\"-\")","v":"2020-06-13"},null,null,null,null,null,"2020-06-14",null,null,null,null,null,"2020-06-15",null,null,null,null,null,"2020-06-16",null,null,null,null,null,"2020-06-17",null,null,null,null,null,"2020-06-18",null,null,null,null,null,{"$f":"IFERROR($A$17+EG19-1,\"-\")","v":"2020-06-19"},null,null,null,null,null,"2020-06-20",null,null,null,null,null,"2020-06-21",null,null,null,null,null,"2020-06-22",null,null,null,null,null,"2020-06-23",null,null,null,null,null,"2020-06-24",null,null,null,null,null,{"$f":"IFERROR($A$17+FQ19-1,\"-\")","v":"2020-06-25"},null,null,null,null,null,"2020-06-26",null,null,null,null,null,"2020-06-27",null,null,null,null,null,"2020-06-28",null,null,null,null,null,"2020-06-29",null,null,null,null,null,"2020-06-30",null,null,null,null,null,{"$f":"IFERROR($A$17+HA19-1,\"-\")","v":"-"}]
[]
[]
[]
[]
[]
[]
[]
[]
[]
[]
[]
[]
[]
[]
[null,null,null,null,null,null,null,null,null,null,null,null,null,null,null,null,null,null,null,null,null,null,null,null,null,null,null,null,null,null,null,null,null,null,null,null,null,null,null,null,null,null,null,null,null,null,null,null,null,null,null,null,null,null,null,null,null,null,null,null,null,null,null,null,null,null,null,null,null,null,null,null,null,"здесь должен быть ПН"]